Council Name,Date,TransNo,Amount � (Excl VAT),Supplier name,Supplier Category,Expense Area,Expense Type,Expense Code
Royal Borough of Kingston,31/01/2024,70064065,600.00,31TEN CONSULTING LIMITED,TEMP STAFF & CONSULTANCY,Place,External Fees and Consultants,C20000
Royal Borough of Kingston,31/01/2024,70064285,"10,000.00",31TEN CONSULTING LIMITED,TEMP STAFF & CONSULTANCY,Place,Consultancy Services,A56007
Royal Borough of Kingston,22/02/2024,90308124,"1,375.00",REDACTED - PERSONAL DATA,PLS LANDLORDS,Place,PSL Payments To Landlords,A22031
Royal Borough of Kingston,22/02/2024,90308171,"1,375.00",REDACTED - PERSONAL DATA,PLS LANDLORDS,Place,PSL Payments To Landlords,A22031
Royal Borough of Kingston,19/02/2024,70065392,"5,500.00",REDACTED - PERSONAL DATA,SUNDRY SUPPLIER - HOUSING,Corporate & Communities,Grants Given For Capital Purposes,C20004
Royal Borough of Kingston,22/02/2024,90308025,"1,097.00",REDACTED - PERSONAL DATA,PLS LANDLORDS,Place,PSL Payments To Landlords,A22031
Royal Borough of Kingston,22/02/2024,90308078,"1,125.00",REDACTED - PERSONAL DATA,PLS LANDLORDS,Place,PSL Payments To Landlords,A22031
Royal Borough of Kingston,22/02/2024,90308161,"2,300.00",REDACTED - PERSONAL DATA,PLS LANDLORDS,Place,PSL Payments To Landlords,A22031
Royal Borough of Kingston,22/02/2024,90308162,"2,300.00",REDACTED - PERSONAL DATA,PLS LANDLORDS,Place,PSL Payments To Landlords,A22031
Royal Borough of Kingston,22/02/2024,90308163,"2,300.00",REDACTED - PERSONAL DATA,PLS LANDLORDS,Place,PSL Payments To Landlords,A22031
Royal Borough of Kingston,22/02/2024,90308316,"2,300.00",REDACTED - PERSONAL DATA,PLS LANDLORDS,Place,PSL Payments To Landlords,A22031
Royal Borough of Kingston,22/02/2024,90308120,993.34,REDACTED - PERSONAL DATA,PLS LANDLORDS,Place,PSL Payments To Landlords,A22031
Royal Borough of Kingston,06/02/2024,90304163,"5,158.69",ABACUS PRE-SCHOOL,ACADEMIC INSTNS - OTHER,Schools,PVI Providers,A60014
Royal Borough of Kingston,06/02/2024,90304267,"4,243.05",ABACUS PRE-SCHOOL,ACADEMIC INSTNS - OTHER,Schools,2 Yr Old Place Funding,A60000
Royal Borough of Kingston,01/02/2024,90308806,"4,971.43",ABBEY 14LIMITED,SOCIAL SERVICES RESIDENTIAL,Adult Social Care & Health,Independent Placements,A56006
Royal Borough of Kingston,01/02/2024,90303376,844.46,ABBEYFIELD,SOCIAL SERVICES RESIDENTIAL,Adult Social Care & Health,Independent Placements,A56006
Royal Borough of Kingston,01/02/2024,90303377,"5,235.68",ABBEYFIELD,SOCIAL SERVICES RESIDENTIAL,Adult Social Care & Health,Independent Placements,A56006
Royal Borough of Kingston,01/02/2024,90308637,"3,252.86",ABBEYFIELD,SOCIAL SERVICES RESIDENTIAL,Adult Social Care & Health,Independent Placements,A56006
Royal Borough of Kingston,01/02/2024,90308638,"3,892.84",ABBEYFIELD,SOCIAL SERVICES RESIDENTIAL,Adult Social Care & Health,Independent Placements,A56006
Royal Borough of Kingston,01/02/2024,90308646,"3,615.72",ABBEYFIELD,SOCIAL SERVICES RESIDENTIAL,Adult Social Care & Health,Independent Placements,A56006
Royal Borough of Kingston,01/02/2024,90308648,"3,615.72",ABBEYFIELD,SOCIAL SERVICES RESIDENTIAL,Adult Social Care & Health,Independent Placements,A56006
Royal Borough of Kingston,01/02/2024,90308651,"4,897.89",ABBEYFIELD,SOCIAL SERVICES RESIDENTIAL,Adult Social Care & Health,Independent Placements,A56006
Royal Borough of Kingston,01/02/2024,90308654,"-4,428.57",ABBEYFIELD,SOCIAL SERVICES RESIDENTIAL,Adult Social Care & Health,Independent Placements,A56006
Royal Borough of Kingston,01/02/2024,90308655,"4,428.57",ABBEYFIELD,SOCIAL SERVICES RESIDENTIAL,Adult Social Care & Health,Independent Placements,A56006
Royal Borough of Kingston,01/02/2024,90308656,"-4,285.71",ABBEYFIELD,SOCIAL SERVICES RESIDENTIAL,Adult Social Care & Health,Independent Placements,A56006
Royal Borough of Kingston,01/02/2024,90308657,"4,285.71",ABBEYFIELD,SOCIAL SERVICES RESIDENTIAL,Adult Social Care & Health,Independent Placements,A56006
Royal Borough of Kingston,01/02/2024,90308658,"-3,285.71",ABBEYFIELD,SOCIAL SERVICES RESIDENTIAL,Adult Social Care & Health,Independent Placements,A56006
Royal Borough of Kingston,01/02/2024,90308659,"3,285.71",ABBEYFIELD,SOCIAL SERVICES RESIDENTIAL,Adult Social Care & Health,Independent Placements,A56006
Royal Borough of Kingston,01/02/2024,90308660,"3,892.84",ABBEYFIELD,SOCIAL SERVICES RESIDENTIAL,Adult Social Care & Health,Independent Placements,A56006
Royal Borough of Kingston,01/02/2024,90308664,"3,857.14",ABBEYFIELD,SOCIAL SERVICES RESIDENTIAL,Adult Social Care & Health,Independent Placements,A56006
Royal Borough of Kingston,01/02/2024,90308667,"4,897.89",ABBEYFIELD,SOCIAL SERVICES RESIDENTIAL,Adult Social Care & Health,Independent Placements,A56006
Royal Borough of Kingston,01/02/2024,90308674,"3,892.84",ABBEYFIELD,SOCIAL SERVICES RESIDENTIAL,Adult Social Care & Health,Independent Placements,A56006
Royal Borough of Kingston,01/02/2024,90308683,"3,892.84",ABBEYFIELD,SOCIAL SERVICES RESIDENTIAL,Adult Social Care & Health,Independent Placements,A56006
Royal Borough of Kingston,01/02/2024,90308685,"3,892.84",ABBEYFIELD,SOCIAL SERVICES RESIDENTIAL,Adult Social Care & Health,Independent Placements,A56006
Royal Borough of Kingston,01/02/2024,90308695,"3,892.84",ABBEYFIELD,SOCIAL SERVICES RESIDENTIAL,Adult Social Care & Health,Independent Placements,A56006
Royal Borough of Kingston,01/02/2024,90308697,"3,892.84",ABBEYFIELD,SOCIAL SERVICES RESIDENTIAL,Adult Social Care & Health,Independent Placements,A56006
Royal Borough of Kingston,01/02/2024,90308701,"4,896.86",ABBEYFIELD,SOCIAL SERVICES RESIDENTIAL,Adult Social Care & Health,Independent Placements,A56006
Royal Borough of Kingston,01/02/2024,90308707,-939.65,ABBEYFIELD,SOCIAL SERVICES RESIDENTIAL,Adult Social Care & Health,Independent Placements,A56006
Royal Borough of Kingston,01/02/2024,90308743,"3,615.72",ABBEYFIELD,SOCIAL SERVICES RESIDENTIAL,Adult Social Care & Health,Independent Placements,A56006
Royal Borough of Kingston,01/02/2024,90308750,"3,615.72",ABBEYFIELD,SOCIAL SERVICES RESIDENTIAL,Adult Social Care & Health,Independent Placements,A56006
Royal Borough of Kingston,01/02/2024,90308794,"3,892.84",ABBEYFIELD,SOCIAL SERVICES RESIDENTIAL,Adult Social Care & Health,Independent Placements,A56006
Royal Borough of Kingston,01/02/2024,90308811,"3,892.84",ABBEYFIELD,SOCIAL SERVICES RESIDENTIAL,Adult Social Care & Health,Independent Placements,A56006
Royal Borough of Kingston,01/02/2024,90308824,"3,796.51",ABBEYFIELD,SOCIAL SERVICES RESIDENTIAL,Adult Social Care & Health,Independent Placements,A56006
Royal Borough of Kingston,01/02/2024,90308826,"4,897.89",ABBEYFIELD,SOCIAL SERVICES RESIDENTIAL,Adult Social Care & Health,Independent Placements,A56006
Royal Borough of Kingston,01/02/2024,90308829,"4,897.89",ABBEYFIELD,SOCIAL SERVICES RESIDENTIAL,Adult Social Care & Health,Independent Placements,A56006
Royal Borough of Kingston,01/02/2024,90308834,"3,892.84",ABBEYFIELD,SOCIAL SERVICES RESIDENTIAL,Adult Social Care & Health,Independent Placements,A56006
Royal Borough of Kingston,01/02/2024,90308838,"4,897.89",ABBEYFIELD,SOCIAL SERVICES RESIDENTIAL,Adult Social Care & Health,Independent Placements,A56006
Royal Borough of Kingston,01/02/2024,90308841,"4,897.89",ABBEYFIELD,SOCIAL SERVICES RESIDENTIAL,Adult Social Care & Health,Independent Placements,A56006
Royal Borough of Kingston,01/02/2024,90310438,"5,643.15",ABC HILLINGDON LTD,ACCOMMODATION - OTHER,Adult Social Care & Health,Personal Budget - Third Party,A61019
Royal Borough of Kingston,22/02/2024,90308130,990.58,REDACTED - PERSONAL DATA,PLS LANDLORDS,Place,PSL Payments To Landlords,A22031
Royal Borough of Kingston,06/02/2024,90304239,"13,928.85",ACACIA PRE-SCHOOL,ACADEMIC INSTNS - OTHER,Schools,PVI Providers,A60014
Royal Borough of Kingston,06/02/2024,90304289,"1,817.10",ACACIA PRE-SCHOOL,ACADEMIC INSTNS - OTHER,Schools,2 Yr Old Place Funding,A60000
Royal Borough of Kingston,20/02/2024,90307013,669.60,ACACIA PRE-SCHOOL,ACADEMIC INSTNS - OTHER,Schools,PVI Providers,A60014
Royal Borough of Kingston,22/02/2024,90308393,"1,047.00",Accountancy Services (New Malden) Limited,PLS LANDLORDS,Place,PSL Payments To Landlords,A22031
Royal Borough of Kingston,01/02/2024,90308872,"6,957.80",Achieve Together Limited,SOCIAL SERVICES - OTHER,Adult Social Care & Health,Independent Placements,A56006
Royal Borough of Kingston,01/02/2024,90308905,"4,894.54",Achieve Together Limited,SOCIAL SERVICES - OTHER,Adult Social Care & Health,Independent Placements,A56006
Royal Borough of Kingston,01/02/2024,90308912,"2,071.43",Achieve Together Limited,SOCIAL SERVICES - OTHER,Adult Social Care & Health,Independent Placements,A56006
Royal Borough of Kingston,01/02/2024,90308913,"10,534.46",Achieve Together Limited,SOCIAL SERVICES - OTHER,Adult Social Care & Health,Independent Placements,A56006
Royal Borough of Kingston,01/02/2024,90308939,"11,634.30",Achieve Together Limited,SOCIAL SERVICES - OTHER,Adult Social Care & Health,Independent Placements,A56006
Royal Borough of Kingston,01/02/2024,90310022,"7,443.72",Achieve Together Limited,SOCIAL SERVICES - OTHER,Adult Social Care & Health,S-L non - framework - Day hours,A56158
Royal Borough of Kingston,01/02/2024,90310022,"7,443.72",Achieve Together Limited,SOCIAL SERVICES - OTHER,Adult Social Care & Health,S-L non - framework - Day hours,A56158
Royal Borough of Kingston,01/02/2024,90310023,"2,481.24",Achieve Together Limited,SOCIAL SERVICES - OTHER,Adult Social Care & Health,S-L non - framework - Day hours,A56158
Royal Borough of Kingston,01/02/2024,90310023,"2,481.24",Achieve Together Limited,SOCIAL SERVICES - OTHER,Adult Social Care & Health,S-L non - framework - Day hours,A56158
Royal Borough of Kingston,01/02/2024,90310026,"6,196.89",Achieve Together Limited,SOCIAL SERVICES - OTHER,Adult Social Care & Health,S-L non - framework - other support,A56159
Royal Borough of Kingston,01/02/2024,90310026,"6,196.89",Achieve Together Limited,SOCIAL SERVICES - OTHER,Adult Social Care & Health,S-L non - framework - other support,A56159
Royal Borough of Kingston,01/02/2024,90310027,"2,065.63",Achieve Together Limited,SOCIAL SERVICES - OTHER,Adult Social Care & Health,S-L non - framework - other support,A56159
Royal Borough of Kingston,01/02/2024,90310027,"2,065.63",Achieve Together Limited,SOCIAL SERVICES - OTHER,Adult Social Care & Health,S-L non - framework - other support,A56159
Royal Borough of Kingston,02/02/2024,70064027,"6,981,037.04",ACHIEVING FOR CHILDREN LIMITED,LEGAL & PROFESSIONAL SERVICES,Childrens Services,Fixed Childrens Services Contract Strategic,A51019
Royal Borough of Kingston,06/02/2024,90304245,"18,153.56",Acorn to Oak Nursery and Preschool Ltd,ACADEMIC INSTNS - OTHER,Schools,PVI Providers,A60014
Royal Borough of Kingston,06/02/2024,90304291,"4,244.40",Acorn to Oak Nursery and Preschool Ltd,ACADEMIC INSTNS - OTHER,Schools,2 Yr Old Place Funding,A60000
Royal Borough of Kingston,20/02/2024,90307014,664.02,Acorn to Oak Nursery and Preschool Ltd,ACADEMIC INSTNS - OTHER,Schools,PVI Providers,A60014
Royal Borough of Kingston,02/02/2024,70064366,"1,085.00",ADAM HOTEL MANAGEMENT LTD,ACCOMMODATION BED & BREAKFAST,Place,Bed & Breakfast,A56000
Royal Borough of Kingston,02/02/2024,70064367,"1,085.00",ADAM HOTEL MANAGEMENT LTD,ACCOMMODATION BED & BREAKFAST,Place,Bed & Breakfast,A56000
Royal Borough of Kingston,02/02/2024,70064368,"1,200.00",ADAM HOTEL MANAGEMENT LTD,ACCOMMODATION BED & BREAKFAST,Place,Bed & Breakfast,A56000
Royal Borough of Kingston,02/02/2024,70064369,"1,581.00",ADAM HOTEL MANAGEMENT LTD,ACCOMMODATION BED & BREAKFAST,Place,Bed & Breakfast,A56000
Royal Borough of Kingston,02/02/2024,70064370,"1,581.00",ADAM HOTEL MANAGEMENT LTD,ACCOMMODATION BED & BREAKFAST,Place,Bed & Breakfast,A56000
Royal Borough of Kingston,02/02/2024,70064371,"1,085.00",ADAM HOTEL MANAGEMENT LTD,ACCOMMODATION BED & BREAKFAST,Place,Bed & Breakfast,A56000
Royal Borough of Kingston,02/02/2024,70064372,"1,320.00",ADAM HOTEL MANAGEMENT LTD,ACCOMMODATION BED & BREAKFAST,Place,Bed & Breakfast,A56000
Royal Borough of Kingston,24/01/2024,70063466,"24,720.48",ADAM HTT LIMITED,TAXI AND COACH HIRE,Adult Social Care & Health,Home To School Transport Taxis,A33016
Royal Borough of Kingston,31/01/2024,70063865,"20,545.38",ADAM HTT LIMITED,TAXI AND COACH HIRE,Adult Social Care & Health,Home To School Transport Taxis,A33016
Royal Borough of Kingston,07/02/2024,70064437,"23,911.98",ADAM HTT LIMITED,TAXI AND COACH HIRE,Adult Social Care & Health,Home To School Transport Taxis,A33016
Royal Borough of Kingston,14/02/2024,70064910,"30,113.78",ADAM HTT LIMITED,TAXI AND COACH HIRE,Adult Social Care & Health,Home To School Transport Taxis,A33016
Royal Borough of Kingston,21/02/2024,70065589,"10,873.22",ADAM HTT LIMITED,TAXI AND COACH HIRE,Adult Social Care & Health,Home To School Transport Taxis,A33016
Royal Borough of Kingston,06/02/2024,90304246,"4,129.20",Event Supplies LTD,ACADEMIC INSTNS - OTHER,Schools,PVI Providers,A60014
Royal Borough of Kingston,06/02/2024,90304292,"1,212.30",Event Supplies LTD,ACADEMIC INSTNS - OTHER,Schools,2 Yr Old Place Funding,A60000
Royal Borough of Kingston,01/02/2024,70063896,"8,000.00",ADVANCED TREE SERVICES LIMITED,CONSTRUCTION INDUSTRY,Corporate & Communities,Consultancy Services - Other,A44065
Royal Borough of Kingston,08/02/2024,70064470,"12,966.95",ADVANCED TREE SERVICES LIMITED,CONSTRUCTION INDUSTRY,Corporate & Communities,Maintenance of trees,A28003
Royal Borough of Kingston,09/02/2024,70064493,"1,800.00",ADVANCED TREE SERVICES LIMITED,CONSTRUCTION INDUSTRY,Corporate & Communities,Maintenance of trees,A28003
Royal Borough of Kingston,22/02/2024,70065681,"25,639.50",ADVANCED TREE SERVICES LIMITED,CONSTRUCTION INDUSTRY,Corporate & Communities,Other Private Contractors - Third Party,A56080
Royal Borough of Kingston,06/02/2024,90304136,"29,291.25",ADVANTAGE DAY NURSERY LTD,ACADEMIC INSTNS - OTHER,Schools,PVI Providers,A60014
Royal Borough of Kingston,06/02/2024,90304251,"13,340.70",ADVANTAGE DAY NURSERY LTD,ACADEMIC INSTNS - OTHER,Schools,2 Yr Old Place Funding,A60000
Royal Borough of Kingston,20/02/2024,90306972,"2,232.00",ADVANTAGE DAY NURSERY LTD,ACADEMIC INSTNS - OTHER,Schools,PVI Providers,A60014
Royal Borough of Kingston,29/01/2024,90309949,"1,080.00",Age Concern Kingston upon Thames,GRANTS & EX GRATIA PAYMENTS,Adult Social Care & Health,Day Opps / Day Care -� Building-based�,A56144
Royal Borough of Kingston,29/01/2024,90309949,"1,080.00",Age Concern Kingston upon Thames,GRANTS & EX GRATIA PAYMENTS,Adult Social Care & Health,Day Opps / Day Care -� Building-based�,A56144
Royal Borough of Kingston,01/02/2024,90310104,828.57,Age Concern Kingston upon Thames,GRANTS & EX GRATIA PAYMENTS,Adult Social Care & Health,Personal Budget - Third Party,A61019
Royal Borough of Kingston,01/02/2024,90310105,662.86,Age Concern Kingston upon Thames,GRANTS & EX GRATIA PAYMENTS,Adult Social Care & Health,Personal Budget - Third Party,A61019
Royal Borough of Kingston,06/02/2024,90304183,"1,982.25",REDACTED - PERSONAL DATA,ACADEMIC INSTNS - OTHER,Schools,PVI Providers,A60014
Royal Borough of Kingston,01/02/2024,90308747,"2,442.00",AIMS CARE LIMITED,SOCIAL SERVICES RESIDENTIAL,Adult Social Care & Health,Independent Placements,A56006
Royal Borough of Kingston,01/02/2024,90308748,"6,421.43",AIMS CARE LIMITED,SOCIAL SERVICES RESIDENTIAL,Adult Social Care & Health,Independent Placements,A56006
Royal Borough of Kingston,06/02/2024,90303308,500.00,REDACTED - PERSONAL DATA,GRANTS & EX GRATIA PAYMENTS,Adult Social Care & Health,"Grants, Contributions & Donations",A47005
Royal Borough of Kingston,06/02/2024,90303309,500.00,REDACTED - PERSONAL DATA,CHARITIES & VOLUNTARY ORGNS,Adult Social Care & Health,"Grants, Contributions & Donations",A47005
Royal Borough of Kingston,22/02/2024,90308197,"1,094.00",REDACTED - PERSONAL DATA,LANDLORDS,Place,PSL Payments To Landlords,A22031
Royal Borough of Kingston,06/02/2024,90303173,"162,395.61",ALEXANDRA SCHOOL,SCHOOL FUNDS,Schools,Miscellaneous Expenses,A49000
Royal Borough of Kingston,06/02/2024,90303192,"2,570.50",ALEXANDRA SCHOOL,SCHOOL FUNDS,Schools,Miscellaneous Expenses,A49000
Royal Borough of Kingston,06/02/2024,90303227,"1,055.47",ALEXANDRA SCHOOL,SCHOOL FUNDS,Schools,Miscellaneous Expenses,A49000
Royal Borough of Kingston,06/02/2024,90303247,"18,915.00",ALEXANDRA SCHOOL,SCHOOL FUNDS,Schools,Miscellaneous Expenses,A49000
Royal Borough of Kingston,06/02/2024,90303248,502.50,ALEXANDRA SCHOOL,SCHOOL FUNDS,Schools,Miscellaneous Expenses,A49000
Royal Borough of Kingston,06/02/2024,90303249,"2,530.00",ALEXANDRA SCHOOL,SCHOOL FUNDS,Schools,Miscellaneous Expenses,A49000
Royal Borough of Kingston,06/02/2024,90304181,"19,743.41",ALEXANDRA SCHOOL,SCHOOL FUNDS,Schools,Miscellaneous Expenses,A49000
Royal Borough of Kingston,20/02/2024,90306987,669.60,ALEXANDRA SCHOOL,SCHOOL FUNDS,Schools,Miscellaneous Expenses,A49000
Royal Borough of Kingston,29/02/2024,90310520,"4,000.00",ALEXANDRA SCHOOL,SCHOOL FUNDS,Schools,Miscellaneous Expenses,A49000
Royal Borough of Kingston,22/02/2024,90308381,"1,050.00",REDACTED - PERSONAL DATA,PLS LANDLORDS,Place,PSL Payments To Landlords,A22031
Royal Borough of Kingston,06/02/2024,90303311,550.00,REDACTED - PERSONAL DATA,CHARITIES & VOLUNTARY ORGNS,Adult Social Care & Health,"Grants, Contributions & Donations",A47005
Royal Borough of Kingston,31/01/2024,70063862,"75,999.67",ALLIANCE LEISURE,TEMP STAFF & CONSULTANCY,Place,External Fees and Consultants,C20000
Royal Borough of Kingston,31/01/2024,70064146,853.40,ALLPAY LIMITED,FINANCIAL / INSURANCE INSTNS,Adult Social Care & Health,Bank Fees & Charges,A44250
Royal Borough of Kingston,15/01/2024,90303416,576.24,ALPENBEST LTD,SOCIAL SERVICES DAY CARE,Adult Social Care & Health,Homecare - new framework,A56127
Royal Borough of Kingston,15/01/2024,90303443,630.27,ALPENBEST LTD,SOCIAL SERVICES DAY CARE,Adult Social Care & Health,Homecare - new framework,A56127
Royal Borough of Kingston,15/01/2024,90303560,567.24,ALPENBEST LTD,SOCIAL SERVICES DAY CARE,Adult Social Care & Health,Homecare - new framework,A56127
Royal Borough of Kingston,15/01/2024,90303569,819.35,ALPENBEST LTD,SOCIAL SERVICES DAY CARE,Adult Social Care & Health,Homecare - new framework,A56127
Royal Borough of Kingston,15/01/2024,90303602,639.27,ALPENBEST LTD,SOCIAL SERVICES DAY CARE,Adult Social Care & Health,Homecare - new framework,A56127
Royal Borough of Kingston,15/01/2024,90303604,504.21,ALPENBEST LTD,SOCIAL SERVICES DAY CARE,Adult Social Care & Health,Homecare - new framework,A56127
Royal Borough of Kingston,15/01/2024,90303677,567.24,ALPENBEST LTD,SOCIAL SERVICES DAY CARE,Adult Social Care & Health,Homecare - new framework,A56127
Royal Borough of Kingston,15/01/2024,90303731,630.27,ALPENBEST LTD,SOCIAL SERVICES DAY CARE,Adult Social Care & Health,Homecare - new framework,A56127
Royal Borough of Kingston,15/01/2024,90303758,621.26,ALPENBEST LTD,SOCIAL SERVICES DAY CARE,Adult Social Care & Health,Homecare - new framework,A56127
Royal Borough of Kingston,15/01/2024,90303769,747.32,ALPENBEST LTD,SOCIAL SERVICES DAY CARE,Adult Social Care & Health,Homecare - new framework,A56127
Royal Borough of Kingston,15/01/2024,90303786,630.27,ALPENBEST LTD,SOCIAL SERVICES DAY CARE,Adult Social Care & Health,Homecare - new framework,A56127
Royal Borough of Kingston,15/01/2024,90303890,567.24,ALPENBEST LTD,SOCIAL SERVICES DAY CARE,Adult Social Care & Health,Homecare - Framework - double-handed,A56131
Royal Borough of Kingston,15/01/2024,90303890,567.24,ALPENBEST LTD,SOCIAL SERVICES DAY CARE,Adult Social Care & Health,Homecare - Framework - double-handed,A56131
Royal Borough of Kingston,15/01/2024,90303893,756.32,ALPENBEST LTD,SOCIAL SERVICES DAY CARE,Adult Social Care & Health,Homecare - Framework - double-handed,A56131
Royal Borough of Kingston,15/01/2024,90303893,756.32,ALPENBEST LTD,SOCIAL SERVICES DAY CARE,Adult Social Care & Health,Homecare - Framework - double-handed,A56131
Royal Borough of Kingston,15/01/2024,90304023,567.24,ALPENBEST LTD,SOCIAL SERVICES DAY CARE,Adult Social Care & Health,Homecare - Framework - D2A,A56133
Royal Borough of Kingston,15/01/2024,90304023,567.24,ALPENBEST LTD,SOCIAL SERVICES DAY CARE,Adult Social Care & Health,Homecare - Framework - D2A,A56133
Royal Borough of Kingston,15/01/2024,90304040,963.78,ALPENBEST LTD,SOCIAL SERVICES DAY CARE,Adult Social Care & Health,Homecare - Framework - D2A,A56133
Royal Borough of Kingston,15/01/2024,90304040,963.78,ALPENBEST LTD,SOCIAL SERVICES DAY CARE,Adult Social Care & Health,Homecare - Framework - D2A,A56133
Royal Borough of Kingston,15/01/2024,90304100,630.27,ALPENBEST LTD,SOCIAL SERVICES DAY CARE,Adult Social Care & Health,Personal Budget - Third Party,A61019
Royal Borough of Kingston,22/01/2024,90305738,576.24,ALPENBEST LTD,SOCIAL SERVICES DAY CARE,Adult Social Care & Health,Homecare - new framework,A56127
Royal Borough of Kingston,22/01/2024,90305776,630.27,ALPENBEST LTD,SOCIAL SERVICES DAY CARE,Adult Social Care & Health,Homecare - new framework,A56127
Royal Borough of Kingston,22/01/2024,90305880,567.24,ALPENBEST LTD,SOCIAL SERVICES DAY CARE,Adult Social Care & Health,Homecare - new framework,A56127
Royal Borough of Kingston,22/01/2024,90305886,819.35,ALPENBEST LTD,SOCIAL SERVICES DAY CARE,Adult Social Care & Health,Homecare - new framework,A56127
Royal Borough of Kingston,22/01/2024,90305925,648.28,ALPENBEST LTD,SOCIAL SERVICES DAY CARE,Adult Social Care & Health,Homecare - new framework,A56127
Royal Borough of Kingston,22/01/2024,90305993,567.24,ALPENBEST LTD,SOCIAL SERVICES DAY CARE,Adult Social Care & Health,Homecare - new framework,A56127
Royal Borough of Kingston,22/01/2024,90306045,630.27,ALPENBEST LTD,SOCIAL SERVICES DAY CARE,Adult Social Care & Health,Homecare - new framework,A56127
Royal Borough of Kingston,22/01/2024,90306066,621.26,ALPENBEST LTD,SOCIAL SERVICES DAY CARE,Adult Social Care & Health,Homecare - new framework,A56127
Royal Borough of Kingston,22/01/2024,90306074,630.27,ALPENBEST LTD,SOCIAL SERVICES DAY CARE,Adult Social Care & Health,Homecare - new framework,A56127
Royal Borough of Kingston,22/01/2024,90306078,783.33,ALPENBEST LTD,SOCIAL SERVICES DAY CARE,Adult Social Care & Health,Homecare - new framework,A56127
Royal Borough of Kingston,22/01/2024,90306094,630.27,ALPENBEST LTD,SOCIAL SERVICES DAY CARE,Adult Social Care & Health,Homecare - new framework,A56127
Royal Borough of Kingston,22/01/2024,90306157,540.23,ALPENBEST LTD,SOCIAL SERVICES DAY CARE,Adult Social Care & Health,Homecare - new framework,A56127
Royal Borough of Kingston,22/01/2024,90306197,567.24,ALPENBEST LTD,SOCIAL SERVICES DAY CARE,Adult Social Care & Health,Homecare - Framework - double-handed,A56131
Royal Borough of Kingston,22/01/2024,90306197,567.24,ALPENBEST LTD,SOCIAL SERVICES DAY CARE,Adult Social Care & Health,Homecare - Framework - double-handed,A56131
Royal Borough of Kingston,22/01/2024,90306341,567.24,ALPENBEST LTD,SOCIAL SERVICES DAY CARE,Adult Social Care & Health,Homecare - Framework - D2A,A56133
Royal Borough of Kingston,22/01/2024,90306341,567.24,ALPENBEST LTD,SOCIAL SERVICES DAY CARE,Adult Social Care & Health,Homecare - Framework - D2A,A56133
Royal Borough of Kingston,22/01/2024,90306364,963.78,ALPENBEST LTD,SOCIAL SERVICES DAY CARE,Adult Social Care & Health,Homecare - Framework - D2A,A56133
Royal Borough of Kingston,22/01/2024,90306364,963.78,ALPENBEST LTD,SOCIAL SERVICES DAY CARE,Adult Social Care & Health,Homecare - Framework - D2A,A56133
Royal Borough of Kingston,22/01/2024,90306792,630.27,ALPENBEST LTD,SOCIAL SERVICES DAY CARE,Adult Social Care & Health,Personal Budget - Third Party,A61019
Royal Borough of Kingston,29/01/2024,90307094,576.24,ALPENBEST LTD,SOCIAL SERVICES DAY CARE,Adult Social Care & Health,Homecare - new framework,A56127
Royal Borough of Kingston,29/01/2024,90307121,630.27,ALPENBEST LTD,SOCIAL SERVICES DAY CARE,Adult Social Care & Health,Homecare - new framework,A56127
Royal Borough of Kingston,29/01/2024,90307216,567.24,ALPENBEST LTD,SOCIAL SERVICES DAY CARE,Adult Social Care & Health,Homecare - new framework,A56127
Royal Borough of Kingston,29/01/2024,90307223,819.35,ALPENBEST LTD,SOCIAL SERVICES DAY CARE,Adult Social Care & Health,Homecare - new framework,A56127
Royal Borough of Kingston,29/01/2024,90307264,639.27,ALPENBEST LTD,SOCIAL SERVICES DAY CARE,Adult Social Care & Health,Homecare - new framework,A56127
Royal Borough of Kingston,29/01/2024,90307332,567.24,ALPENBEST LTD,SOCIAL SERVICES DAY CARE,Adult Social Care & Health,Homecare - new framework,A56127
Royal Borough of Kingston,29/01/2024,90307385,630.27,ALPENBEST LTD,SOCIAL SERVICES DAY CARE,Adult Social Care & Health,Homecare - new framework,A56127
Royal Borough of Kingston,29/01/2024,90307405,621.26,ALPENBEST LTD,SOCIAL SERVICES DAY CARE,Adult Social Care & Health,Homecare - new framework,A56127
Royal Borough of Kingston,29/01/2024,90307413,630.27,ALPENBEST LTD,SOCIAL SERVICES DAY CARE,Adult Social Care & Health,Homecare - new framework,A56127
Royal Borough of Kingston,29/01/2024,90307417,657.28,ALPENBEST LTD,SOCIAL SERVICES DAY CARE,Adult Social Care & Health,Homecare - new framework,A56127
Royal Borough of Kingston,29/01/2024,90307433,630.27,ALPENBEST LTD,SOCIAL SERVICES DAY CARE,Adult Social Care & Health,Homecare - new framework,A56127
Royal Borough of Kingston,29/01/2024,90307492,648.28,ALPENBEST LTD,SOCIAL SERVICES DAY CARE,Adult Social Care & Health,Homecare - new framework,A56127
Royal Borough of Kingston,29/01/2024,90307536,567.24,ALPENBEST LTD,SOCIAL SERVICES DAY CARE,Adult Social Care & Health,Homecare - Framework - double-handed,A56131
Royal Borough of Kingston,29/01/2024,90307536,567.24,ALPENBEST LTD,SOCIAL SERVICES DAY CARE,Adult Social Care & Health,Homecare - Framework - double-handed,A56131
Royal Borough of Kingston,29/01/2024,90307555,720.31,ALPENBEST LTD,SOCIAL SERVICES DAY CARE,Adult Social Care & Health,Homecare - Framework - double-handed,A56131
Royal Borough of Kingston,29/01/2024,90307555,720.31,ALPENBEST LTD,SOCIAL SERVICES DAY CARE,Adult Social Care & Health,Homecare - Framework - double-handed,A56131
Royal Borough of Kingston,29/01/2024,90307561,576.24,ALPENBEST LTD,SOCIAL SERVICES DAY CARE,Adult Social Care & Health,Homecare - Framework - double-handed,A56131
Royal Borough of Kingston,29/01/2024,90307561,576.24,ALPENBEST LTD,SOCIAL SERVICES DAY CARE,Adult Social Care & Health,Homecare - Framework - double-handed,A56131
Royal Borough of Kingston,29/01/2024,90307712,567.24,ALPENBEST LTD,SOCIAL SERVICES DAY CARE,Adult Social Care & Health,Homecare - Framework - D2A,A56133
Royal Borough of Kingston,29/01/2024,90307712,567.24,ALPENBEST LTD,SOCIAL SERVICES DAY CARE,Adult Social Care & Health,Homecare - Framework - D2A,A56133
Royal Borough of Kingston,29/01/2024,90307733,550.73,ALPENBEST LTD,SOCIAL SERVICES DAY CARE,Adult Social Care & Health,Homecare - Framework - D2A,A56133
Royal Borough of Kingston,29/01/2024,90307733,550.73,ALPENBEST LTD,SOCIAL SERVICES DAY CARE,Adult Social Care & Health,Homecare - Framework - D2A,A56133
Royal Borough of Kingston,29/01/2024,90307797,630.27,ALPENBEST LTD,SOCIAL SERVICES DAY CARE,Adult Social Care & Health,Personal Budget - Third Party,A61019
Royal Borough of Kingston,05/02/2024,90309274,504.21,ALPENBEST LTD,SOCIAL SERVICES DAY CARE,Adult Social Care & Health,Homecare - new framework,A56127
Royal Borough of Kingston,05/02/2024,90309277,576.24,ALPENBEST LTD,SOCIAL SERVICES DAY CARE,Adult Social Care & Health,Homecare - new framework,A56127
Royal Borough of Kingston,05/02/2024,90309304,630.27,ALPENBEST LTD,SOCIAL SERVICES DAY CARE,Adult Social Care & Health,Homecare - new framework,A56127
Royal Borough of Kingston,05/02/2024,90309435,567.24,ALPENBEST LTD,SOCIAL SERVICES DAY CARE,Adult Social Care & Health,Homecare - new framework,A56127
Royal Borough of Kingston,05/02/2024,90309441,819.35,ALPENBEST LTD,SOCIAL SERVICES DAY CARE,Adult Social Care & Health,Homecare - new framework,A56127
Royal Borough of Kingston,05/02/2024,90309473,612.26,ALPENBEST LTD,SOCIAL SERVICES DAY CARE,Adult Social Care & Health,Homecare - new framework,A56127
Royal Borough of Kingston,05/02/2024,90309533,567.24,ALPENBEST LTD,SOCIAL SERVICES DAY CARE,Adult Social Care & Health,Homecare - new framework,A56127
Royal Borough of Kingston,05/02/2024,90309566,513.22,ALPENBEST LTD,SOCIAL SERVICES DAY CARE,Adult Social Care & Health,Homecare - new framework,A56127
Royal Borough of Kingston,05/02/2024,90309583,630.27,ALPENBEST LTD,SOCIAL SERVICES DAY CARE,Adult Social Care & Health,Homecare - new framework,A56127
Royal Borough of Kingston,05/02/2024,90309602,603.26,ALPENBEST LTD,SOCIAL SERVICES DAY CARE,Adult Social Care & Health,Homecare - new framework,A56127
Royal Borough of Kingston,05/02/2024,90309610,630.27,ALPENBEST LTD,SOCIAL SERVICES DAY CARE,Adult Social Care & Health,Homecare - new framework,A56127
Royal Borough of Kingston,05/02/2024,90309615,765.33,ALPENBEST LTD,SOCIAL SERVICES DAY CARE,Adult Social Care & Health,Homecare - new framework,A56127
Royal Borough of Kingston,05/02/2024,90309632,630.27,ALPENBEST LTD,SOCIAL SERVICES DAY CARE,Adult Social Care & Health,Homecare - new framework,A56127
Royal Borough of Kingston,05/02/2024,90309690,630.27,ALPENBEST LTD,SOCIAL SERVICES DAY CARE,Adult Social Care & Health,Homecare - new framework,A56127
Royal Borough of Kingston,05/02/2024,90309728,747.32,ALPENBEST LTD,SOCIAL SERVICES DAY CARE,Adult Social Care & Health,Homecare - Framework - double-handed,A56131
Royal Borough of Kingston,05/02/2024,90309728,747.32,ALPENBEST LTD,SOCIAL SERVICES DAY CARE,Adult Social Care & Health,Homecare - Framework - double-handed,A56131
Royal Borough of Kingston,05/02/2024,90309734,630.27,ALPENBEST LTD,SOCIAL SERVICES DAY CARE,Adult Social Care & Health,Homecare - Framework - double-handed,A56131
Royal Borough of Kingston,05/02/2024,90309734,630.27,ALPENBEST LTD,SOCIAL SERVICES DAY CARE,Adult Social Care & Health,Homecare - Framework - double-handed,A56131
Royal Borough of Kingston,05/02/2024,90309742,630.27,ALPENBEST LTD,SOCIAL SERVICES DAY CARE,Adult Social Care & Health,Homecare - Framework - double-handed,A56131
Royal Borough of Kingston,05/02/2024,90309742,630.27,ALPENBEST LTD,SOCIAL SERVICES DAY CARE,Adult Social Care & Health,Homecare - Framework - double-handed,A56131
Royal Borough of Kingston,05/02/2024,90309890,567.24,ALPENBEST LTD,SOCIAL SERVICES DAY CARE,Adult Social Care & Health,Homecare - Framework - D2A,A56133
Royal Borough of Kingston,05/02/2024,90309890,567.24,ALPENBEST LTD,SOCIAL SERVICES DAY CARE,Adult Social Care & Health,Homecare - Framework - D2A,A56133
Royal Borough of Kingston,05/02/2024,90310399,630.27,ALPENBEST LTD,SOCIAL SERVICES DAY CARE,Adult Social Care & Health,Personal Budget - Third Party,A61019
Royal Borough of Kingston,01/02/2024,90310025,"1,714.29",Alpha Care and Support Services Limited,SOCIAL SERVICES RESIDENTIAL,Adult Social Care & Health,S-L non - framework - other support,A56159
Royal Borough of Kingston,01/02/2024,90310025,"1,714.29",Alpha Care and Support Services Limited,SOCIAL SERVICES RESIDENTIAL,Adult Social Care & Health,S-L non - framework - other support,A56159
Royal Borough of Kingston,06/02/2024,90303313,500.00,REDACTED - PERSONAL DATA,CHARITIES & VOLUNTARY ORGNS,Adult Social Care & Health,"Grants, Contributions & Donations",A47005
Royal Borough of Kingston,22/02/2024,90308018,"1,136.00",REDACTED - PERSONAL DATA,PLS LANDLORDS,Place,PSL Payments To Landlords,A22031
Royal Borough of Kingston,31/01/2024,70063899,"2,382.86",ANA TREATMENT CENTRES LTD,SOCIAL SERVICES RESIDENTIAL,Adult Social Care & Health,Independent Placements,A56006
Royal Borough of Kingston,31/01/2024,70063900,695.00,ANA TREATMENT CENTRES LTD,SOCIAL SERVICES RESIDENTIAL,Adult Social Care & Health,Independent Placements,A56006
Royal Borough of Kingston,31/01/2024,70063901,"1,390.00",ANA TREATMENT CENTRES LTD,SOCIAL SERVICES RESIDENTIAL,Adult Social Care & Health,Independent Placements,A56006
Royal Borough of Kingston,22/02/2024,90308357,"1,383.33",REDACTED - PERSONAL DATA,PLS LANDLORDS,Place,PSL Payments To Landlords,A22031
Royal Borough of Kingston,22/02/2024,90308337,"1,458.33",REDACTED - PERSONAL DATA,PLS LANDLORDS,Place,PSL Payments To Landlords,A22031
Royal Borough of Kingston,22/02/2024,90308260,"1,094.00",REDACTED - PERSONAL DATA,PLS LANDLORDS,Place,PSL Payments To Landlords,A22031
Royal Borough of Kingston,05/02/2024,70064187,"1,175.00",Angelic Carpets,SUNDRY SUPPLIER - HOUSING,Corporate & Communities,Grants Given For Capital Purposes,C20004
Royal Borough of Kingston,18/01/2024,70063952,"1,233.15",ANGLIAN WATER BUSINESS NATIONAL LTD,UTILITIES,Housing Revenue Account,Water Services,A24005
Royal Borough of Kingston,18/01/2024,70063953,"6,140.59",ANGLIAN WATER BUSINESS NATIONAL LTD,UTILITIES,Corporate & Communities,Water Services,A24005
Royal Borough of Kingston,18/01/2024,70063958,799.67,ANGLIAN WATER BUSINESS NATIONAL LTD,UTILITIES,Housing Revenue Account,Water Services,A24005
Royal Borough of Kingston,18/01/2024,70063958,398.93,ANGLIAN WATER BUSINESS NATIONAL LTD,UTILITIES,Housing Revenue Account,Water Services,A24005
Royal Borough of Kingston,18/01/2024,70063959,"1,040.39",ANGLIAN WATER BUSINESS NATIONAL LTD,UTILITIES,Adult Social Care & Health,Water Services,A24005
Royal Borough of Kingston,18/01/2024,70063961,"9,126.69",ANGLIAN WATER BUSINESS NATIONAL LTD,UTILITIES,Place,Water Services,A24005
Royal Borough of Kingston,18/02/2024,70065637,"2,503.69",ANGLIAN WATER BUSINESS NATIONAL LTD,UTILITIES,Housing Revenue Account,Water Services,A24005
Royal Borough of Kingston,18/02/2024,70065638,"5,668.68",ANGLIAN WATER BUSINESS NATIONAL LTD,UTILITIES,Corporate & Communities,Water Services,A24005
Royal Borough of Kingston,18/02/2024,70065640,-905.33,ANGLIAN WATER BUSINESS NATIONAL LTD,UTILITIES,Housing Revenue Account,Water Services,A24005
Royal Borough of Kingston,18/02/2024,70065641,753.14,ANGLIAN WATER BUSINESS NATIONAL LTD,UTILITIES,Housing Revenue Account,Water Services,A24005
Royal Borough of Kingston,18/02/2024,70065641,369.77,ANGLIAN WATER BUSINESS NATIONAL LTD,UTILITIES,Housing Revenue Account,Water Services,A24005
Royal Borough of Kingston,18/02/2024,70065642,971.95,ANGLIAN WATER BUSINESS NATIONAL LTD,UTILITIES,Adult Social Care & Health,Water Services,A24005
Royal Borough of Kingston,18/02/2024,70065644,"8,286.16",ANGLIAN WATER BUSINESS NATIONAL LTD,UTILITIES,Place,Water Services,A24005
Royal Borough of Kingston,22/02/2024,90308042,"1,094.00",REDACTED - PERSONAL DATA,PLS LANDLORDS,Place,PSL Payments To Landlords,A22031
Royal Borough of Kingston,25/01/2024,70063698,"1,535.00",REDACTED - PERSONAL DATA,REFUNDS,Adult Social Care & Health,Other Private Contractors - Third Party,A56080
Royal Borough of Kingston,16/02/2024,70065340,"1,500.00",REDACTED - PERSONAL DATA,PLS LANDLORDS,Place,Payments to Voluntary Organisations,A54005
Royal Borough of Kingston,22/02/2024,90308378,"1,047.00",REDACTED - PERSONAL DATA,PLS LANDLORDS,Place,PSL Payments To Landlords,A22031
Royal Borough of Kingston,23/02/2024,90308417,803.25,REDACTED - PERSONAL DATA,SCHOOL FUNDS,Schools,PVI Providers,A60014
Royal Borough of Kingston,30/01/2024,70063727,"1,300.00",AP RENTAL INC LTD,LANDLORDS,Adult Social Care & Health,Housing Benefit - Rent Allowances -Private Tenants Only,A62009
Royal Borough of Kingston,30/01/2024,70063728,"1,500.00",AP RENTAL INC LTD,LANDLORDS,Adult Social Care & Health,Housing Benefit - Rent Allowances -Private Tenants Only,A62009
Royal Borough of Kingston,30/01/2024,70063730,"1,600.00",AP RENTAL INC LTD,LANDLORDS,Adult Social Care & Health,Housing Benefit - Rent Allowances -Private Tenants Only,A62009
Royal Borough of Kingston,30/01/2024,70063731,"1,400.00",AP RENTAL INC LTD,LANDLORDS,Adult Social Care & Health,Housing Benefit - Rent Allowances -Private Tenants Only,A62009
Royal Borough of Kingston,30/01/2024,70063732,"1,600.00",AP RENTAL INC LTD,LANDLORDS,Adult Social Care & Health,Housing Benefit - Rent Allowances -Private Tenants Only,A62009
Royal Borough of Kingston,30/01/2024,70063733,"1,600.00",AP RENTAL INC LTD,LANDLORDS,Adult Social Care & Health,Housing Benefit - Rent Allowances -Private Tenants Only,A62009
Royal Borough of Kingston,31/01/2024,70064771,"1,670.90",APEX HOUSING SOLUTIONS LTD,ACCOMMODATION BED & BREAKFAST,Place,Bed & Breakfast,A56000
Royal Borough of Kingston,31/01/2024,70064772,"2,790.00",APEX HOUSING SOLUTIONS LTD,ACCOMMODATION BED & BREAKFAST,Place,Bed & Breakfast,A56000
Royal Borough of Kingston,31/01/2024,70064773,"2,635.00",APEX HOUSING SOLUTIONS LTD,ACCOMMODATION BED & BREAKFAST,Place,Bed & Breakfast,A56000
Royal Borough of Kingston,31/01/2024,70064774,"2,635.00",APEX HOUSING SOLUTIONS LTD,ACCOMMODATION BED & BREAKFAST,Place,Bed & Breakfast,A56000
Royal Borough of Kingston,31/01/2024,70064775,"1,705.00",APEX HOUSING SOLUTIONS LTD,ACCOMMODATION BED & BREAKFAST,Place,Bed & Breakfast,A56000
Royal Borough of Kingston,31/01/2024,70064776,"1,546.90",APEX HOUSING SOLUTIONS LTD,ACCOMMODATION BED & BREAKFAST,Place,Bed & Breakfast,A56000
Royal Borough of Kingston,31/01/2024,70064778,"1,798.00",APEX HOUSING SOLUTIONS LTD,ACCOMMODATION BED & BREAKFAST,Place,Bed & Breakfast,A56000
Royal Borough of Kingston,31/01/2024,70064779,"1,364.00",APEX HOUSING SOLUTIONS LTD,ACCOMMODATION BED & BREAKFAST,Place,Bed & Breakfast,A56000
Royal Borough of Kingston,31/01/2023,70064780,"1,395.00",APEX HOUSING SOLUTIONS LTD,ACCOMMODATION BED & BREAKFAST,Place,Bed & Breakfast,A56000
Royal Borough of Kingston,31/01/2024,70064781,"2,790.00",APEX HOUSING SOLUTIONS LTD,ACCOMMODATION BED & BREAKFAST,Place,Bed & Breakfast,A56000
Royal Borough of Kingston,31/01/2024,70064783,"1,546.90",APEX HOUSING SOLUTIONS LTD,ACCOMMODATION BED & BREAKFAST,Place,Bed & Breakfast,A56000
Royal Borough of Kingston,31/01/2024,70064784,"1,680.00",APEX HOUSING SOLUTIONS LTD,ACCOMMODATION BED & BREAKFAST,Place,Bed & Breakfast,A56000
Royal Borough of Kingston,31/01/2024,70064785,"2,635.00",APEX HOUSING SOLUTIONS LTD,ACCOMMODATION BED & BREAKFAST,Place,Bed & Breakfast,A56000
Royal Borough of Kingston,31/08/2022,70064786,"1,072.00",APEX HOUSING SOLUTIONS LTD,ACCOMMODATION BED & BREAKFAST,Place,Bed & Breakfast,A56000
Royal Borough of Kingston,31/01/2024,70064787,"2,635.00",APEX HOUSING SOLUTIONS LTD,ACCOMMODATION BED & BREAKFAST,Place,Bed & Breakfast,A56000
Royal Borough of Kingston,31/01/2024,70064788,"2,635.00",APEX HOUSING SOLUTIONS LTD,ACCOMMODATION BED & BREAKFAST,Place,Bed & Breakfast,A56000
Royal Borough of Kingston,31/01/2024,70064790,"1,670.90",APEX HOUSING SOLUTIONS LTD,ACCOMMODATION BED & BREAKFAST,Place,Bed & Breakfast,A56000
Royal Borough of Kingston,31/01/2024,70064792,"2,635.00",APEX HOUSING SOLUTIONS LTD,ACCOMMODATION BED & BREAKFAST,Place,Bed & Breakfast,A56000
Royal Borough of Kingston,31/01/2024,70064794,"1,798.00",APEX HOUSING SOLUTIONS LTD,ACCOMMODATION BED & BREAKFAST,Place,Bed & Breakfast,A56000
Royal Borough of Kingston,31/01/2024,70064795,"2,635.00",APEX HOUSING SOLUTIONS LTD,ACCOMMODATION BED & BREAKFAST,Place,Bed & Breakfast,A56000
Royal Borough of Kingston,31/01/2024,70064796,"2,635.00",APEX HOUSING SOLUTIONS LTD,ACCOMMODATION BED & BREAKFAST,Place,Bed & Breakfast,A56000
Royal Borough of Kingston,31/01/2024,70064797,"3,100.00",APEX HOUSING SOLUTIONS LTD,ACCOMMODATION BED & BREAKFAST,Place,Bed & Breakfast,A56000
Royal Borough of Kingston,31/01/2024,70064798,"2,790.00",APEX HOUSING SOLUTIONS LTD,ACCOMMODATION BED & BREAKFAST,Place,Bed & Breakfast,A56000
Royal Borough of Kingston,31/01/2024,70064799,"1,240.00",APEX HOUSING SOLUTIONS LTD,ACCOMMODATION BED & BREAKFAST,Place,Bed & Breakfast,A56000
Royal Borough of Kingston,31/07/2022,70064800,"2,077.00",APEX HOUSING SOLUTIONS LTD,ACCOMMODATION BED & BREAKFAST,Place,Bed & Breakfast,A56000
Royal Borough of Kingston,18/01/2024,70064234,"1,400.25",AQUAM WATER SERVICES LTD,OPERATIONAL EQUIPMENT/MATERIAL,Housing Revenue Account,Water Services,A24005
Royal Borough of Kingston,29/01/2024,70063751,"35,721.00",Aquamaintain Ltd,AGRICULTURAL & ESTATE SERVICES,Corporate & Communities,Infrastructure Assets - Purchase & Enhancement,C12001
Royal Borough of Kingston,01/02/2024,90308571,"3,251.23",Aria Healthcare Group Ltd,SOCIAL SERVICES-HOME CARE,Adult Social Care & Health,Independent Placements,A56006
Royal Borough of Kingston,01/02/2024,90308590,"3,640.78",Aria Healthcare Group Ltd,SOCIAL SERVICES-HOME CARE,Adult Social Care & Health,Independent Placements,A56006
Royal Borough of Kingston,08/12/2023,70063526,"20,045.00",ASCENDIT LIFTS LTD,BUILDING MNTCE - SERVICES,Corporate & Communities,Grants Given For Capital Purposes,C20004
Royal Borough of Kingston,06/02/2024,90303315,500.00,REDACTED - PERSONAL DATA,CHARITIES & VOLUNTARY ORGNS,Adult Social Care & Health,"Grants, Contributions & Donations",A47005
Royal Borough of Kingston,01/02/2024,90308940,"9,686.00",ASHCROFT CARE SERVICES LIMITED,SOCIAL SERVICES RESIDENTIAL,Adult Social Care & Health,Independent Placements,A56006
Royal Borough of Kingston,01/02/2024,90310485,-500.46,ASHCROFT CARE SERVICES LIMITED,SOCIAL SERVICES RESIDENTIAL,Adult Social Care & Health,Financially Assessed Contributions clients � Non VAT,A92047
Royal Borough of Kingston,01/02/2024,90310357,935.54,ASHINGTON HOUSE LTD,SOCIAL SERVICES RESIDENTIAL,Adult Social Care & Health,Personal Budget - Third Party,A61019
Royal Borough of Kingston,01/02/2024,90310318,"1,362.17",ASHPRIME PROPERTIES LTD,SOCIAL SERVICES RESIDENTIAL,Adult Social Care & Health,Personal Budget - Third Party,A61019
Royal Borough of Kingston,22/02/2024,90308266,"1,595.92",REDACTED - PERSONAL DATA,PLS LANDLORDS,Place,PSL Payments To Landlords,A22031
Royal Borough of Kingston,05/02/2024,70064984,77.04,ASKEWS AND HOLTS LIBRARY SERVICES LTD,BOOKS PUBLICATIONS STATIONERY,Corporate & Communities,Books,A43050
Royal Borough of Kingston,05/02/2024,70064984,131.28,ASKEWS AND HOLTS LIBRARY SERVICES LTD,BOOKS PUBLICATIONS STATIONERY,Corporate & Communities,Books,A43050
Royal Borough of Kingston,05/02/2024,70064984,205.88,ASKEWS AND HOLTS LIBRARY SERVICES LTD,BOOKS PUBLICATIONS STATIONERY,Corporate & Communities,Books,A43050
Royal Borough of Kingston,05/02/2024,70064984,128.16,ASKEWS AND HOLTS LIBRARY SERVICES LTD,BOOKS PUBLICATIONS STATIONERY,Corporate & Communities,Books,A43050
Royal Borough of Kingston,01/02/2024,90310347,"2,608.38",Aspirations Care Ltd,SOCIAL SERVICES - OTHER,Adult Social Care & Health,Personal Budget - Third Party,A61019
Royal Borough of Kingston,01/02/2024,90308790,"3,833.80",ASPREY HEALTHCARE LTD,SOCIAL SERVICES RESIDENTIAL,Adult Social Care & Health,Independent Placements,A56006
Royal Borough of Kingston,01/02/2024,90308600,"4,539.04",ASTORIA HEALTHCARE LTD,SOCIAL SERVICES RESIDENTIAL,Adult Social Care & Health,Independent Placements,A56006
Royal Borough of Kingston,22/02/2024,90308204,"1,094.34",AUMKARA INVESTMENTS LTD,PLS LANDLORDS,Place,PSL Payments To Landlords,A22031
Royal Borough of Kingston,22/02/2024,90308205,"1,094.34",AUMKARA INVESTMENTS LTD,PLS LANDLORDS,Place,PSL Payments To Landlords,A22031
Royal Borough of Kingston,22/02/2024,90308206,"1,094.34",AUMKARA INVESTMENTS LTD,PLS LANDLORDS,Place,PSL Payments To Landlords,A22031
Royal Borough of Kingston,01/02/2024,90308873,"11,143.75",AUTISM CONSULTANTS LTD ,SOCIAL SERVICES RESIDENTIAL,Adult Social Care & Health,Independent Placements,A56006
Royal Borough of Kingston,23/01/2024,70063702,"1,247.00",AVICENNA PSYCHIATRY,SOCIAL SERVICES - OTHER,Adult Social Care & Health,Other Private Contractors - Third Party,A56080
Royal Borough of Kingston,30/01/2024,70064291,"14,422.70",AVICENNA PSYCHIATRY,SOCIAL SERVICES - OTHER,Adult Social Care & Health,Other Private Contractors - Third Party,A56080
Royal Borough of Kingston,20/02/2024,70065474,"3,260.29",REDACTED - PERSONAL DATA,SUNDRY SUPPLIER - HOUSING,Place,Prevention Of Homelessness,A44141
Royal Borough of Kingston,29/01/2024,70063654,"8,724.29",AXIS EUROPE PLC,CONSTRUCTION INDUSTRY,Housing Revenue Account,Void Property Repairs,A20036
Royal Borough of Kingston,29/01/2024,70063655,"122,773.10",AXIS EUROPE PLC,CONSTRUCTION INDUSTRY,Housing Revenue Account,Housing - Heating & Ventilation,A20045
Royal Borough of Kingston,29/01/2024,70063656,"38,782.56",AXIS EUROPE PLC,CONSTRUCTION INDUSTRY,Housing Revenue Account,Void Property Repairs,A20036
Royal Borough of Kingston,29/01/2024,70063657,"26,989.66",AXIS EUROPE PLC,CONSTRUCTION INDUSTRY,Place,Void Property Repairs,A20036
Royal Borough of Kingston,29/01/2024,70063658,"51,193.78",AXIS EUROPE PLC,CONSTRUCTION INDUSTRY,Housing Revenue Account,Electrical Repairs,A20002
Royal Borough of Kingston,29/01/2024,70063659,"-34,872.29",AXIS EUROPE PLC,CONSTRUCTION INDUSTRY,Housing Revenue Account,Void Property Repairs,A20036
Royal Borough of Kingston,29/01/2024,70063660,"-125,188.32",AXIS EUROPE PLC,CONSTRUCTION INDUSTRY,Housing Revenue Account,Void Property Repairs,A20036
Royal Borough of Kingston,29/01/2024,70063661,"-203,056.90",AXIS EUROPE PLC,CONSTRUCTION INDUSTRY,Housing Revenue Account,Property Repairs & Maintenance & Alterations - Responsive,A20011
Royal Borough of Kingston,29/01/2024,70063663,"59,245.30",AXIS EUROPE PLC,CONSTRUCTION INDUSTRY,Housing Revenue Account,Housing - Heating & Ventilation,A20045
Royal Borough of Kingston,29/01/2024,70063664,706.48,AXIS EUROPE PLC,CONSTRUCTION INDUSTRY,Place,Void Property Repairs,A20036
Royal Borough of Kingston,29/01/2024,70063665,"1,340.04",AXIS EUROPE PLC,CONSTRUCTION INDUSTRY,Housing Revenue Account,Electrical Repairs,A20002
Royal Borough of Kingston,29/01/2024,70063666,"6,546.69",AXIS EUROPE PLC,CONSTRUCTION INDUSTRY,Housing Revenue Account,Property Repairs & Maintenance & Alterations - Responsive,A20011
Royal Borough of Kingston,29/01/2024,70063667,"3,213.68",AXIS EUROPE PLC,CONSTRUCTION INDUSTRY,Housing Revenue Account,Housing - Heating & Ventilation,A20045
Royal Borough of Kingston,29/01/2024,70063669,"1,015.16",AXIS EUROPE PLC,CONSTRUCTION INDUSTRY,Housing Revenue Account,Void Property Repairs,A20036
Royal Borough of Kingston,29/01/2024,70063672,"-12,408.81",AXIS EUROPE PLC,CONSTRUCTION INDUSTRY,Place,Void Property Repairs,A20036
Royal Borough of Kingston,29/01/2024,70063673,"-28,113.12",AXIS EUROPE PLC,CONSTRUCTION INDUSTRY,Housing Revenue Account,Electrical Repairs,A20002
Royal Borough of Kingston,29/01/2024,70063676,"3,772.08",AXIS EUROPE PLC,CONSTRUCTION INDUSTRY,Housing Revenue Account,Council Dwellings - Construction & Renovation,C10002
Royal Borough of Kingston,29/01/2024,70063677,"1,000.00",AXIS EUROPE PLC,CONSTRUCTION INDUSTRY,Housing Revenue Account,Council Dwellings - Construction & Renovation,C10002
Royal Borough of Kingston,29/01/2024,70063678,"3,516.34",AXIS EUROPE PLC,CONSTRUCTION INDUSTRY,Housing Revenue Account,Council Dwellings - Construction & Renovation,C10002
Royal Borough of Kingston,29/01/2024,70063679,"9,296.00",AXIS EUROPE PLC,CONSTRUCTION INDUSTRY,Housing Revenue Account,Disabled Adaptations,C20003
Royal Borough of Kingston,29/01/2024,70063680,"1,588.69",AXIS EUROPE PLC,CONSTRUCTION INDUSTRY,Housing Revenue Account,Council Dwellings - Construction & Renovation,C10002
Royal Borough of Kingston,29/01/2024,70063682,"12,933.60",AXIS EUROPE PLC,CONSTRUCTION INDUSTRY,Housing Revenue Account,Disabled Adaptations,C20003
Royal Borough of Kingston,29/01/2024,70063684,894.47,AXIS EUROPE PLC,CONSTRUCTION INDUSTRY,Housing Revenue Account,Lift Servicing And Repairs,A20006
Royal Borough of Kingston,29/01/2024,70063685,894.66,AXIS EUROPE PLC,CONSTRUCTION INDUSTRY,Housing Revenue Account,Lift Servicing And Repairs,A20006
Royal Borough of Kingston,29/01/2024,70063686,"10,521.23",AXIS EUROPE PLC,CONSTRUCTION INDUSTRY,Housing Revenue Account,Disabled Adaptations,C20003
Royal Borough of Kingston,29/01/2024,70063687,"3,993.47",AXIS EUROPE PLC,CONSTRUCTION INDUSTRY,Housing Revenue Account,Council Dwellings - Construction & Renovation,C10002
Royal Borough of Kingston,29/01/2024,70063689,"7,907.92",AXIS EUROPE PLC,CONSTRUCTION INDUSTRY,Housing Revenue Account,Council Dwellings - Construction & Renovation,C10002
Royal Borough of Kingston,29/01/2024,70063691,559.85,AXIS EUROPE PLC,CONSTRUCTION INDUSTRY,Housing Revenue Account,Lift Servicing And Repairs,A20006
Royal Borough of Kingston,29/01/2024,70063711,"1,192.17",AXIS EUROPE PLC,CONSTRUCTION INDUSTRY,Housing Revenue Account,Council Dwellings - Construction & Renovation,C10002
Royal Borough of Kingston,31/01/2024,70063884,"2,626.51",AXIS EUROPE PLC,CONSTRUCTION INDUSTRY,Housing Revenue Account,Council Dwellings - Construction & Renovation,C10002
Royal Borough of Kingston,31/01/2024,70063885,"3,101.72",AXIS EUROPE PLC,CONSTRUCTION INDUSTRY,Housing Revenue Account,Council Dwellings - Construction & Renovation,C10002
Royal Borough of Kingston,31/01/2024,70063890,"3,894.32",AXIS EUROPE PLC,CONSTRUCTION INDUSTRY,Housing Revenue Account,Council Dwellings - Construction & Renovation,C10002
Royal Borough of Kingston,31/01/2024,70063933,"3,373.63",AXIS EUROPE PLC,CONSTRUCTION INDUSTRY,Housing Revenue Account,Council Dwellings - Construction & Renovation,C10002
Royal Borough of Kingston,31/01/2024,70063934,"2,810.00",AXIS EUROPE PLC,CONSTRUCTION INDUSTRY,Housing Revenue Account,Council Dwellings - Construction & Renovation,C10002
Royal Borough of Kingston,31/01/2024,70063935,"2,521.20",AXIS EUROPE PLC,CONSTRUCTION INDUSTRY,Housing Revenue Account,Council Dwellings - Construction & Renovation,C10002
Royal Borough of Kingston,31/01/2024,70063936,"3,332.96",AXIS EUROPE PLC,CONSTRUCTION INDUSTRY,Housing Revenue Account,Council Dwellings - Construction & Renovation,C10002
Royal Borough of Kingston,18/12/2023,70064340,"12,631.16",AXIS EUROPE PLC,CONSTRUCTION INDUSTRY,Housing Revenue Account,Disabled Adaptations,C20003
Royal Borough of Kingston,18/12/2023,70064341,"1,372.74",AXIS EUROPE PLC,CONSTRUCTION INDUSTRY,Housing Revenue Account,Asbestos Removal,C10000
Royal Borough of Kingston,22/02/2024,90308203,"1,314.00",REDACTED - PERSONAL DATA,PLS LANDLORDS,Place,PSL Payments To Landlords,A22031
Royal Borough of Kingston,22/02/2024,90308313,"1,094.00",REDACTED - PERSONAL DATA,PLS LANDLORDS,Place,PSL Payments To Landlords,A22031
Royal Borough of Kingston,22/02/2024,90308004,758.33,REDACTED - PERSONAL DATA,PLS LANDLORDS,Place,PSL Payments To Landlords,A22031
Royal Borough of Kingston,03/11/2023,70063836,"1,800.00",Baily Garner LLP,TEMP STAFF & CONSULTANCY,Housing Revenue Account,Professional Fees,A44066
Royal Borough of Kingston,20/12/2023,70063837,"4,200.00",Baily Garner LLP,TEMP STAFF & CONSULTANCY,Housing Revenue Account,Professional Fees,A44066
Royal Borough of Kingston,01/02/2024,90309042,"2,325.80",BALANCE (SUPPORT) C.I.C,SOCIAL SERVICES - OTHER,Adult Social Care & Health,Supported Living - new framework,A56126
Royal Borough of Kingston,01/02/2024,90309043,578.39,BALANCE (SUPPORT) C.I.C,SOCIAL SERVICES - OTHER,Adult Social Care & Health,Supported Living - new framework,A56126
Royal Borough of Kingston,01/02/2024,90309047,"1,744.34",BALANCE (SUPPORT) C.I.C,SOCIAL SERVICES - OTHER,Adult Social Care & Health,Supported Living - new framework,A56126
Royal Borough of Kingston,01/02/2024,90309048,"1,306.31",BALANCE (SUPPORT) C.I.C,SOCIAL SERVICES - OTHER,Adult Social Care & Health,Supported Living - new framework,A56126
Royal Borough of Kingston,01/02/2024,90309053,"1,567.57",BALANCE (SUPPORT) C.I.C,SOCIAL SERVICES - OTHER,Adult Social Care & Health,Supported Living - new framework,A56126
Royal Borough of Kingston,01/02/2024,90309063,870.87,BALANCE (SUPPORT) C.I.C,SOCIAL SERVICES - OTHER,Adult Social Care & Health,Supported Living - new framework,A56126
Royal Borough of Kingston,01/02/2024,90309064,"1,665.54",BALANCE (SUPPORT) C.I.C,SOCIAL SERVICES - OTHER,Adult Social Care & Health,Supported Living - new framework,A56126
Royal Borough of Kingston,01/02/2024,90309073,"2,220.72",BALANCE (SUPPORT) C.I.C,SOCIAL SERVICES - OTHER,Adult Social Care & Health,Supported Living - new framework,A56126
Royal Borough of Kingston,01/02/2024,90309074,546.16,BALANCE (SUPPORT) C.I.C,SOCIAL SERVICES - OTHER,Adult Social Care & Health,Supported Living - new framework,A56126
Royal Borough of Kingston,01/02/2024,90309082,"1,132.13",BALANCE (SUPPORT) C.I.C,SOCIAL SERVICES - OTHER,Adult Social Care & Health,Supported Living - new framework,A56126
Royal Borough of Kingston,01/02/2024,90309083,"2,220.72",BALANCE (SUPPORT) C.I.C,SOCIAL SERVICES - OTHER,Adult Social Care & Health,Supported Living - new framework,A56126
Royal Borough of Kingston,01/02/2024,90309084,546.16,BALANCE (SUPPORT) C.I.C,SOCIAL SERVICES - OTHER,Adult Social Care & Health,Supported Living - new framework,A56126
Royal Borough of Kingston,01/02/2024,90309085,"1,744.34",BALANCE (SUPPORT) C.I.C,SOCIAL SERVICES - OTHER,Adult Social Care & Health,Supported Living - new framework,A56126
Royal Borough of Kingston,01/02/2024,90309086,656.69,BALANCE (SUPPORT) C.I.C,SOCIAL SERVICES - OTHER,Adult Social Care & Health,Supported Living - new framework,A56126
Royal Borough of Kingston,01/02/2024,90309087,696.70,BALANCE (SUPPORT) C.I.C,SOCIAL SERVICES - OTHER,Adult Social Care & Health,Supported Living - new framework,A56126
Royal Borough of Kingston,01/02/2024,90309089,"2,220.72",BALANCE (SUPPORT) C.I.C,SOCIAL SERVICES - OTHER,Adult Social Care & Health,Supported Living - new framework,A56126
Royal Borough of Kingston,01/02/2024,90309090,546.16,BALANCE (SUPPORT) C.I.C,SOCIAL SERVICES - OTHER,Adult Social Care & Health,Supported Living - new framework,A56126
Royal Borough of Kingston,01/02/2024,90309091,609.61,BALANCE (SUPPORT) C.I.C,SOCIAL SERVICES - OTHER,Adult Social Care & Health,Supported Living - new framework,A56126
Royal Borough of Kingston,01/02/2024,90309101,"9,144.14",BALANCE (SUPPORT) C.I.C,SOCIAL SERVICES - OTHER,Adult Social Care & Health,Supported Living - new framework,A56126
Royal Borough of Kingston,01/02/2024,90309102,"1,638.50",BALANCE (SUPPORT) C.I.C,SOCIAL SERVICES - OTHER,Adult Social Care & Health,Supported Living - new framework,A56126
Royal Borough of Kingston,01/02/2024,90309103,957.96,BALANCE (SUPPORT) C.I.C,SOCIAL SERVICES - OTHER,Adult Social Care & Health,Supported Living - new framework,A56126
Royal Borough of Kingston,01/02/2024,90309104,"1,665.54",BALANCE (SUPPORT) C.I.C,SOCIAL SERVICES - OTHER,Adult Social Care & Health,Supported Living - new framework,A56126
Royal Borough of Kingston,01/02/2024,90309112,"1,665.54",BALANCE (SUPPORT) C.I.C,SOCIAL SERVICES - OTHER,Adult Social Care & Health,Supported Living - new framework,A56126
Royal Borough of Kingston,08/01/2024,90309127,630.60,BALANCE (SUPPORT) C.I.C,SOCIAL SERVICES - OTHER,Adult Social Care & Health,Supported Living - new framework,A56126
Royal Borough of Kingston,08/01/2024,90309128,504.48,BALANCE (SUPPORT) C.I.C,SOCIAL SERVICES - OTHER,Adult Social Care & Health,Supported Living - new framework,A56126
Royal Borough of Kingston,08/01/2024,90309130,840.80,BALANCE (SUPPORT) C.I.C,SOCIAL SERVICES - OTHER,Adult Social Care & Health,Supported Living - new framework,A56126
Royal Borough of Kingston,08/01/2024,90309132,-882.84,BALANCE (SUPPORT) C.I.C,SOCIAL SERVICES - OTHER,Adult Social Care & Health,Supported Living - new framework,A56126
Royal Borough of Kingston,08/01/2024,90309133,840.80,BALANCE (SUPPORT) C.I.C,SOCIAL SERVICES - OTHER,Adult Social Care & Health,Supported Living - new framework,A56126
Royal Borough of Kingston,08/01/2024,90309134,588.56,BALANCE (SUPPORT) C.I.C,SOCIAL SERVICES - OTHER,Adult Social Care & Health,Supported Living - new framework,A56126
Royal Borough of Kingston,08/01/2024,90309136,924.88,BALANCE (SUPPORT) C.I.C,SOCIAL SERVICES - OTHER,Adult Social Care & Health,Supported Living - new framework,A56126
Royal Borough of Kingston,08/01/2024,90309137,"1,135.08",BALANCE (SUPPORT) C.I.C,SOCIAL SERVICES - OTHER,Adult Social Care & Health,Supported Living - new framework,A56126
Royal Borough of Kingston,08/01/2024,90309138,504.48,BALANCE (SUPPORT) C.I.C,SOCIAL SERVICES - OTHER,Adult Social Care & Health,Supported Living - new framework,A56126
Royal Borough of Kingston,08/01/2024,90309142,"1,261.20",BALANCE (SUPPORT) C.I.C,SOCIAL SERVICES - OTHER,Adult Social Care & Health,Supported Living - new framework,A56126
Royal Borough of Kingston,08/01/2024,90309143,"1,933.84",BALANCE (SUPPORT) C.I.C,SOCIAL SERVICES - OTHER,Adult Social Care & Health,Supported Living - new framework,A56126
Royal Borough of Kingston,08/01/2024,90309144,672.64,BALANCE (SUPPORT) C.I.C,SOCIAL SERVICES - OTHER,Adult Social Care & Health,Supported Living - new framework,A56126
Royal Borough of Kingston,08/01/2024,90309148,504.48,BALANCE (SUPPORT) C.I.C,SOCIAL SERVICES - OTHER,Adult Social Care & Health,Supported Living - new framework,A56126
Royal Borough of Kingston,08/01/2024,90309149,504.48,BALANCE (SUPPORT) C.I.C,SOCIAL SERVICES - OTHER,Adult Social Care & Health,Supported Living - new framework,A56126
Royal Borough of Kingston,08/01/2024,90309151,"1,345.28",BALANCE (SUPPORT) C.I.C,SOCIAL SERVICES - OTHER,Adult Social Care & Health,Supported Living - new framework,A56126
Royal Borough of Kingston,08/01/2024,90309154,588.56,BALANCE (SUPPORT) C.I.C,SOCIAL SERVICES - OTHER,Adult Social Care & Health,Supported Living - new framework,A56126
Royal Borough of Kingston,08/01/2024,90309155,672.64,BALANCE (SUPPORT) C.I.C,SOCIAL SERVICES - OTHER,Adult Social Care & Health,Supported Living - new framework,A56126
Royal Borough of Kingston,08/01/2024,90309156,"1,429.36",BALANCE (SUPPORT) C.I.C,SOCIAL SERVICES - OTHER,Adult Social Care & Health,Supported Living - new framework,A56126
Royal Borough of Kingston,08/01/2024,90309157,"1,261.20",BALANCE (SUPPORT) C.I.C,SOCIAL SERVICES - OTHER,Adult Social Care & Health,Supported Living - new framework,A56126
Royal Borough of Kingston,08/01/2024,90309158,756.72,BALANCE (SUPPORT) C.I.C,SOCIAL SERVICES - OTHER,Adult Social Care & Health,Supported Living - new framework,A56126
Royal Borough of Kingston,08/01/2024,90309160,504.48,BALANCE (SUPPORT) C.I.C,SOCIAL SERVICES - OTHER,Adult Social Care & Health,Supported Living - new framework,A56126
Royal Borough of Kingston,08/01/2024,90309161,504.48,BALANCE (SUPPORT) C.I.C,SOCIAL SERVICES - OTHER,Adult Social Care & Health,Supported Living - new framework,A56126
Royal Borough of Kingston,08/01/2024,90309166,756.72,BALANCE (SUPPORT) C.I.C,SOCIAL SERVICES - OTHER,Adult Social Care & Health,Supported Living - new framework,A56126
Royal Borough of Kingston,08/01/2024,90309170,672.64,BALANCE (SUPPORT) C.I.C,SOCIAL SERVICES - OTHER,Adult Social Care & Health,Supported Living - new framework,A56126
Royal Borough of Kingston,08/01/2024,90309171,"1,429.36",BALANCE (SUPPORT) C.I.C,SOCIAL SERVICES - OTHER,Adult Social Care & Health,Supported Living - new framework,A56126
Royal Borough of Kingston,08/01/2024,90309172,504.48,BALANCE (SUPPORT) C.I.C,SOCIAL SERVICES - OTHER,Adult Social Care & Health,Supported Living - new framework,A56126
Royal Borough of Kingston,08/01/2024,90309175,672.64,BALANCE (SUPPORT) C.I.C,SOCIAL SERVICES - OTHER,Adult Social Care & Health,Supported Living - new framework,A56126
Royal Borough of Kingston,08/01/2024,90309176,504.48,BALANCE (SUPPORT) C.I.C,SOCIAL SERVICES - OTHER,Adult Social Care & Health,Supported Living - new framework,A56126
Royal Borough of Kingston,08/01/2024,90309177,"1,177.12",BALANCE (SUPPORT) C.I.C,SOCIAL SERVICES - OTHER,Adult Social Care & Health,Supported Living - new framework,A56126
Royal Borough of Kingston,08/01/2024,90309178,504.48,BALANCE (SUPPORT) C.I.C,SOCIAL SERVICES - OTHER,Adult Social Care & Health,Supported Living - new framework,A56126
Royal Borough of Kingston,08/01/2024,90309180,"1,513.44",BALANCE (SUPPORT) C.I.C,SOCIAL SERVICES - OTHER,Adult Social Care & Health,Supported Living - new framework,A56126
Royal Borough of Kingston,08/01/2024,90309182,672.64,BALANCE (SUPPORT) C.I.C,SOCIAL SERVICES - OTHER,Adult Social Care & Health,Supported Living - new framework,A56126
Royal Borough of Kingston,08/01/2024,90309183,"1,681.60",BALANCE (SUPPORT) C.I.C,SOCIAL SERVICES - OTHER,Adult Social Care & Health,Supported Living - new framework,A56126
Royal Borough of Kingston,08/01/2024,90309236,504.48,BALANCE (SUPPORT) C.I.C,SOCIAL SERVICES - OTHER,Adult Social Care & Health,Supported Living - new framework,A56126
Royal Borough of Kingston,08/01/2024,90309249,672.64,BALANCE (SUPPORT) C.I.C,SOCIAL SERVICES - OTHER,Adult Social Care & Health,Supported Living - new framework,A56126
Royal Borough of Kingston,08/01/2024,90309250,"1,008.96",BALANCE (SUPPORT) C.I.C,SOCIAL SERVICES - OTHER,Adult Social Care & Health,Supported Living - new framework,A56126
Royal Borough of Kingston,08/01/2024,90309254,672.64,BALANCE (SUPPORT) C.I.C,SOCIAL SERVICES - OTHER,Adult Social Care & Health,Supported Living - new framework,A56126
Royal Borough of Kingston,29/01/2024,90310005,832.00,BALANCE (SUPPORT) C.I.C,SOCIAL SERVICES - OTHER,Adult Social Care & Health,Day Opps / Day Care -� Community-based�,A56145
Royal Borough of Kingston,29/01/2024,90310005,832.00,BALANCE (SUPPORT) C.I.C,SOCIAL SERVICES - OTHER,Adult Social Care & Health,Day Opps / Day Care -� Community-based�,A56145
Royal Borough of Kingston,29/01/2024,90310006,"-1,040.00",BALANCE (SUPPORT) C.I.C,SOCIAL SERVICES - OTHER,Adult Social Care & Health,Day Opps / Day Care -� Community-based�,A56145
Royal Borough of Kingston,29/01/2024,90310006,"-1,040.00",BALANCE (SUPPORT) C.I.C,SOCIAL SERVICES - OTHER,Adult Social Care & Health,Day Opps / Day Care -� Community-based�,A56145
Royal Borough of Kingston,29/01/2024,90310007,832.00,BALANCE (SUPPORT) C.I.C,SOCIAL SERVICES - OTHER,Adult Social Care & Health,Day Opps / Day Care -� Community-based�,A56145
Royal Borough of Kingston,29/01/2024,90310007,832.00,BALANCE (SUPPORT) C.I.C,SOCIAL SERVICES - OTHER,Adult Social Care & Health,Day Opps / Day Care -� Community-based�,A56145
Royal Borough of Kingston,29/01/2024,90310008,"-1,040.00",BALANCE (SUPPORT) C.I.C,SOCIAL SERVICES - OTHER,Adult Social Care & Health,Day Opps / Day Care -� Community-based�,A56145
Royal Borough of Kingston,29/01/2024,90310008,"-1,040.00",BALANCE (SUPPORT) C.I.C,SOCIAL SERVICES - OTHER,Adult Social Care & Health,Day Opps / Day Care -� Community-based�,A56145
Royal Borough of Kingston,29/01/2024,90310009,832.00,BALANCE (SUPPORT) C.I.C,SOCIAL SERVICES - OTHER,Adult Social Care & Health,Day Opps / Day Care -� Community-based�,A56145
Royal Borough of Kingston,29/01/2024,90310009,832.00,BALANCE (SUPPORT) C.I.C,SOCIAL SERVICES - OTHER,Adult Social Care & Health,Day Opps / Day Care -� Community-based�,A56145
Royal Borough of Kingston,29/01/2024,90310010,"-1,040.00",BALANCE (SUPPORT) C.I.C,SOCIAL SERVICES - OTHER,Adult Social Care & Health,Day Opps / Day Care -� Community-based�,A56145
Royal Borough of Kingston,29/01/2024,90310010,"-1,040.00",BALANCE (SUPPORT) C.I.C,SOCIAL SERVICES - OTHER,Adult Social Care & Health,Day Opps / Day Care -� Community-based�,A56145
Royal Borough of Kingston,29/01/2024,90310011,832.00,BALANCE (SUPPORT) C.I.C,SOCIAL SERVICES - OTHER,Adult Social Care & Health,Day Opps / Day Care -� Community-based�,A56145
Royal Borough of Kingston,29/01/2024,90310011,832.00,BALANCE (SUPPORT) C.I.C,SOCIAL SERVICES - OTHER,Adult Social Care & Health,Day Opps / Day Care -� Community-based�,A56145
Royal Borough of Kingston,08/01/2024,90310028,504.48,BALANCE (SUPPORT) C.I.C,SOCIAL SERVICES - OTHER,Adult Social Care & Health,S-L non - framework - other support,A56159
Royal Borough of Kingston,08/01/2024,90310028,504.48,BALANCE (SUPPORT) C.I.C,SOCIAL SERVICES - OTHER,Adult Social Care & Health,S-L non - framework - other support,A56159
Royal Borough of Kingston,08/01/2024,90310032,"1,261.20",BALANCE (SUPPORT) C.I.C,SOCIAL SERVICES - OTHER,Adult Social Care & Health,S-L non - framework - other support,A56159
Royal Borough of Kingston,08/01/2024,90310032,"1,261.20",BALANCE (SUPPORT) C.I.C,SOCIAL SERVICES - OTHER,Adult Social Care & Health,S-L non - framework - other support,A56159
Royal Borough of Kingston,08/01/2024,90310057,"1,429.36",BALANCE (SUPPORT) C.I.C,SOCIAL SERVICES - OTHER,Adult Social Care & Health,S-L non - framework - other support,A56159
Royal Borough of Kingston,08/01/2024,90310057,"1,429.36",BALANCE (SUPPORT) C.I.C,SOCIAL SERVICES - OTHER,Adult Social Care & Health,S-L non - framework - other support,A56159
Royal Borough of Kingston,01/02/2024,90310115,512.90,BALANCE (SUPPORT) C.I.C,SOCIAL SERVICES - OTHER,Adult Social Care & Health,Personal Budget - Third Party,A61019
Royal Borough of Kingston,01/02/2024,90310116,512.90,BALANCE (SUPPORT) C.I.C,SOCIAL SERVICES - OTHER,Adult Social Care & Health,Personal Budget - Third Party,A61019
Royal Borough of Kingston,01/02/2024,90310117,"12,099.21",BALANCE (SUPPORT) C.I.C,SOCIAL SERVICES - OTHER,Adult Social Care & Health,Personal Budget - Third Party,A61019
Royal Borough of Kingston,29/01/2024,90310168,624.00,BALANCE (SUPPORT) C.I.C,SOCIAL SERVICES - OTHER,Adult Social Care & Health,Personal Budget - Third Party,A61019
Royal Borough of Kingston,29/01/2024,90310241,"1,040.00",BALANCE (SUPPORT) C.I.C,SOCIAL SERVICES - OTHER,Adult Social Care & Health,Personal Budget - Third Party,A61019
Royal Borough of Kingston,29/01/2024,90310242,832.00,BALANCE (SUPPORT) C.I.C,SOCIAL SERVICES - OTHER,Adult Social Care & Health,Personal Budget - Third Party,A61019
Royal Borough of Kingston,29/01/2024,90310249,"1,040.00",BALANCE (SUPPORT) C.I.C,SOCIAL SERVICES - OTHER,Adult Social Care & Health,Personal Budget - Third Party,A61019
Royal Borough of Kingston,01/02/2024,90310286,"2,597.82",BALANCE (SUPPORT) C.I.C,SOCIAL SERVICES - OTHER,Adult Social Care & Health,Personal Budget - Third Party,A61019
Royal Borough of Kingston,01/02/2024,90310302,"-1,454.48",BALANCE (SUPPORT) C.I.C,SOCIAL SERVICES - OTHER,Adult Social Care & Health,Personal Budget - Third Party,A61019
Royal Borough of Kingston,01/02/2024,90310303,"-1,454.48",BALANCE (SUPPORT) C.I.C,SOCIAL SERVICES - OTHER,Adult Social Care & Health,Personal Budget - Third Party,A61019
Royal Borough of Kingston,01/02/2024,90310349,"2,312.20",BALANCE (SUPPORT) C.I.C,SOCIAL SERVICES - OTHER,Adult Social Care & Health,Personal Budget - Third Party,A61019
Royal Borough of Kingston,01/02/2024,90310414,540.00,BALANCE (SUPPORT) C.I.C,SOCIAL SERVICES - OTHER,Adult Social Care & Health,Personal Budget - Third Party,A61019
Royal Borough of Kingston,01/02/2024,90308531,"3,525.78",BARCHESTER HEALTHCARE ,SOCIAL SERVICES RESIDENTIAL,Adult Social Care & Health,Independent Placements,A56006
Royal Borough of Kingston,23/02/2024,70065858,"2,319.42",Baron Solicitors Limited ,SUNDRY SUPPLIER - FINANCE,Housing Revenue Account,Vandalism Damage,A20029
Royal Borough of Kingston,06/02/2024,90303317,500.00,REDACTED - PERSONAL DATA,CHARITIES & VOLUNTARY ORGNS,Adult Social Care & Health,"Grants, Contributions & Donations",A47005
Royal Borough of Kingston,01/02/2024,90308792,"4,406.67",BAVANI CARE HOME LIMITED,SOCIAL SERVICES RESIDENTIAL,Adult Social Care & Health,Independent Placements,A56006
Royal Borough of Kingston,01/02/2024,90308805,"3,915.00",BAVANI CARE HOME LIMITED,SOCIAL SERVICES RESIDENTIAL,Adult Social Care & Health,Independent Placements,A56006
Royal Borough of Kingston,01/02/2024,90308816,"5,592.86",BAVANI CARE HOME LIMITED,SOCIAL SERVICES RESIDENTIAL,Adult Social Care & Health,Independent Placements,A56006
Royal Borough of Kingston,01/02/2024,90309935,"1,000.00",Bellsgrove Ltd,SOCIAL SERVICES RESIDENTIAL,Adult Social Care & Health,Residential / Nursing Placement,A56138
Royal Borough of Kingston,01/02/2024,90309935,"1,000.00",Bellsgrove Ltd,SOCIAL SERVICES RESIDENTIAL,Adult Social Care & Health,Residential / Nursing Placement,A56138
Royal Borough of Kingston,29/01/2024,70063717,"2,700.00",Beta Streets Ltd,BUSINESS & COMPUTER SYSTEMS,Corporate & Communities,Infrastructure Assets - Project Management,C12000
Royal Borough of Kingston,31/01/2024,70063712,"5,235.45",CHELSEA & WESTMINSTER HOSPITAL NHS FT,MANAGEMENT & TRAINING SERVICES,Adult Social Care & Health,Other Private Contractors - Third Party,A56080
Royal Borough of Kingston,06/02/2024,70064198,"1,248.58",REDACTED - PERSONAL DATA,PLS LANDLORDS,Place,PSL Payments To Landlords,A22031
Royal Borough of Kingston,22/02/2024,90307990,"1,595.63",REDACTED - PERSONAL DATA,PLS LANDLORDS,Place,PSL Payments To Landlords,A22031
Royal Borough of Kingston,06/02/2024,70064206,"2,500.00",REDACTED - PERSONAL DATA,SUNDRY SUPPLIER - HOUSING,Place,Housing Incentives,A62025
Royal Borough of Kingston,19/01/2024,70063256,"25,000.00",Bindmans LLP,SUNDRY SUPPLIER - FINANCE,Adult Social Care & Health,Legal Services,A44025
Royal Borough of Kingston,15/01/2024,90304101,559.02,BLUE ARROW CARE LTD,SOCIAL SERVICES-HOME CARE,Adult Social Care & Health,Personal Budget - Third Party,A61019
Royal Borough of Kingston,15/01/2024,90304115,709.86,BLUE ARROW CARE LTD,SOCIAL SERVICES-HOME CARE,Adult Social Care & Health,Personal Budget - Third Party,A61019
Royal Borough of Kingston,22/01/2024,90306377,745.36,BLUE ARROW CARE LTD,SOCIAL SERVICES-HOME CARE,Adult Social Care & Health,Homecare - non - Framework - single - handed,A56165
Royal Borough of Kingston,22/01/2024,90306377,745.36,BLUE ARROW CARE LTD,SOCIAL SERVICES-HOME CARE,Adult Social Care & Health,Homecare - non - Framework - single - handed,A56165
Royal Borough of Kingston,22/01/2024,90306378,745.36,BLUE ARROW CARE LTD,SOCIAL SERVICES-HOME CARE,Adult Social Care & Health,Homecare - non - Framework - single - handed,A56165
Royal Borough of Kingston,22/01/2024,90306378,745.36,BLUE ARROW CARE LTD,SOCIAL SERVICES-HOME CARE,Adult Social Care & Health,Homecare - non - Framework - single - handed,A56165
Royal Borough of Kingston,22/01/2024,90306379,745.36,BLUE ARROW CARE LTD,SOCIAL SERVICES-HOME CARE,Adult Social Care & Health,Homecare - non - Framework - single - handed,A56165
Royal Borough of Kingston,22/01/2024,90306379,745.36,BLUE ARROW CARE LTD,SOCIAL SERVICES-HOME CARE,Adult Social Care & Health,Homecare - non - Framework - single - handed,A56165
Royal Borough of Kingston,22/01/2024,90306380,745.36,BLUE ARROW CARE LTD,SOCIAL SERVICES-HOME CARE,Adult Social Care & Health,Homecare - non - Framework - single - handed,A56165
Royal Borough of Kingston,22/01/2024,90306380,745.36,BLUE ARROW CARE LTD,SOCIAL SERVICES-HOME CARE,Adult Social Care & Health,Homecare - non - Framework - single - handed,A56165
Royal Borough of Kingston,22/01/2024,90306381,745.36,BLUE ARROW CARE LTD,SOCIAL SERVICES-HOME CARE,Adult Social Care & Health,Homecare - non - Framework - single - handed,A56165
Royal Borough of Kingston,22/01/2024,90306381,745.36,BLUE ARROW CARE LTD,SOCIAL SERVICES-HOME CARE,Adult Social Care & Health,Homecare - non - Framework - single - handed,A56165
Royal Borough of Kingston,22/01/2024,90306382,745.36,BLUE ARROW CARE LTD,SOCIAL SERVICES-HOME CARE,Adult Social Care & Health,Homecare - non - Framework - single - handed,A56165
Royal Borough of Kingston,22/01/2024,90306382,745.36,BLUE ARROW CARE LTD,SOCIAL SERVICES-HOME CARE,Adult Social Care & Health,Homecare - non - Framework - single - handed,A56165
Royal Borough of Kingston,22/01/2024,90306793,550.14,BLUE ARROW CARE LTD,SOCIAL SERVICES-HOME CARE,Adult Social Care & Health,Personal Budget - Third Party,A61019
Royal Borough of Kingston,22/01/2024,90306822,745.36,BLUE ARROW CARE LTD,SOCIAL SERVICES-HOME CARE,Adult Social Care & Health,Personal Budget - Third Party,A61019
Royal Borough of Kingston,29/01/2024,90307746,745.36,BLUE ARROW CARE LTD,SOCIAL SERVICES-HOME CARE,Adult Social Care & Health,Homecare - non - Framework - single - handed,A56165
Royal Borough of Kingston,29/01/2024,90307746,745.36,BLUE ARROW CARE LTD,SOCIAL SERVICES-HOME CARE,Adult Social Care & Health,Homecare - non - Framework - single - handed,A56165
Royal Borough of Kingston,29/01/2024,90307798,559.02,BLUE ARROW CARE LTD,SOCIAL SERVICES-HOME CARE,Adult Social Care & Health,Personal Budget - Third Party,A61019
Royal Borough of Kingston,29/01/2024,90307811,745.36,BLUE ARROW CARE LTD,SOCIAL SERVICES-HOME CARE,Adult Social Care & Health,Personal Budget - Third Party,A61019
Royal Borough of Kingston,05/02/2024,90310080,745.36,BLUE ARROW CARE LTD,SOCIAL SERVICES-HOME CARE,Adult Social Care & Health,Homecare - non - Framework - single - handed,A56165
Royal Borough of Kingston,05/02/2024,90310080,745.36,BLUE ARROW CARE LTD,SOCIAL SERVICES-HOME CARE,Adult Social Care & Health,Homecare - non - Framework - single - handed,A56165
Royal Borough of Kingston,05/02/2024,90310400,559.02,BLUE ARROW CARE LTD,SOCIAL SERVICES-HOME CARE,Adult Social Care & Health,Personal Budget - Third Party,A61019
Royal Borough of Kingston,05/02/2024,90310411,745.36,BLUE ARROW CARE LTD,SOCIAL SERVICES-HOME CARE,Adult Social Care & Health,Personal Budget - Third Party,A61019
Royal Borough of Kingston,26/01/2024,70063723,"3,925.00",BNP PARIBAS REAL ESTATE ADVISORY & PROPERTY MANAGEMENT UK LTD,LEGAL & PROFESSIONAL SERVICES,Place,Consultancy Services,A56007
Royal Borough of Kingston,01/02/2024,90308503,"3,175.09",BONDCARE (LONDON) LTD,SOCIAL SERVICES RESIDENTIAL,Adult Social Care & Health,Independent Placements,A56006
Royal Borough of Kingston,22/02/2024,90308154,916.66,BONSOR PENNINGTONS LTD,PLS LANDLORDS,Place,PSL Payments To Landlords,A22031
Royal Borough of Kingston,22/02/2024,90308156,900.00,BR INVESTMENTS LIMITED,PLS LANDLORDS,Place,PSL Payments To Landlords,A22031
Royal Borough of Kingston,06/02/2024,90304143,"11,291.32",BRIGHT HORIZONS FAMILY SOLUTIONS,ACADEMIC INSTNS - OTHER,Schools,PVI Providers,A60014
Royal Borough of Kingston,06/02/2024,90304219,"9,016.31",BRIGHT HORIZONS FAMILY SOLUTIONS,ACADEMIC INSTNS - OTHER,Schools,PVI Providers,A60014
Royal Borough of Kingston,06/02/2024,90304231,"11,596.00",BRIGHT HORIZONS FAMILY SOLUTIONS,ACADEMIC INSTNS - OTHER,Schools,PVI Providers,A60014
Royal Borough of Kingston,06/02/2024,90304235,"8,486.33",BRIGHT HORIZONS FAMILY SOLUTIONS,ACADEMIC INSTNS - OTHER,Schools,PVI Providers,A60014
Royal Borough of Kingston,06/02/2024,90304238,"9,528.28",BRIGHT HORIZONS FAMILY SOLUTIONS,ACADEMIC INSTNS - OTHER,Schools,PVI Providers,A60014
Royal Borough of Kingston,06/02/2024,90304255,"1,011.38",BRIGHT HORIZONS FAMILY SOLUTIONS,ACADEMIC INSTNS - OTHER,Schools,2 Yr Old Place Funding,A60000
Royal Borough of Kingston,06/02/2024,90304285,865.83,BRIGHT HORIZONS FAMILY SOLUTIONS,ACADEMIC INSTNS - OTHER,Schools,2 Yr Old Place Funding,A60000
Royal Borough of Kingston,06/02/2024,90304287,"1,818.45",BRIGHT HORIZONS FAMILY SOLUTIONS,ACADEMIC INSTNS - OTHER,Schools,2 Yr Old Place Funding,A60000
Royal Borough of Kingston,06/02/2024,90304288,"2,425.95",BRIGHT HORIZONS FAMILY SOLUTIONS,ACADEMIC INSTNS - OTHER,Schools,2 Yr Old Place Funding,A60000
Royal Borough of Kingston,30/11/2023,70064075,80.00,BRITISH PARKING ASSOCIATION,MANAGEMENT & TRAINING SERVICES,Corporate & Communities,Equipment And Materials Repairs & Maintenance,A40051
Royal Borough of Kingston,30/11/2023,70064075,"1,320.00",BRITISH PARKING ASSOCIATION,MANAGEMENT & TRAINING SERVICES,Corporate & Communities,Equipment And Materials Repairs & Maintenance,A40051
Royal Borough of Kingston,30/11/2023,70064075,30.00,BRITISH PARKING ASSOCIATION,MANAGEMENT & TRAINING SERVICES,Corporate & Communities,Equipment And Materials Repairs & Maintenance,A40051
Royal Borough of Kingston,30/11/2023,70064075,600.00,BRITISH PARKING ASSOCIATION,MANAGEMENT & TRAINING SERVICES,Corporate & Communities,Equipment And Materials Repairs & Maintenance,A40051
Royal Borough of Kingston,17/11/2023,70064810,"11,778.89",BRITISH TELECOMMUNICATIONS PLC,TELECOMS,Corporate & Communities,Telephones,A45020
Royal Borough of Kingston,06/10/2023,70064811,"1,118.43",BRITISH TELECOMMUNICATIONS PLC,TELECOMS,Corporate & Communities,Telephones,A45020
Royal Borough of Kingston,17/11/2023,70065175,"2,557.56",BRITISH TELECOMMUNICATIONS PLC,TELECOMS,Corporate & Communities,Telephones,A45020
Royal Borough of Kingston,06/01/2024,70065181,"2,421.27",BRITISH TELECOMMUNICATIONS PLC,TELECOMS,Corporate & Communities,Telephones,A45020
Royal Borough of Kingston,06/10/2023,70065197,"1,118.43",BRITISH TELECOMMUNICATIONS PLC,TELECOMS,Corporate & Communities,Telephones,A45020
Royal Borough of Kingston,06/12/2023,70065248,"2,237.02",BRITISH TELECOMMUNICATIONS PLC,TELECOMS,Corporate & Communities,Telephones,A45020
Royal Borough of Kingston,06/11/2023,70065249,"3,229.38",BRITISH TELECOMMUNICATIONS PLC,TELECOMS,Corporate & Communities,Telephones,A45020
Royal Borough of Kingston,06/01/2024,70065469,"2,421.27",BRITISH TELECOMMUNICATIONS PLC,TELECOMS,Corporate & Communities,Telephones,A45020
Royal Borough of Kingston,17/02/2024,70065615,"10,774.26",BRITISH TELECOMMUNICATIONS PLC,TELECOMS,Corporate & Communities,Telephones,A45020
Royal Borough of Kingston,17/11/2023,70065619,"5,939.78",BRITISH TELECOMMUNICATIONS PLC,TELECOMS,Corporate & Communities,Telephones,A45020
Royal Borough of Kingston,17/02/2024,70065622,"2,337.72",BRITISH TELECOMMUNICATIONS PLC,TELECOMS,Corporate & Communities,Telephones,A45020
Royal Borough of Kingston,13/01/2024,70065623,649.84,BRITISH TELECOMMUNICATIONS PLC,TELECOMS,Corporate & Communities,Telephones,A45020
Royal Borough of Kingston,17/02/2024,70065624,"5,712.03",BRITISH TELECOMMUNICATIONS PLC,TELECOMS,Corporate & Communities,Telephones,A45020
Royal Borough of Kingston,01/02/2024,90308828,"4,557.14",Brownlow Enterprises Limited,SOCIAL SERVICES RESIDENTIAL,Adult Social Care & Health,Independent Placements,A56006
Royal Borough of Kingston,05/02/2024,70064873,"1,674.00","Buildvantage Management Limited,",ACCOMMODATION BED & BREAKFAST,Place,Bed & Breakfast,A56000
Royal Borough of Kingston,05/02/2024,70064874,"1,519.00","Buildvantage Management Limited,",ACCOMMODATION BED & BREAKFAST,Place,Bed & Breakfast,A56000
Royal Borough of Kingston,05/02/2024,70064875,"1,674.00","Buildvantage Management Limited,",ACCOMMODATION BED & BREAKFAST,Place,Bed & Breakfast,A56000
Royal Borough of Kingston,05/02/2024,70064876,"1,050.00","Buildvantage Management Limited,",ACCOMMODATION BED & BREAKFAST,Place,Bed & Breakfast,A56000
Royal Borough of Kingston,05/02/2024,70064877,"1,519.00","Buildvantage Management Limited,",ACCOMMODATION BED & BREAKFAST,Place,Bed & Breakfast,A56000
Royal Borough of Kingston,05/02/2024,70064878,"1,705.00","Buildvantage Management Limited,",ACCOMMODATION BED & BREAKFAST,Place,Bed & Breakfast,A56000
Royal Borough of Kingston,05/02/2024,70064879,"1,519.00","Buildvantage Management Limited,",ACCOMMODATION BED & BREAKFAST,Place,Bed & Breakfast,A56000
Royal Borough of Kingston,05/02/2024,70064880,"1,674.00","Buildvantage Management Limited,",ACCOMMODATION BED & BREAKFAST,Place,Bed & Breakfast,A56000
Royal Borough of Kingston,05/02/2024,70064881,"2,170.00","Buildvantage Management Limited,",ACCOMMODATION BED & BREAKFAST,Place,Bed & Breakfast,A56000
Royal Borough of Kingston,05/02/2024,70064882,"1,674.00","Buildvantage Management Limited,",ACCOMMODATION BED & BREAKFAST,Place,Bed & Breakfast,A56000
Royal Borough of Kingston,05/02/2024,70064883,"1,674.00","Buildvantage Management Limited,",ACCOMMODATION BED & BREAKFAST,Place,Bed & Breakfast,A56000
Royal Borough of Kingston,05/02/2024,70064884,"2,170.00","Buildvantage Management Limited,",ACCOMMODATION BED & BREAKFAST,Place,Bed & Breakfast,A56000
Royal Borough of Kingston,05/02/2024,70064885,"1,674.00","Buildvantage Management Limited,",ACCOMMODATION BED & BREAKFAST,Place,Bed & Breakfast,A56000
Royal Borough of Kingston,05/02/2024,70064886,"1,674.00","Buildvantage Management Limited,",ACCOMMODATION BED & BREAKFAST,Place,Bed & Breakfast,A56000
Royal Borough of Kingston,05/02/2024,70064887,"1,674.00","Buildvantage Management Limited,",ACCOMMODATION BED & BREAKFAST,Place,Bed & Breakfast,A56000
Royal Borough of Kingston,05/02/2024,70064888,"1,395.00","Buildvantage Management Limited,",ACCOMMODATION BED & BREAKFAST,Place,Bed & Breakfast,A56000
Royal Borough of Kingston,05/02/2024,70064889,"1,674.00","Buildvantage Management Limited,",ACCOMMODATION BED & BREAKFAST,Place,Bed & Breakfast,A56000
Royal Borough of Kingston,05/02/2024,70064890,"1,674.00","Buildvantage Management Limited,",ACCOMMODATION BED & BREAKFAST,Place,Bed & Breakfast,A56000
Royal Borough of Kingston,05/02/2024,70064891,"1,705.00","Buildvantage Management Limited,",ACCOMMODATION BED & BREAKFAST,Place,Bed & Breakfast,A56000
Royal Borough of Kingston,05/02/2024,70064892,"1,674.00","Buildvantage Management Limited,",ACCOMMODATION BED & BREAKFAST,Place,Bed & Breakfast,A56000
Royal Borough of Kingston,05/02/2024,70064893,"1,674.00","Buildvantage Management Limited,",ACCOMMODATION BED & BREAKFAST,Place,Bed & Breakfast,A56000
Royal Borough of Kingston,05/02/2024,70064894,"1,674.00","Buildvantage Management Limited,",ACCOMMODATION BED & BREAKFAST,Place,Bed & Breakfast,A56000
Royal Borough of Kingston,05/02/2024,70064896,"1,674.00","Buildvantage Management Limited,",ACCOMMODATION BED & BREAKFAST,Place,Bed & Breakfast,A56000
Royal Borough of Kingston,05/02/2024,70064897,"1,674.00","Buildvantage Management Limited,",ACCOMMODATION BED & BREAKFAST,Place,Bed & Breakfast,A56000
Royal Borough of Kingston,05/02/2024,70064898,"1,674.00","Buildvantage Management Limited,",ACCOMMODATION BED & BREAKFAST,Place,Bed & Breakfast,A56000
Royal Borough of Kingston,05/02/2024,70064899,"1,674.00","Buildvantage Management Limited,",ACCOMMODATION BED & BREAKFAST,Place,Bed & Breakfast,A56000
Royal Borough of Kingston,05/02/2024,70064901,"1,519.00","Buildvantage Management Limited,",ACCOMMODATION BED & BREAKFAST,Place,Bed & Breakfast,A56000
Royal Borough of Kingston,18/01/2024,70062940,"3,850.00",BUNZL OUTSOURCING SVS UK LTD,CLOTHING & UNIFORMS,Housing Revenue Account,Cleaning Supplies,A27020
Royal Borough of Kingston,01/02/2024,90308604,"9,153.26",BUPA CARE HOMES (AKW) LIMITED,SOCIAL SERVICES RESIDENTIAL,Adult Social Care & Health,Independent Placements,A56006
Royal Borough of Kingston,01/02/2024,90308605,"-8,717.40",BUPA CARE HOMES (AKW) LIMITED,SOCIAL SERVICES RESIDENTIAL,Adult Social Care & Health,Independent Placements,A56006
Royal Borough of Kingston,01/02/2024,90308606,"9,458.37",BUPA CARE HOMES (AKW) LIMITED,SOCIAL SERVICES RESIDENTIAL,Adult Social Care & Health,Independent Placements,A56006
Royal Borough of Kingston,01/02/2024,90308607,"-9,007.98",BUPA CARE HOMES (AKW) LIMITED,SOCIAL SERVICES RESIDENTIAL,Adult Social Care & Health,Independent Placements,A56006
Royal Borough of Kingston,01/02/2024,90308608,"9,153.26",BUPA CARE HOMES (AKW) LIMITED,SOCIAL SERVICES RESIDENTIAL,Adult Social Care & Health,Independent Placements,A56006
Royal Borough of Kingston,01/02/2024,90308609,"-8,717.40",BUPA CARE HOMES (AKW) LIMITED,SOCIAL SERVICES RESIDENTIAL,Adult Social Care & Health,Independent Placements,A56006
Royal Borough of Kingston,01/02/2024,90308610,"9,458.37",BUPA CARE HOMES (AKW) LIMITED,SOCIAL SERVICES RESIDENTIAL,Adult Social Care & Health,Independent Placements,A56006
Royal Borough of Kingston,01/02/2024,90308611,"-9,007.98",BUPA CARE HOMES (AKW) LIMITED,SOCIAL SERVICES RESIDENTIAL,Adult Social Care & Health,Independent Placements,A56006
Royal Borough of Kingston,01/02/2024,90308612,"9,458.37",BUPA CARE HOMES (AKW) LIMITED,SOCIAL SERVICES RESIDENTIAL,Adult Social Care & Health,Independent Placements,A56006
Royal Borough of Kingston,01/02/2024,90308613,"-9,007.98",BUPA CARE HOMES (AKW) LIMITED,SOCIAL SERVICES RESIDENTIAL,Adult Social Care & Health,Independent Placements,A56006
Royal Borough of Kingston,01/02/2024,90308614,"9,153.26",BUPA CARE HOMES (AKW) LIMITED,SOCIAL SERVICES RESIDENTIAL,Adult Social Care & Health,Independent Placements,A56006
Royal Borough of Kingston,01/02/2024,90308615,"-8,717.40",BUPA CARE HOMES (AKW) LIMITED,SOCIAL SERVICES RESIDENTIAL,Adult Social Care & Health,Independent Placements,A56006
Royal Borough of Kingston,01/02/2024,90308616,610.22,BUPA CARE HOMES (AKW) LIMITED,SOCIAL SERVICES RESIDENTIAL,Adult Social Care & Health,Independent Placements,A56006
Royal Borough of Kingston,01/02/2024,90308617,"8,848.15",BUPA CARE HOMES (AKW) LIMITED,SOCIAL SERVICES RESIDENTIAL,Adult Social Care & Health,Independent Placements,A56006
Royal Borough of Kingston,01/02/2024,90308618,"-8,110.51",BUPA CARE HOMES (AKW) LIMITED,SOCIAL SERVICES RESIDENTIAL,Adult Social Care & Health,Independent Placements,A56006
Royal Borough of Kingston,01/02/2024,90308619,-581.16,BUPA CARE HOMES (AKW) LIMITED,SOCIAL SERVICES RESIDENTIAL,Adult Social Care & Health,Independent Placements,A56006
Royal Borough of Kingston,01/02/2024,90308620,"9,153.26",BUPA CARE HOMES (AKW) LIMITED,SOCIAL SERVICES RESIDENTIAL,Adult Social Care & Health,Independent Placements,A56006
Royal Borough of Kingston,01/02/2024,90308621,"-8,390.19",BUPA CARE HOMES (AKW) LIMITED,SOCIAL SERVICES RESIDENTIAL,Adult Social Care & Health,Independent Placements,A56006
Royal Borough of Kingston,01/02/2024,90308622,"9,458.37",BUPA CARE HOMES (AKW) LIMITED,SOCIAL SERVICES RESIDENTIAL,Adult Social Care & Health,Independent Placements,A56006
Royal Borough of Kingston,01/02/2024,90308623,"-8,669.86",BUPA CARE HOMES (AKW) LIMITED,SOCIAL SERVICES RESIDENTIAL,Adult Social Care & Health,Independent Placements,A56006
Royal Borough of Kingston,01/02/2024,90308624,"9,458.37",BUPA CARE HOMES (AKW) LIMITED,SOCIAL SERVICES RESIDENTIAL,Adult Social Care & Health,Independent Placements,A56006
Royal Borough of Kingston,01/02/2024,90308625,"-8,669.86",BUPA CARE HOMES (AKW) LIMITED,SOCIAL SERVICES RESIDENTIAL,Adult Social Care & Health,Independent Placements,A56006
Royal Borough of Kingston,01/02/2024,90308626,"8,848.15",BUPA CARE HOMES (AKW) LIMITED,SOCIAL SERVICES RESIDENTIAL,Adult Social Care & Health,Independent Placements,A56006
Royal Borough of Kingston,01/02/2024,90308771,"3,690.50",BUPA CARE HOMES (AKW) LIMITED,SOCIAL SERVICES RESIDENTIAL,Adult Social Care & Health,Independent Placements,A56006
Royal Borough of Kingston,01/02/2024,90308946,"5,230.69",BUPA CARE HOMES (AKW) LIMITED,SOCIAL SERVICES RESIDENTIAL,Adult Social Care & Health,Independent Placements,A56006
Royal Borough of Kingston,06/02/2024,90303174,"152,546.80",BURLINGTON INFANT AND NURSERY SCHOOL,SCHOOL FUNDS,Schools,Miscellaneous Expenses,A49000
Royal Borough of Kingston,06/02/2024,90303201,"2,320.00",BURLINGTON INFANT AND NURSERY SCHOOL,SCHOOL FUNDS,Schools,Miscellaneous Expenses,A49000
Royal Borough of Kingston,06/02/2024,90303220,885.94,BURLINGTON INFANT AND NURSERY SCHOOL,SCHOOL FUNDS,Schools,Miscellaneous Expenses,A49000
Royal Borough of Kingston,06/02/2024,90303250,"22,916.25",BURLINGTON INFANT AND NURSERY SCHOOL,SCHOOL FUNDS,Schools,Miscellaneous Expenses,A49000
Royal Borough of Kingston,06/02/2024,90303251,632.50,BURLINGTON INFANT AND NURSERY SCHOOL,SCHOOL FUNDS,Schools,Miscellaneous Expenses,A49000
Royal Borough of Kingston,06/02/2024,90304191,"35,358.19",BURLINGTON INFANT AND NURSERY SCHOOL,SCHOOL FUNDS,Schools,Miscellaneous Expenses,A49000
Royal Borough of Kingston,06/02/2024,90304271,"6,062.85",BURLINGTON INFANT AND NURSERY SCHOOL,SCHOOL FUNDS,Schools,2 Yr Old Place Funding,A60000
Royal Borough of Kingston,20/02/2024,90306990,"1,701.90",BURLINGTON INFANT AND NURSERY SCHOOL,SCHOOL FUNDS,Schools,Miscellaneous Expenses,A49000
Royal Borough of Kingston,06/02/2024,90303175,"185,933.75",BURLINGTON JUNIOR SCHOOL,SCHOOL FUNDS,Schools,Miscellaneous Expenses,A49000
Royal Borough of Kingston,06/02/2024,90303200,"3,697.50",BURLINGTON JUNIOR SCHOOL,SCHOOL FUNDS,Schools,Miscellaneous Expenses,A49000
Royal Borough of Kingston,06/02/2024,90303219,"2,047.50",BURLINGTON JUNIOR SCHOOL,SCHOOL FUNDS,Schools,Miscellaneous Expenses,A49000
Royal Borough of Kingston,06/02/2024,90303252,"35,647.50",BURLINGTON JUNIOR SCHOOL,SCHOOL FUNDS,Schools,Miscellaneous Expenses,A49000
Royal Borough of Kingston,06/02/2024,90303253,"2,530.00",BURLINGTON JUNIOR SCHOOL,SCHOOL FUNDS,Schools,Miscellaneous Expenses,A49000
Royal Borough of Kingston,11/08/2023,70052395,750.00,BYTES SOFTWARE SERVICES LTD,BUSINESS & COMPUTER SYSTEMS,Corporate & Communities,Intangible Assets - Project Management,C13001
Royal Borough of Kingston,31/01/2024,70064004,"6,000.00",BYTES SOFTWARE SERVICES LTD,BUSINESS & COMPUTER SYSTEMS,Corporate & Communities,IT Software Maintenance,A45045
Royal Borough of Kingston,05/02/2024,70064152,"1,666.78",BYTES SOFTWARE SERVICES LTD,BUSINESS & COMPUTER SYSTEMS,Corporate & Communities,IT Hardware Purchase,A45005
Royal Borough of Kingston,31/01/2024,70064720,"10,238.01",BYTES SOFTWARE SERVICES LTD,BUSINESS & COMPUTER SYSTEMS,Corporate & Communities,Cloud Services,A45007
Royal Borough of Kingston,13/02/2024,70064807,666.37,BYTES SOFTWARE SERVICES LTD,BUSINESS & COMPUTER SYSTEMS,Corporate & Communities,IT Software Purchase,A45040
Royal Borough of Kingston,16/02/2024,70065357,"1,194.26",BYTES SOFTWARE SERVICES LTD,BUSINESS & COMPUTER SYSTEMS,Corporate & Communities,IT Hardware Purchase,A45005
Royal Borough of Kingston,16/02/2024,70065358,"1,194.26",BYTES SOFTWARE SERVICES LTD,BUSINESS & COMPUTER SYSTEMS,Corporate & Communities,IT Hardware Purchase,A45005
Royal Borough of Kingston,08/02/2024,70064732,"15,040.00",C & C Builders Limited,SUNDRY SUPPLIER - HOUSING,Corporate & Communities,Grants Given For Capital Purposes,C20004
Royal Borough of Kingston,19/02/2024,70065443,"8,590.00",C & C Builders Limited,SUNDRY SUPPLIER - HOUSING,Corporate & Communities,Grants Given For Capital Purposes,C20004
Royal Borough of Kingston,22/02/2024,90308103,"1,314.08",REDACTED - PERSONAL DATA,PLS LANDLORDS,Place,PSL Payments To Landlords,A22031
Royal Borough of Kingston,22/02/2024,90308105,"1,094.00",REDACTED - PERSONAL DATA,PLS LANDLORDS,Place,PSL Payments To Landlords,A22031
Royal Borough of Kingston,22/02/2024,90308224,"1,314.08",REDACTED - PERSONAL DATA,PLS LANDLORDS,Place,PSL Payments To Landlords,A22031
Royal Borough of Kingston,22/02/2024,90308225,"1,314.08",REDACTED - PERSONAL DATA,PLS LANDLORDS,Place,PSL Payments To Landlords,A22031
Royal Borough of Kingston,22/02/2024,90308226,"1,314.08",REDACTED - PERSONAL DATA,PLS LANDLORDS,Place,PSL Payments To Landlords,A22031
Royal Borough of Kingston,22/02/2024,90308227,"1,314.08",REDACTED - PERSONAL DATA,PLS LANDLORDS,Place,PSL Payments To Landlords,A22031
Royal Borough of Kingston,22/02/2024,90308184,"1,317.76",REDACTED - PERSONAL DATA,PLS LANDLORDS,Place,PSL Payments To Landlords,A22031
Royal Borough of Kingston,22/02/2024,90308168,"1,025.00",REDACTED - PERSONAL DATA,PLS LANDLORDS,Place,PSL Payments To Landlords,A22031
Royal Borough of Kingston,22/02/2024,90308305,"1,679.75",REDACTED - PERSONAL DATA,PLS LANDLORDS,Place,PSL Payments To Landlords,A22031
Royal Borough of Kingston,18/01/2024,70062850,"11,163.30",CAMBRIDGE HOUSE AND TALBOT,LEGAL & PROFESSIONAL SERVICES,Adult Social Care & Health,Professional Fees,A44066
Royal Borough of Kingston,08/02/2024,70064753,"4,505,000.00",Cambridge Road Estate (RBK) LLP,LEGAL & PROFESSIONAL SERVICES,Housing Revenue Account,Council Dwellings - Acquisition,C10006
Royal Borough of Kingston,08/02/2024,70064762,"6,501,632.00",Cambridge Road Estate (RBK) LLP,LEGAL & PROFESSIONAL SERVICES,Housing Revenue Account,Council Dwellings - Acquisition,C10006
Royal Borough of Kingston,01/02/2024,90310247,909.25,Camphill Village Trust Ltd,SOCIAL SERVICES RESIDENTIAL,Adult Social Care & Health,Personal Budget - Third Party,A61019
Royal Borough of Kingston,01/02/2024,90310359,"11,082.14",Camphill Village Trust Ltd,SOCIAL SERVICES RESIDENTIAL,Adult Social Care & Health,Personal Budget - Third Party,A61019
Royal Borough of Kingston,01/02/2024,90310360,"3,235.53",Camphill Village Trust Ltd,SOCIAL SERVICES RESIDENTIAL,Adult Social Care & Health,Personal Budget - Third Party,A61019
Royal Borough of Kingston,25/01/2024,70063894,"1,062.40",CANON (UK) LTD,OPERATIONAL EQUIPMENT/MATERIAL,Corporate & Communities,Printing And Photocopying,A43005
Royal Borough of Kingston,04/01/2024,70063926,"1,401.57",CANON (UK) LTD,OPERATIONAL EQUIPMENT/MATERIAL,Corporate & Communities,Printing And Photocopying,A43005
Royal Borough of Kingston,04/01/2024,70064343,"1,047.98",CANON (UK) LTD,OPERATIONAL EQUIPMENT/MATERIAL,Corporate & Communities,Printing And Photocopying,A43005
Royal Borough of Kingston,24/01/2024,70063454,"2,629.54",Card Processing Advisory Service Ltd,SUNDRY SUPPLIER - FINANCE,Corporate & Communities,Bank Fees & Charges,A44250
Royal Borough of Kingston,01/02/2024,90310298,"5,329.54",CARE MANAGEMENT GROUP LTD,SOCIAL SERVICES RESIDENTIAL,Adult Social Care & Health,Personal Budget - Third Party,A61019
Royal Borough of Kingston,01/02/2024,90308703,"4,246.43",CARE UK COMMUNITY PARTNERSHIPS LTD,SOCIAL SERVICES RESIDENTIAL,Adult Social Care & Health,Independent Placements,A56006
Royal Borough of Kingston,01/02/2024,90308716,"1,857.14",CARE UK COMMUNITY PARTNERSHIPS LTD,SOCIAL SERVICES RESIDENTIAL,Adult Social Care & Health,Independent Placements,A56006
Royal Borough of Kingston,01/02/2024,90308767,"3,169.29",CARE UK COMMUNITY PARTNERSHIPS LTD,SOCIAL SERVICES RESIDENTIAL,Adult Social Care & Health,Independent Placements,A56006
Royal Borough of Kingston,01/02/2024,90308803,"6,914.43",CARE UK COMMUNITY PARTNERSHIPS LTD,SOCIAL SERVICES RESIDENTIAL,Adult Social Care & Health,Independent Placements,A56006
Royal Borough of Kingston,01/02/2024,90308830,"4,138.34",CARE UK COMMUNITY PARTNERSHIPS LTD,SOCIAL SERVICES RESIDENTIAL,Adult Social Care & Health,Independent Placements,A56006
Royal Borough of Kingston,01/02/2024,90308840,"2,738.88",CARE UK COMMUNITY PARTNERSHIPS LTD,SOCIAL SERVICES RESIDENTIAL,Adult Social Care & Health,Independent Placements,A56006
Royal Borough of Kingston,01/02/2024,90308999,"2,071.43",CARE UK COMMUNITY PARTNERSHIPS LTD,SOCIAL SERVICES RESIDENTIAL,Adult Social Care & Health,Other Private Contractors - Third Party,A56080
Royal Borough of Kingston,01/02/2024,90309000,"2,071.43",CARE UK COMMUNITY PARTNERSHIPS LTD,SOCIAL SERVICES RESIDENTIAL,Adult Social Care & Health,Other Private Contractors - Third Party,A56080
Royal Borough of Kingston,01/02/2024,90309001,"2,071.43",CARE UK COMMUNITY PARTNERSHIPS LTD,SOCIAL SERVICES RESIDENTIAL,Adult Social Care & Health,Other Private Contractors - Third Party,A56080
Royal Borough of Kingston,01/02/2024,90309002,"2,071.43",CARE UK COMMUNITY PARTNERSHIPS LTD,SOCIAL SERVICES RESIDENTIAL,Adult Social Care & Health,Other Private Contractors - Third Party,A56080
Royal Borough of Kingston,01/02/2024,90309003,"2,071.43",CARE UK COMMUNITY PARTNERSHIPS LTD,SOCIAL SERVICES RESIDENTIAL,Adult Social Care & Health,Other Private Contractors - Third Party,A56080
Royal Borough of Kingston,01/02/2024,90309004,"2,071.43",CARE UK COMMUNITY PARTNERSHIPS LTD,SOCIAL SERVICES RESIDENTIAL,Adult Social Care & Health,Other Private Contractors - Third Party,A56080
Royal Borough of Kingston,01/02/2024,90308791,"4,557.14",CARELODGES GROUP LTD,SOCIAL SERVICES RESIDENTIAL,Adult Social Care & Health,Independent Placements,A56006
Royal Borough of Kingston,01/02/2024,90308899,"5,470.19",CARELODGES GROUP LTD,SOCIAL SERVICES RESIDENTIAL,Adult Social Care & Health,Independent Placements,A56006
Royal Borough of Kingston,06/02/2024,90304140,"15,715.05",CAREROOM LTD,ACADEMIC INSTNS - OTHER,Schools,PVI Providers,A60014
Royal Borough of Kingston,06/02/2024,90304253,"1,818.45",CAREROOM LTD,ACADEMIC INSTNS - OTHER,Schools,2 Yr Old Place Funding,A60000
Royal Borough of Kingston,31/10/2023,70063113,"1,119.66",CARLCARE LTD,SOCIAL SERVICES-HOME CARE,Adult Social Care & Health,Other Private Contractors - Third Party,A56080
Royal Borough of Kingston,08/01/2024,70064326,904.28,CARLCARE LTD,SOCIAL SERVICES-HOME CARE,Adult Social Care & Health,Client Care/Assistance,A61011
Royal Borough of Kingston,31/10/2023,70064408,"1,119.66",CARLCARE LTD,SOCIAL SERVICES-HOME CARE,Adult Social Care & Health,Other Private Contractors - Third Party,A56080
Royal Borough of Kingston,08/01/2024,90303495,756.32,CARLCARE LTD,SOCIAL SERVICES-HOME CARE,Adult Social Care & Health,Homecare - new framework,A56127
Royal Borough of Kingston,08/01/2024,90303540,504.21,CARLCARE LTD,SOCIAL SERVICES-HOME CARE,Adult Social Care & Health,Homecare - new framework,A56127
Royal Borough of Kingston,08/01/2024,90303762,513.22,CARLCARE LTD,SOCIAL SERVICES-HOME CARE,Adult Social Care & Health,Homecare - new framework,A56127
Royal Borough of Kingston,08/01/2024,90303892,567.24,CARLCARE LTD,SOCIAL SERVICES-HOME CARE,Adult Social Care & Health,Homecare - Framework - double-handed,A56131
Royal Borough of Kingston,08/01/2024,90303892,567.24,CARLCARE LTD,SOCIAL SERVICES-HOME CARE,Adult Social Care & Health,Homecare - Framework - double-handed,A56131
Royal Borough of Kingston,08/01/2024,90304031,-817.69,CARLCARE LTD,SOCIAL SERVICES-HOME CARE,Adult Social Care & Health,Homecare - Framework - D2A,A56133
Royal Borough of Kingston,08/01/2024,90304031,-817.69,CARLCARE LTD,SOCIAL SERVICES-HOME CARE,Adult Social Care & Health,Homecare - Framework - D2A,A56133
Royal Borough of Kingston,29/01/2024,90304127,"1,275.71",CARLCARE LTD,SOCIAL SERVICES-HOME CARE,Adult Social Care & Health,Personal Budget - Third Party,A61019
Royal Borough of Kingston,15/01/2024,90305826,756.32,CARLCARE LTD,SOCIAL SERVICES-HOME CARE,Adult Social Care & Health,Homecare - new framework,A56127
Royal Borough of Kingston,15/01/2024,90305862,504.21,CARLCARE LTD,SOCIAL SERVICES-HOME CARE,Adult Social Care & Health,Homecare - new framework,A56127
Royal Borough of Kingston,15/01/2024,90306070,513.22,CARLCARE LTD,SOCIAL SERVICES-HOME CARE,Adult Social Care & Health,Homecare - new framework,A56127
Royal Borough of Kingston,15/01/2024,90306199,567.24,CARLCARE LTD,SOCIAL SERVICES-HOME CARE,Adult Social Care & Health,Homecare - Framework - double-handed,A56131
Royal Borough of Kingston,15/01/2024,90306199,567.24,CARLCARE LTD,SOCIAL SERVICES-HOME CARE,Adult Social Care & Health,Homecare - Framework - double-handed,A56131
Royal Borough of Kingston,05/02/2024,90306833,"1,275.71",CARLCARE LTD,SOCIAL SERVICES-HOME CARE,Adult Social Care & Health,Personal Budget - Third Party,A61019
Royal Borough of Kingston,22/01/2024,90307171,756.32,CARLCARE LTD,SOCIAL SERVICES-HOME CARE,Adult Social Care & Health,Homecare - new framework,A56127
Royal Borough of Kingston,22/01/2024,90307202,504.21,CARLCARE LTD,SOCIAL SERVICES-HOME CARE,Adult Social Care & Health,Homecare - new framework,A56127
Royal Borough of Kingston,22/01/2024,90307409,513.22,CARLCARE LTD,SOCIAL SERVICES-HOME CARE,Adult Social Care & Health,Homecare - new framework,A56127
Royal Borough of Kingston,22/01/2024,90307596,"1,080.46",CARLCARE LTD,SOCIAL SERVICES-HOME CARE,Adult Social Care & Health,Homecare - Framework - single - handed,A56132
Royal Borough of Kingston,22/01/2024,90307596,"1,080.46",CARLCARE LTD,SOCIAL SERVICES-HOME CARE,Adult Social Care & Health,Homecare - Framework - single - handed,A56132
Royal Borough of Kingston,12/02/2024,90307837,"1,275.71",CARLCARE LTD,SOCIAL SERVICES-HOME CARE,Adult Social Care & Health,Personal Budget - Third Party,A61019
Royal Borough of Kingston,29/01/2024,90309386,756.32,CARLCARE LTD,SOCIAL SERVICES-HOME CARE,Adult Social Care & Health,Homecare - new framework,A56127
Royal Borough of Kingston,29/01/2024,90309417,504.21,CARLCARE LTD,SOCIAL SERVICES-HOME CARE,Adult Social Care & Health,Homecare - new framework,A56127
Royal Borough of Kingston,29/01/2024,90309607,513.22,CARLCARE LTD,SOCIAL SERVICES-HOME CARE,Adult Social Care & Health,Homecare - new framework,A56127
Royal Borough of Kingston,29/01/2024,90309723,567.24,CARLCARE LTD,SOCIAL SERVICES-HOME CARE,Adult Social Care & Health,Homecare - Framework - double-handed,A56131
Royal Borough of Kingston,29/01/2024,90309723,567.24,CARLCARE LTD,SOCIAL SERVICES-HOME CARE,Adult Social Care & Health,Homecare - Framework - double-handed,A56131
Royal Borough of Kingston,29/01/2024,90309773,"1,039.94",CARLCARE LTD,SOCIAL SERVICES-HOME CARE,Adult Social Care & Health,Homecare - Framework - single - handed,A56132
Royal Borough of Kingston,29/01/2024,90309773,"1,039.94",CARLCARE LTD,SOCIAL SERVICES-HOME CARE,Adult Social Care & Health,Homecare - Framework - single - handed,A56132
Royal Borough of Kingston,19/02/2024,90310423,"1,275.71",CARLCARE LTD,SOCIAL SERVICES-HOME CARE,Adult Social Care & Health,Personal Budget - Third Party,A61019
Royal Borough of Kingston,22/02/2024,90308199,"1,550.00",CARLISLE SECURITIES LTD,PLS LANDLORDS,Place,PSL Payments To Landlords,A22031
Royal Borough of Kingston,22/02/2024,90308024,"1,185.00",REDACTED - PERSONAL DATA,PLS LANDLORDS,Place,PSL Payments To Landlords,A22031
Royal Borough of Kingston,06/02/2024,90304175,"1,282.20",REDACTED - PERSONAL DATA,ACADEMIC INSTNS - OTHER,Schools,PVI Providers,A60014
Royal Borough of Kingston,01/02/2024,90308900,"9,302.41",CARTREF HOMES,SOCIAL SERVICES RESIDENTIAL,Adult Social Care & Health,Independent Placements,A56006
Royal Borough of Kingston,01/02/2024,90308875,"13,774.88",CAS CARE SERVICES LTD,SOCIAL SERVICES - OTHER,Adult Social Care & Health,Independent Placements,A56006
Royal Borough of Kingston,01/02/2024,90308919,"13,774.88",CAS CARE SERVICES LTD,SOCIAL SERVICES - OTHER,Adult Social Care & Health,Independent Placements,A56006
Royal Borough of Kingston,06/02/2024,90304192,"22,794.75",CASTLE HILL SCHOOL,SCHOOL FUNDS,Schools,Miscellaneous Expenses,A49000
Royal Borough of Kingston,06/02/2024,90304227,"1,366.20",CASTLE HILL SCHOOL,SCHOOL FUNDS,Schools,PVI Providers,A60014
Royal Borough of Kingston,06/02/2024,90304282,"3,638.25",CASTLE HILL SCHOOL,SCHOOL FUNDS,Schools,2 Yr Old Place Funding,A60000
Royal Borough of Kingston,20/02/2024,90306991,"1,339.20",CASTLE HILL SCHOOL,SCHOOL FUNDS,Schools,Miscellaneous Expenses,A49000
Royal Borough of Kingston,22/02/2024,90307997,"2,149.00",CASTLE RESIDENTIAL PROPERTIES LTD,PLS LANDLORDS,Place,PSL Payments To Landlords,A22031
Royal Borough of Kingston,22/02/2024,90307998,"1,540.00",CASTLE RESIDENTIAL PROPERTIES LTD,PLS LANDLORDS,Place,PSL Payments To Landlords,A22031
Royal Borough of Kingston,22/02/2024,90308104,"1,321.00",CASTLE RESIDENTIAL PROPERTIES LTD,PLS LANDLORDS,Place,PSL Payments To Landlords,A22031
Royal Borough of Kingston,22/02/2024,90308106,"1,049.98",CASTLE RESIDENTIAL PROPERTIES LTD,PLS LANDLORDS,Place,PSL Payments To Landlords,A22031
Royal Borough of Kingston,22/02/2024,90308265,"2,144.09",CASTLE RESIDENTIAL PROPERTIES LTD,PLS LANDLORDS,Place,PSL Payments To Landlords,A22031
Royal Borough of Kingston,22/02/2024,90308336,"2,144.09",CASTLE RESIDENTIAL PROPERTIES LTD,PLS LANDLORDS,Place,PSL Payments To Landlords,A22031
Royal Borough of Kingston,22/02/2024,90307996,"1,094.34",CASTLE WILDISH RESI LTD,PLS LANDLORDS,Place,PSL Payments To Landlords,A22031
Royal Borough of Kingston,22/02/2024,90308318,"2,100.00",CASTLE WILDISH RESI LTD,PLS LANDLORDS,Place,PSL Payments To Landlords,A22031
Royal Borough of Kingston,22/02/2024,90308319,"2,100.00",CASTLE WILDISH RESI LTD,PLS LANDLORDS,Place,PSL Payments To Landlords,A22031
Royal Borough of Kingston,29/01/2024,70065551,"6,480.00",Causeway Technologies Limited,IT EQUIPMENT MAINTENANCE,Corporate & Communities,Professional Fees,A44066
Royal Borough of Kingston,01/02/2024,90308892,"10,954.25",Gresham Care Operations Limited,SOCIAL SERVICES RESIDENTIAL,Adult Social Care & Health,Independent Placements,A56006
Royal Borough of Kingston,22/02/2024,90308133,867.83,REDACTED - PERSONAL DATA,PLS LANDLORDS,Place,PSL Payments To Landlords,A22031
Royal Borough of Kingston,11/12/2023,70063643,"2,000.00",CENTRAL & NORTH WEST LONDON NHS FOUNDATION TRUST,LEGAL & PROFESSIONAL SERVICES,Adult Social Care & Health,Equipment And Materials Purchase,A40000
Royal Borough of Kingston,06/12/2023,70063969,866.05,CENTRAL & NORTH WEST LONDON NHS FOUNDATION TRUST,LEGAL & PROFESSIONAL SERVICES,Adult Social Care & Health,Other Private Contractors - Third Party,A56080
Royal Borough of Kingston,20/10/2023,70063973,"1,297.67",CENTRAL & NORTH WEST LONDON NHS FOUNDATION TRUST,LEGAL & PROFESSIONAL SERVICES,Adult Social Care & Health,Other Private Contractors - Third Party,A56080
Royal Borough of Kingston,31/01/2024,70063904,"3,363.89",CENTRAL LONDON COMMUNITY,SOCIAL SERVICES - OTHER,Adult Social Care & Health,Other Private Contractors - Third Party,A56080
Royal Borough of Kingston,31/01/2024,70063905,"3,363.89",CENTRAL LONDON COMMUNITY,SOCIAL SERVICES - OTHER,Adult Social Care & Health,Other Private Contractors - Third Party,A56080
Royal Borough of Kingston,01/11/2023,70063425,750.00,Chatty Cafe Scheme,SUBSCRIPTIONS & PUBLICATIONS,Adult Social Care & Health,Subscriptions,A47010
Royal Borough of Kingston,25/01/2024,70063515,500.00,CHAWTON HILL ASSOCIATES LIMITED,LEGAL & PROFESSIONAL SERVICES,Place,Buildings - Design & Planning,C14001
Royal Borough of Kingston,25/01/2024,70063516,"1,500.00",CHAWTON HILL ASSOCIATES LIMITED,LEGAL & PROFESSIONAL SERVICES,Place,Buildings - Design & Planning,C14001
Royal Borough of Kingston,31/01/2024,70063897,623.33,CHAWTON HILL ASSOCIATES LIMITED,LEGAL & PROFESSIONAL SERVICES,Housing Revenue Account,Professional Fees,A44066
Royal Borough of Kingston,31/01/2024,70064426,"2,189.72",CHAWTON HILL ASSOCIATES LIMITED,LEGAL & PROFESSIONAL SERVICES,Place,Payments to Contractors,C14000
Royal Borough of Kingston,31/01/2024,70064430,"1,300.00",CHAWTON HILL ASSOCIATES LIMITED,LEGAL & PROFESSIONAL SERVICES,Place,Payments to Contractors,C14000
Royal Borough of Kingston,30/06/2023,70064570,500.00,CHAWTON HILL ASSOCIATES LIMITED,LEGAL & PROFESSIONAL SERVICES,Place,Payments to Contractors,C14000
Royal Borough of Kingston,13/02/2024,70064852,623.33,CHAWTON HILL ASSOCIATES LIMITED,LEGAL & PROFESSIONAL SERVICES,Housing Revenue Account,Professional Fees,A44066
Royal Borough of Kingston,01/02/2024,90308746,"3,615.72",CHD (CARE HOMES) LTD,SOCIAL SERVICES RESIDENTIAL,Adult Social Care & Health,Independent Placements,A56006
Royal Borough of Kingston,01/02/2024,90308839,"5,104.00",CHD (CARE HOMES) LTD,SOCIAL SERVICES RESIDENTIAL,Adult Social Care & Health,Independent Placements,A56006
Royal Borough of Kingston,01/02/2024,90308851,"3,417.86",CHD (CARE HOMES) LTD,SOCIAL SERVICES RESIDENTIAL,Adult Social Care & Health,Independent Placements,A56006
Royal Borough of Kingston,01/02/2024,90308653,"4,018.57",CHD CARE LTD,SOCIAL SERVICES RESIDENTIAL,Adult Social Care & Health,Independent Placements,A56006
Royal Borough of Kingston,01/02/2024,90308693,"1,728.57",CHD CARE LTD,SOCIAL SERVICES RESIDENTIAL,Adult Social Care & Health,Independent Placements,A56006
Royal Borough of Kingston,01/02/2024,90308989,"2,278.57",CHD CARE LTD,SOCIAL SERVICES RESIDENTIAL,Adult Social Care & Health,Other Private Contractors - Third Party,A56080
Royal Borough of Kingston,01/02/2024,90308990,"2,278.57",CHD CARE LTD,SOCIAL SERVICES RESIDENTIAL,Adult Social Care & Health,Other Private Contractors - Third Party,A56080
Royal Borough of Kingston,01/02/2024,90308991,"2,278.57",CHD CARE LTD,SOCIAL SERVICES RESIDENTIAL,Adult Social Care & Health,Other Private Contractors - Third Party,A56080
Royal Borough of Kingston,01/02/2024,90308992,"2,278.57",CHD CARE LTD,SOCIAL SERVICES RESIDENTIAL,Adult Social Care & Health,Other Private Contractors - Third Party,A56080
Royal Borough of Kingston,01/02/2024,90308993,"2,278.57",CHD CARE LTD,SOCIAL SERVICES RESIDENTIAL,Adult Social Care & Health,Other Private Contractors - Third Party,A56080
Royal Borough of Kingston,01/02/2024,90308994,"2,278.57",CHD CARE LTD,SOCIAL SERVICES RESIDENTIAL,Adult Social Care & Health,Other Private Contractors - Third Party,A56080
Royal Borough of Kingston,01/02/2024,90308995,"2,278.57",CHD CARE LTD,SOCIAL SERVICES RESIDENTIAL,Adult Social Care & Health,Other Private Contractors - Third Party,A56080
Royal Borough of Kingston,01/02/2024,90308996,"2,278.57",CHD CARE LTD,SOCIAL SERVICES RESIDENTIAL,Adult Social Care & Health,Other Private Contractors - Third Party,A56080
Royal Borough of Kingston,01/02/2024,90308997,"2,278.57",CHD CARE LTD,SOCIAL SERVICES RESIDENTIAL,Adult Social Care & Health,Other Private Contractors - Third Party,A56080
Royal Borough of Kingston,01/02/2024,90308998,"2,278.57",CHD CARE LTD,SOCIAL SERVICES RESIDENTIAL,Adult Social Care & Health,Other Private Contractors - Third Party,A56080
Royal Borough of Kingston,06/02/2024,90304150,"7,074.00",CHILDS PLAY NURSERY SCHOOL LTD,ACADEMIC INSTNS - OTHER,Schools,PVI Providers,A60014
Royal Borough of Kingston,01/02/2024,90308523,"3,342.86",CHISWICK NURSING CENTRE,SOCIAL SERVICES RESIDENTIAL,Adult Social Care & Health,Independent Placements,A56006
Royal Borough of Kingston,01/02/2024,90308524,"5,757.14",CHISWICK NURSING CENTRE,SOCIAL SERVICES RESIDENTIAL,Adult Social Care & Health,Independent Placements,A56006
Royal Borough of Kingston,01/02/2024,90308525,"-2,228.57",CHISWICK NURSING CENTRE,SOCIAL SERVICES RESIDENTIAL,Adult Social Care & Health,Independent Placements,A56006
Royal Borough of Kingston,01/02/2024,90308526,"5,757.14",CHISWICK NURSING CENTRE,SOCIAL SERVICES RESIDENTIAL,Adult Social Care & Health,Independent Placements,A56006
Royal Borough of Kingston,01/02/2024,90308527,"-5,757.14",CHISWICK NURSING CENTRE,SOCIAL SERVICES RESIDENTIAL,Adult Social Care & Health,Independent Placements,A56006
Royal Borough of Kingston,01/02/2024,90308528,742.86,CHISWICK NURSING CENTRE,SOCIAL SERVICES RESIDENTIAL,Adult Social Care & Health,Independent Placements,A56006
Royal Borough of Kingston,01/02/2024,90308529,"4,642.86",CHISWICK NURSING CENTRE,SOCIAL SERVICES RESIDENTIAL,Adult Social Care & Health,Independent Placements,A56006
Royal Borough of Kingston,01/02/2024,90308751,"3,512.77",CHISWICK NURSING CENTRE,SOCIAL SERVICES RESIDENTIAL,Adult Social Care & Health,Independent Placements,A56006
Royal Borough of Kingston,01/02/2024,90308784,"3,212.83",CHISWICK NURSING CENTRE,SOCIAL SERVICES RESIDENTIAL,Adult Social Care & Health,Independent Placements,A56006
Royal Borough of Kingston,01/02/2024,90308914,"8,254.77",CHOICE LTD,SOCIAL SERVICES RESIDENTIAL,Adult Social Care & Health,Independent Placements,A56006
Royal Borough of Kingston,01/02/2024,90308924,"7,294.00",CHOICE LTD,SOCIAL SERVICES RESIDENTIAL,Adult Social Care & Health,Independent Placements,A56006
Royal Borough of Kingston,06/02/2024,90303177,"167,164.50",CHRIST CHURCH  C. OF E.  PRIMARY SCHOOL (NEW MALDEN),SCHOOL FUNDS,Schools,Miscellaneous Expenses,A49000
Royal Borough of Kingston,06/02/2024,90303212,"1,667.50",CHRIST CHURCH  C. OF E.  PRIMARY SCHOOL (NEW MALDEN),SCHOOL FUNDS,Schools,Miscellaneous Expenses,A49000
Royal Borough of Kingston,06/02/2024,90303233,807.19,CHRIST CHURCH  C. OF E.  PRIMARY SCHOOL (NEW MALDEN),SCHOOL FUNDS,Schools,Miscellaneous Expenses,A49000
Royal Borough of Kingston,06/02/2024,90303256,"16,005.00",CHRIST CHURCH  C. OF E.  PRIMARY SCHOOL (NEW MALDEN),SCHOOL FUNDS,Schools,Miscellaneous Expenses,A49000
Royal Borough of Kingston,06/02/2024,90303257,"1,265.00",CHRIST CHURCH  C. OF E.  PRIMARY SCHOOL (NEW MALDEN),SCHOOL FUNDS,Schools,Miscellaneous Expenses,A49000
Royal Borough of Kingston,06/02/2024,90304193,"9,137.25",CHRIST CHURCH  C. OF E.  PRIMARY SCHOOL (NEW MALDEN),SCHOOL FUNDS,Schools,Miscellaneous Expenses,A49000
Royal Borough of Kingston,06/02/2024,90303176,"172,686.54",CHRIST CHURCH C.OF E. PRIMARY SCHOOL - (SURBITON),ACADEMIC INSTNS - OTHER,Schools,Miscellaneous Expenses,A49000
Royal Borough of Kingston,06/02/2024,90303196,"1,232.50",CHRIST CHURCH C.OF E. PRIMARY SCHOOL - (SURBITON),ACADEMIC INSTNS - OTHER,Schools,Miscellaneous Expenses,A49000
Royal Borough of Kingston,06/02/2024,90303234,630.00,CHRIST CHURCH C.OF E. PRIMARY SCHOOL - (SURBITON),ACADEMIC INSTNS - OTHER,Schools,Miscellaneous Expenses,A49000
Royal Borough of Kingston,06/02/2024,90303254,"10,548.75",CHRIST CHURCH C.OF E. PRIMARY SCHOOL - (SURBITON),ACADEMIC INSTNS - OTHER,Schools,Miscellaneous Expenses,A49000
Royal Borough of Kingston,06/02/2024,90303255,"3,162.50",CHRIST CHURCH C.OF E. PRIMARY SCHOOL - (SURBITON),ACADEMIC INSTNS - OTHER,Schools,Miscellaneous Expenses,A49000
Royal Borough of Kingston,29/01/2024,90304073,"1,408.19",CHRISTIES CARE LTD,SOCIAL SERVICES RESIDENTIAL,Adult Social Care & Health,Homecare - non - Framework - 24 hour care & live-in,A56166
Royal Borough of Kingston,29/01/2024,90304073,"1,408.19",CHRISTIES CARE LTD,SOCIAL SERVICES RESIDENTIAL,Adult Social Care & Health,Homecare - non - Framework - 24 hour care & live-in,A56166
Royal Borough of Kingston,29/01/2024,90304074,"1,316.40",CHRISTIES CARE LTD,SOCIAL SERVICES RESIDENTIAL,Adult Social Care & Health,Homecare - non - Framework - 24 hour care & live-in,A56166
Royal Borough of Kingston,29/01/2024,90304074,"1,316.40",CHRISTIES CARE LTD,SOCIAL SERVICES RESIDENTIAL,Adult Social Care & Health,Homecare - non - Framework - 24 hour care & live-in,A56166
Royal Borough of Kingston,29/01/2024,90304075,"1,369.70",CHRISTIES CARE LTD,SOCIAL SERVICES RESIDENTIAL,Adult Social Care & Health,Homecare - non - Framework - 24 hour care & live-in,A56166
Royal Borough of Kingston,29/01/2024,90304075,"1,369.70",CHRISTIES CARE LTD,SOCIAL SERVICES RESIDENTIAL,Adult Social Care & Health,Homecare - non - Framework - 24 hour care & live-in,A56166
Royal Borough of Kingston,29/01/2024,90304076,"1,321.65",CHRISTIES CARE LTD,SOCIAL SERVICES RESIDENTIAL,Adult Social Care & Health,Homecare - non - Framework - 24 hour care & live-in,A56166
Royal Borough of Kingston,29/01/2024,90304076,"1,321.65",CHRISTIES CARE LTD,SOCIAL SERVICES RESIDENTIAL,Adult Social Care & Health,Homecare - non - Framework - 24 hour care & live-in,A56166
Royal Borough of Kingston,05/02/2024,90306404,"1,408.19",CHRISTIES CARE LTD,SOCIAL SERVICES RESIDENTIAL,Adult Social Care & Health,Homecare - non - Framework - 24 hour care & live-in,A56166
Royal Borough of Kingston,05/02/2024,90306404,"1,408.19",CHRISTIES CARE LTD,SOCIAL SERVICES RESIDENTIAL,Adult Social Care & Health,Homecare - non - Framework - 24 hour care & live-in,A56166
Royal Borough of Kingston,05/02/2024,90306405,"1,316.40",CHRISTIES CARE LTD,SOCIAL SERVICES RESIDENTIAL,Adult Social Care & Health,Homecare - non - Framework - 24 hour care & live-in,A56166
Royal Borough of Kingston,05/02/2024,90306405,"1,316.40",CHRISTIES CARE LTD,SOCIAL SERVICES RESIDENTIAL,Adult Social Care & Health,Homecare - non - Framework - 24 hour care & live-in,A56166
Royal Borough of Kingston,05/02/2024,90306406,"1,369.70",CHRISTIES CARE LTD,SOCIAL SERVICES RESIDENTIAL,Adult Social Care & Health,Homecare - non - Framework - 24 hour care & live-in,A56166
Royal Borough of Kingston,05/02/2024,90306406,"1,369.70",CHRISTIES CARE LTD,SOCIAL SERVICES RESIDENTIAL,Adult Social Care & Health,Homecare - non - Framework - 24 hour care & live-in,A56166
Royal Borough of Kingston,05/02/2024,90306407,"1,321.65",CHRISTIES CARE LTD,SOCIAL SERVICES RESIDENTIAL,Adult Social Care & Health,Homecare - non - Framework - 24 hour care & live-in,A56166
Royal Borough of Kingston,05/02/2024,90306407,"1,321.65",CHRISTIES CARE LTD,SOCIAL SERVICES RESIDENTIAL,Adult Social Care & Health,Homecare - non - Framework - 24 hour care & live-in,A56166
Royal Borough of Kingston,12/02/2024,90307754,"1,408.19",CHRISTIES CARE LTD,SOCIAL SERVICES RESIDENTIAL,Adult Social Care & Health,Homecare - non - Framework - 24 hour care & live-in,A56166
Royal Borough of Kingston,12/02/2024,90307754,"1,408.19",CHRISTIES CARE LTD,SOCIAL SERVICES RESIDENTIAL,Adult Social Care & Health,Homecare - non - Framework - 24 hour care & live-in,A56166
Royal Borough of Kingston,12/02/2024,90307755,"1,316.40",CHRISTIES CARE LTD,SOCIAL SERVICES RESIDENTIAL,Adult Social Care & Health,Homecare - non - Framework - 24 hour care & live-in,A56166
Royal Borough of Kingston,12/02/2024,90307755,"1,316.40",CHRISTIES CARE LTD,SOCIAL SERVICES RESIDENTIAL,Adult Social Care & Health,Homecare - non - Framework - 24 hour care & live-in,A56166
Royal Borough of Kingston,12/02/2024,90307756,"1,369.70",CHRISTIES CARE LTD,SOCIAL SERVICES RESIDENTIAL,Adult Social Care & Health,Homecare - non - Framework - 24 hour care & live-in,A56166
Royal Borough of Kingston,12/02/2024,90307756,"1,369.70",CHRISTIES CARE LTD,SOCIAL SERVICES RESIDENTIAL,Adult Social Care & Health,Homecare - non - Framework - 24 hour care & live-in,A56166
Royal Borough of Kingston,12/02/2024,90307757,"1,321.65",CHRISTIES CARE LTD,SOCIAL SERVICES RESIDENTIAL,Adult Social Care & Health,Homecare - non - Framework - 24 hour care & live-in,A56166
Royal Borough of Kingston,12/02/2024,90307757,"1,321.65",CHRISTIES CARE LTD,SOCIAL SERVICES RESIDENTIAL,Adult Social Care & Health,Homecare - non - Framework - 24 hour care & live-in,A56166
Royal Borough of Kingston,12/02/2024,70064625,"1,040.00",City Removals Ltd,SUNDRY SUPPLIER - HOUSING,Housing Revenue Account,Removal Services,A44075
Royal Borough of Kingston,14/02/2024,70065036,"96,951.56",CityAxis,CONSTRUCTION INDUSTRY,Place,Payments to Contractors,C14000
Royal Borough of Kingston,06/02/2024,90304153,"2,277.00",REDACTED - PERSONAL DATA,ACADEMIC INSTNS - OTHER,Schools,PVI Providers,A60014
Royal Borough of Kingston,01/02/2024,90308757,"-3,314.29",Claremont Care Services Ltd,SOCIAL SERVICES RESIDENTIAL,Adult Social Care & Health,Independent Placements,A56006
Royal Borough of Kingston,01/02/2024,90308781,"7,250.00",Claremont Care Services Ltd,SOCIAL SERVICES RESIDENTIAL,Adult Social Care & Health,Independent Placements,A56006
Royal Borough of Kingston,01/02/2024,90308854,"13,224.00",Claremont Care Services Ltd,SOCIAL SERVICES RESIDENTIAL,Adult Social Care & Health,Independent Placements,A56006
Royal Borough of Kingston,01/02/2024,90308927,"8,655.13",CLEARWATER CARE (HACKNEY) LTD,SOCIAL SERVICES RESIDENTIAL,Adult Social Care & Health,Independent Placements,A56006
Royal Borough of Kingston,01/02/2024,90310457,"6,204.92",CLIA Care Ltd,ACCOMMODATION - OTHER,Adult Social Care & Health,Personal Budget - Third Party,A61019
Royal Borough of Kingston,22/02/2024,90308222,"1,094.00",CLIFFE &  ROCHFORD,PLS LANDLORDS,Place,PSL Payments To Landlords,A22031
Royal Borough of Kingston,22/02/2024,90308050,"1,435.50",CLIQUE 187 LTD,PLS LANDLORDS,Place,PSL Payments To Landlords,A22031
Royal Borough of Kingston,24/01/2024,70063980,650.00,Albion Cleaning Services,SOCIAL SERVICES - OTHER,Adult Social Care & Health,Other Private Contractors - Third Party,A56080
Royal Borough of Kingston,09/12/2023,70064026,"3,902.00",CLOSOMAT LIMITED,PREMISES - CLEANING & LAUNDRY,Corporate & Communities,Grants Given For Capital Purposes,C20004
Royal Borough of Kingston,01/02/2024,90310446,"5,791.71",CM CARE LTD,SOCIAL SERVICES RESIDENTIAL,Adult Social Care & Health,Personal Budget - Third Party,A61019
Royal Borough of Kingston,01/02/2024,90310455,"5,144.48",CM CARE LTD,SOCIAL SERVICES RESIDENTIAL,Adult Social Care & Health,Personal Budget - Third Party,A61019
Royal Borough of Kingston,01/02/2024,90310461,"4,867.86",CM CARE LTD,SOCIAL SERVICES RESIDENTIAL,Adult Social Care & Health,Personal Budget - Third Party,A61019
Royal Borough of Kingston,01/02/2024,90310289,"-2,582.82",CMG LIMITED,SOCIAL SERVICES - OTHER,Adult Social Care & Health,Personal Budget - Third Party,A61019
Royal Borough of Kingston,01/02/2024,90310290,"-3,202.70",CMG LIMITED,SOCIAL SERVICES - OTHER,Adult Social Care & Health,Personal Budget - Third Party,A61019
Royal Borough of Kingston,01/02/2024,90310291,"-3,202.70",CMG LIMITED,SOCIAL SERVICES - OTHER,Adult Social Care & Health,Personal Budget - Third Party,A61019
Royal Borough of Kingston,01/02/2024,90310304,"5,435.84",CMG LIMITED,SOCIAL SERVICES - OTHER,Adult Social Care & Health,Personal Budget - Third Party,A61019
Royal Borough of Kingston,01/02/2024,90310305,"5,403.61",CMG LIMITED,SOCIAL SERVICES - OTHER,Adult Social Care & Health,Personal Budget - Third Party,A61019
Royal Borough of Kingston,01/02/2024,90310317,"5,933.36",CMG LIMITED,SOCIAL SERVICES - OTHER,Adult Social Care & Health,Personal Budget - Third Party,A61019
Royal Borough of Kingston,01/02/2024,90310325,913.75,CMG LIMITED,SOCIAL SERVICES - OTHER,Adult Social Care & Health,Personal Budget - Third Party,A61019
Royal Borough of Kingston,01/02/2024,90310326,"3,947.73",CMG LIMITED,SOCIAL SERVICES - OTHER,Adult Social Care & Health,Personal Budget - Third Party,A61019
Royal Borough of Kingston,01/02/2024,90310358,"4,709.19",CMG LIMITED,SOCIAL SERVICES - OTHER,Adult Social Care & Health,Personal Budget - Third Party,A61019
Royal Borough of Kingston,15/01/2024,90303474,567.24,CN Healthcare,SOCIAL SERVICES - OTHER,Adult Social Care & Health,Homecare - new framework,A56127
Royal Borough of Kingston,15/01/2024,90303579,567.24,CN Healthcare,SOCIAL SERVICES - OTHER,Adult Social Care & Health,Homecare - new framework,A56127
Royal Borough of Kingston,15/01/2024,90303627,630.27,CN Healthcare,SOCIAL SERVICES - OTHER,Adult Social Care & Health,Homecare - new framework,A56127
Royal Borough of Kingston,15/01/2024,90303789,693.29,CN Healthcare,SOCIAL SERVICES - OTHER,Adult Social Care & Health,Homecare - new framework,A56127
Royal Borough of Kingston,15/01/2024,90303909,504.21,CN Healthcare,SOCIAL SERVICES - OTHER,Adult Social Care & Health,Homecare - Framework - double-handed,A56131
Royal Borough of Kingston,15/01/2024,90303909,504.21,CN Healthcare,SOCIAL SERVICES - OTHER,Adult Social Care & Health,Homecare - Framework - double-handed,A56131
Royal Borough of Kingston,15/01/2024,90304025,504.21,CN Healthcare,SOCIAL SERVICES - OTHER,Adult Social Care & Health,Homecare - Framework - D2A,A56133
Royal Borough of Kingston,15/01/2024,90304025,504.21,CN Healthcare,SOCIAL SERVICES - OTHER,Adult Social Care & Health,Homecare - Framework - D2A,A56133
Royal Borough of Kingston,15/01/2024,90304038,630.35,CN Healthcare,SOCIAL SERVICES - OTHER,Adult Social Care & Health,Homecare - Framework - D2A,A56133
Royal Borough of Kingston,15/01/2024,90304038,630.35,CN Healthcare,SOCIAL SERVICES - OTHER,Adult Social Care & Health,Homecare - Framework - D2A,A56133
Royal Borough of Kingston,22/01/2024,90305806,567.24,CN Healthcare,SOCIAL SERVICES - OTHER,Adult Social Care & Health,Homecare - new framework,A56127
Royal Borough of Kingston,22/01/2024,90305896,567.24,CN Healthcare,SOCIAL SERVICES - OTHER,Adult Social Care & Health,Homecare - new framework,A56127
Royal Borough of Kingston,22/01/2024,90305950,630.27,CN Healthcare,SOCIAL SERVICES - OTHER,Adult Social Care & Health,Homecare - new framework,A56127
Royal Borough of Kingston,22/01/2024,90306097,693.29,CN Healthcare,SOCIAL SERVICES - OTHER,Adult Social Care & Health,Homecare - new framework,A56127
Royal Borough of Kingston,22/01/2024,90306215,504.21,CN Healthcare,SOCIAL SERVICES - OTHER,Adult Social Care & Health,Homecare - Framework - double-handed,A56131
Royal Borough of Kingston,22/01/2024,90306215,504.21,CN Healthcare,SOCIAL SERVICES - OTHER,Adult Social Care & Health,Homecare - Framework - double-handed,A56131
Royal Borough of Kingston,22/01/2024,90306362,630.35,CN Healthcare,SOCIAL SERVICES - OTHER,Adult Social Care & Health,Homecare - Framework - D2A,A56133
Royal Borough of Kingston,22/01/2024,90306362,630.35,CN Healthcare,SOCIAL SERVICES - OTHER,Adult Social Care & Health,Homecare - Framework - D2A,A56133
Royal Borough of Kingston,29/01/2024,90307242,567.24,CN Healthcare,SOCIAL SERVICES - OTHER,Adult Social Care & Health,Homecare - new framework,A56127
Royal Borough of Kingston,29/01/2024,90307290,630.27,CN Healthcare,SOCIAL SERVICES - OTHER,Adult Social Care & Health,Homecare - new framework,A56127
Royal Borough of Kingston,29/01/2024,90307436,693.29,CN Healthcare,SOCIAL SERVICES - OTHER,Adult Social Care & Health,Homecare - new framework,A56127
Royal Borough of Kingston,29/01/2024,90307552,504.21,CN Healthcare,SOCIAL SERVICES - OTHER,Adult Social Care & Health,Homecare - Framework - double-handed,A56131
Royal Borough of Kingston,29/01/2024,90307552,504.21,CN Healthcare,SOCIAL SERVICES - OTHER,Adult Social Care & Health,Homecare - Framework - double-handed,A56131
Royal Borough of Kingston,29/01/2024,90307566,504.21,CN Healthcare,SOCIAL SERVICES - OTHER,Adult Social Care & Health,Homecare - Framework - double-handed,A56131
Royal Borough of Kingston,29/01/2024,90307566,504.21,CN Healthcare,SOCIAL SERVICES - OTHER,Adult Social Care & Health,Homecare - Framework - double-handed,A56131
Royal Borough of Kingston,29/01/2024,90307731,630.35,CN Healthcare,SOCIAL SERVICES - OTHER,Adult Social Care & Health,Homecare - Framework - D2A,A56133
Royal Borough of Kingston,29/01/2024,90307731,630.35,CN Healthcare,SOCIAL SERVICES - OTHER,Adult Social Care & Health,Homecare - Framework - D2A,A56133
Royal Borough of Kingston,05/02/2024,90309451,567.24,CN Healthcare,SOCIAL SERVICES - OTHER,Adult Social Care & Health,Homecare - new framework,A56127
Royal Borough of Kingston,05/02/2024,90309495,630.27,CN Healthcare,SOCIAL SERVICES - OTHER,Adult Social Care & Health,Homecare - new framework,A56127
Royal Borough of Kingston,05/02/2024,90309635,693.29,CN Healthcare,SOCIAL SERVICES - OTHER,Adult Social Care & Health,Homecare - new framework,A56127
Royal Borough of Kingston,05/02/2024,90309725,504.21,CN Healthcare,SOCIAL SERVICES - OTHER,Adult Social Care & Health,Homecare - Framework - double-handed,A56131
Royal Borough of Kingston,05/02/2024,90309725,504.21,CN Healthcare,SOCIAL SERVICES - OTHER,Adult Social Care & Health,Homecare - Framework - double-handed,A56131
Royal Borough of Kingston,05/02/2024,90309738,504.21,CN Healthcare,SOCIAL SERVICES - OTHER,Adult Social Care & Health,Homecare - Framework - double-handed,A56131
Royal Borough of Kingston,05/02/2024,90309738,504.21,CN Healthcare,SOCIAL SERVICES - OTHER,Adult Social Care & Health,Homecare - Framework - double-handed,A56131
Royal Borough of Kingston,05/02/2024,90309913,630.35,CN Healthcare,SOCIAL SERVICES - OTHER,Adult Social Care & Health,Homecare - Framework - D2A,A56133
Royal Borough of Kingston,05/02/2024,90309913,630.35,CN Healthcare,SOCIAL SERVICES - OTHER,Adult Social Care & Health,Homecare - Framework - D2A,A56133
Royal Borough of Kingston,22/02/2024,90308089,"1,215.00",REDACTED - PERSONAL DATA,PLS LANDLORDS,Place,PSL Payments To Landlords,A22031
Royal Borough of Kingston,22/02/2024,90308108,"1,094.00",REDACTED - PERSONAL DATA,PLS LANDLORDS,Place,PSL Payments To Landlords,A22031
Royal Borough of Kingston,31/01/2024,70064061,514.39,COMETT LIMITED,ENTERTAINMENTS INDUSTRY,Adult Social Care & Health,Consultancy Services - Other,A44065
Royal Borough of Kingston,29/01/2024,70064062,514.39,COMETT LIMITED,ENTERTAINMENTS INDUSTRY,Adult Social Care & Health,Consultancy Services - Other,A44065
Royal Borough of Kingston,01/02/2024,90309013,"1,386.56",COMFORT CARE SERVICES UK LTD,SOCIAL SERVICES-HOME CARE,Adult Social Care & Health,Supported Living - new framework,A56126
Royal Borough of Kingston,01/02/2024,90309014,"2,959.85",COMFORT CARE SERVICES UK LTD,SOCIAL SERVICES-HOME CARE,Adult Social Care & Health,Supported Living - new framework,A56126
Royal Borough of Kingston,01/02/2024,90309018,"2,748.33",COMFORT CARE SERVICES UK LTD,SOCIAL SERVICES-HOME CARE,Adult Social Care & Health,Supported Living - new framework,A56126
Royal Borough of Kingston,01/02/2024,90309020,"1,724.88",COMFORT CARE SERVICES UK LTD,SOCIAL SERVICES-HOME CARE,Adult Social Care & Health,Supported Living - new framework,A56126
Royal Borough of Kingston,01/02/2024,90309021,862.44,COMFORT CARE SERVICES UK LTD,SOCIAL SERVICES-HOME CARE,Adult Social Care & Health,Supported Living - new framework,A56126
Royal Borough of Kingston,01/02/2024,90309023,"1,724.88",COMFORT CARE SERVICES UK LTD,SOCIAL SERVICES-HOME CARE,Adult Social Care & Health,Supported Living - new framework,A56126
Royal Borough of Kingston,01/02/2024,90309024,862.44,COMFORT CARE SERVICES UK LTD,SOCIAL SERVICES-HOME CARE,Adult Social Care & Health,Supported Living - new framework,A56126
Royal Borough of Kingston,01/02/2024,90309185,"1,848.75",COMFORT CARE SERVICES UK LTD,SOCIAL SERVICES-HOME CARE,Adult Social Care & Health,Supported Living - new framework,A56126
Royal Borough of Kingston,01/02/2024,90309186,739.50,COMFORT CARE SERVICES UK LTD,SOCIAL SERVICES-HOME CARE,Adult Social Care & Health,Supported Living - new framework,A56126
Royal Borough of Kingston,01/02/2024,90309188,873.48,COMFORT CARE SERVICES UK LTD,SOCIAL SERVICES-HOME CARE,Adult Social Care & Health,Supported Living - new framework,A56126
Royal Borough of Kingston,01/02/2024,90309190,"1,724.88",COMFORT CARE SERVICES UK LTD,SOCIAL SERVICES-HOME CARE,Adult Social Care & Health,Supported Living - new framework,A56126
Royal Borough of Kingston,01/02/2024,90309191,862.44,COMFORT CARE SERVICES UK LTD,SOCIAL SERVICES-HOME CARE,Adult Social Care & Health,Supported Living - new framework,A56126
Royal Borough of Kingston,01/02/2024,90309192,554.56,COMFORT CARE SERVICES UK LTD,SOCIAL SERVICES-HOME CARE,Adult Social Care & Health,Supported Living - new framework,A56126
Royal Borough of Kingston,01/02/2024,90309193,"1,109.25",COMFORT CARE SERVICES UK LTD,SOCIAL SERVICES-HOME CARE,Adult Social Care & Health,Supported Living - new framework,A56126
Royal Borough of Kingston,01/02/2024,90309197,"1,724.88",COMFORT CARE SERVICES UK LTD,SOCIAL SERVICES-HOME CARE,Adult Social Care & Health,Supported Living - new framework,A56126
Royal Borough of Kingston,01/02/2024,90309198,862.44,COMFORT CARE SERVICES UK LTD,SOCIAL SERVICES-HOME CARE,Adult Social Care & Health,Supported Living - new framework,A56126
Royal Borough of Kingston,01/02/2024,90309200,"2,070.60",COMFORT CARE SERVICES UK LTD,SOCIAL SERVICES-HOME CARE,Adult Social Care & Health,Supported Living - new framework,A56126
Royal Borough of Kingston,01/02/2024,90309201,517.65,COMFORT CARE SERVICES UK LTD,SOCIAL SERVICES-HOME CARE,Adult Social Care & Health,Supported Living - new framework,A56126
Royal Borough of Kingston,01/02/2024,90309203,"1,724.88",COMFORT CARE SERVICES UK LTD,SOCIAL SERVICES-HOME CARE,Adult Social Care & Health,Supported Living - new framework,A56126
Royal Borough of Kingston,01/02/2024,90309204,862.44,COMFORT CARE SERVICES UK LTD,SOCIAL SERVICES-HOME CARE,Adult Social Care & Health,Supported Living - new framework,A56126
Royal Borough of Kingston,01/02/2024,90309207,826.50,COMFORT CARE SERVICES UK LTD,SOCIAL SERVICES-HOME CARE,Adult Social Care & Health,Supported Living - new framework,A56126
Royal Borough of Kingston,01/02/2024,90309208,"2,070.60",COMFORT CARE SERVICES UK LTD,SOCIAL SERVICES-HOME CARE,Adult Social Care & Health,Supported Living - new framework,A56126
Royal Borough of Kingston,01/02/2024,90309209,517.65,COMFORT CARE SERVICES UK LTD,SOCIAL SERVICES-HOME CARE,Adult Social Care & Health,Supported Living - new framework,A56126
Royal Borough of Kingston,01/02/2024,90309211,873.48,COMFORT CARE SERVICES UK LTD,SOCIAL SERVICES-HOME CARE,Adult Social Care & Health,Supported Living - new framework,A56126
Royal Borough of Kingston,01/02/2024,90309213,"1,724.88",COMFORT CARE SERVICES UK LTD,SOCIAL SERVICES-HOME CARE,Adult Social Care & Health,Supported Living - new framework,A56126
Royal Borough of Kingston,01/02/2024,90309214,862.44,COMFORT CARE SERVICES UK LTD,SOCIAL SERVICES-HOME CARE,Adult Social Care & Health,Supported Living - new framework,A56126
Royal Borough of Kingston,01/02/2024,90309216,"1,724.88",COMFORT CARE SERVICES UK LTD,SOCIAL SERVICES-HOME CARE,Adult Social Care & Health,Supported Living - new framework,A56126
Royal Borough of Kingston,01/02/2024,90309217,862.44,COMFORT CARE SERVICES UK LTD,SOCIAL SERVICES-HOME CARE,Adult Social Care & Health,Supported Living - new framework,A56126
Royal Borough of Kingston,01/02/2024,90309219,"1,724.88",COMFORT CARE SERVICES UK LTD,SOCIAL SERVICES-HOME CARE,Adult Social Care & Health,Supported Living - new framework,A56126
Royal Borough of Kingston,01/02/2024,90309220,862.44,COMFORT CARE SERVICES UK LTD,SOCIAL SERVICES-HOME CARE,Adult Social Care & Health,Supported Living - new framework,A56126
Royal Borough of Kingston,01/02/2024,90309222,"1,724.88",COMFORT CARE SERVICES UK LTD,SOCIAL SERVICES-HOME CARE,Adult Social Care & Health,Supported Living - new framework,A56126
Royal Borough of Kingston,01/02/2024,90309223,862.44,COMFORT CARE SERVICES UK LTD,SOCIAL SERVICES-HOME CARE,Adult Social Care & Health,Supported Living - new framework,A56126
Royal Borough of Kingston,01/02/2024,90309228,"1,724.88",COMFORT CARE SERVICES UK LTD,SOCIAL SERVICES-HOME CARE,Adult Social Care & Health,Supported Living - new framework,A56126
Royal Borough of Kingston,01/02/2024,90309229,862.44,COMFORT CARE SERVICES UK LTD,SOCIAL SERVICES-HOME CARE,Adult Social Care & Health,Supported Living - new framework,A56126
Royal Borough of Kingston,01/02/2024,90309231,"2,070.60",COMFORT CARE SERVICES UK LTD,SOCIAL SERVICES-HOME CARE,Adult Social Care & Health,Supported Living - new framework,A56126
Royal Borough of Kingston,01/02/2024,90309232,517.65,COMFORT CARE SERVICES UK LTD,SOCIAL SERVICES-HOME CARE,Adult Social Care & Health,Supported Living - new framework,A56126
Royal Borough of Kingston,01/02/2024,90309234,"2,070.60",COMFORT CARE SERVICES UK LTD,SOCIAL SERVICES-HOME CARE,Adult Social Care & Health,Supported Living - new framework,A56126
Royal Borough of Kingston,01/02/2024,90309235,517.65,COMFORT CARE SERVICES UK LTD,SOCIAL SERVICES-HOME CARE,Adult Social Care & Health,Supported Living - new framework,A56126
Royal Borough of Kingston,01/02/2024,90309237,554.56,COMFORT CARE SERVICES UK LTD,SOCIAL SERVICES-HOME CARE,Adult Social Care & Health,Supported Living - new framework,A56126
Royal Borough of Kingston,01/02/2024,90309238,"1,109.25",COMFORT CARE SERVICES UK LTD,SOCIAL SERVICES-HOME CARE,Adult Social Care & Health,Supported Living - new framework,A56126
Royal Borough of Kingston,01/02/2024,90309243,"1,724.88",COMFORT CARE SERVICES UK LTD,SOCIAL SERVICES-HOME CARE,Adult Social Care & Health,Supported Living - new framework,A56126
Royal Borough of Kingston,01/02/2024,90309244,862.44,COMFORT CARE SERVICES UK LTD,SOCIAL SERVICES-HOME CARE,Adult Social Care & Health,Supported Living - new framework,A56126
Royal Borough of Kingston,01/02/2024,90309247,"1,724.88",COMFORT CARE SERVICES UK LTD,SOCIAL SERVICES-HOME CARE,Adult Social Care & Health,Supported Living - new framework,A56126
Royal Borough of Kingston,01/02/2024,90309248,862.44,COMFORT CARE SERVICES UK LTD,SOCIAL SERVICES-HOME CARE,Adult Social Care & Health,Supported Living - new framework,A56126
Royal Borough of Kingston,01/02/2024,90310258,"1,058.96",COMFORT CARE SERVICES UK LTD,SOCIAL SERVICES-HOME CARE,Adult Social Care & Health,Personal Budget - Third Party,A61019
Royal Borough of Kingston,01/02/2024,90310259,"4,218.59",COMFORT CARE SERVICES UK LTD,SOCIAL SERVICES-HOME CARE,Adult Social Care & Health,Personal Budget - Third Party,A61019
Royal Borough of Kingston,01/02/2024,90310261,"1,024.51",COMFORT CARE SERVICES UK LTD,SOCIAL SERVICES-HOME CARE,Adult Social Care & Health,Personal Budget - Third Party,A61019
Royal Borough of Kingston,01/02/2024,90310263,903.97,COMFORT CARE SERVICES UK LTD,SOCIAL SERVICES-HOME CARE,Adult Social Care & Health,Personal Budget - Third Party,A61019
Royal Borough of Kingston,01/02/2024,90310264,"4,218.59",COMFORT CARE SERVICES UK LTD,SOCIAL SERVICES-HOME CARE,Adult Social Care & Health,Personal Budget - Third Party,A61019
Royal Borough of Kingston,01/02/2024,90310266,"1,024.51",COMFORT CARE SERVICES UK LTD,SOCIAL SERVICES-HOME CARE,Adult Social Care & Health,Personal Budget - Third Party,A61019
Royal Borough of Kingston,01/02/2024,90310272,"1,058.96",COMFORT CARE SERVICES UK LTD,SOCIAL SERVICES-HOME CARE,Adult Social Care & Health,Personal Budget - Third Party,A61019
Royal Borough of Kingston,01/02/2024,90310273,"4,218.59",COMFORT CARE SERVICES UK LTD,SOCIAL SERVICES-HOME CARE,Adult Social Care & Health,Personal Budget - Third Party,A61019
Royal Borough of Kingston,01/02/2024,90310275,"1,024.51",COMFORT CARE SERVICES UK LTD,SOCIAL SERVICES-HOME CARE,Adult Social Care & Health,Personal Budget - Third Party,A61019
Royal Borough of Kingston,01/02/2024,90310327,"-3,115.32",COMFORT CARE SERVICES UK LTD,SOCIAL SERVICES-HOME CARE,Adult Social Care & Health,Personal Budget - Third Party,A61019
Royal Borough of Kingston,01/02/2024,90310328,"-4,198.91",COMFORT CARE SERVICES UK LTD,SOCIAL SERVICES-HOME CARE,Adult Social Care & Health,Personal Budget - Third Party,A61019
Royal Borough of Kingston,01/02/2024,90310329,"-4,198.91",COMFORT CARE SERVICES UK LTD,SOCIAL SERVICES-HOME CARE,Adult Social Care & Health,Personal Budget - Third Party,A61019
Royal Borough of Kingston,01/02/2024,90310331,"1,394.74",COMFORT CARE SERVICES UK LTD,SOCIAL SERVICES-HOME CARE,Adult Social Care & Health,Personal Budget - Third Party,A61019
Royal Borough of Kingston,01/02/2024,90310332,"4,218.59",COMFORT CARE SERVICES UK LTD,SOCIAL SERVICES-HOME CARE,Adult Social Care & Health,Personal Budget - Third Party,A61019
Royal Borough of Kingston,01/02/2024,90310334,"1,024.51",COMFORT CARE SERVICES UK LTD,SOCIAL SERVICES-HOME CARE,Adult Social Care & Health,Personal Budget - Third Party,A61019
Royal Borough of Kingston,01/02/2024,90310341,"1,420.54",COMFORT CARE SERVICES UK LTD,SOCIAL SERVICES-HOME CARE,Adult Social Care & Health,Personal Budget - Third Party,A61019
Royal Borough of Kingston,01/02/2024,90310342,"4,218.59",COMFORT CARE SERVICES UK LTD,SOCIAL SERVICES-HOME CARE,Adult Social Care & Health,Personal Budget - Third Party,A61019
Royal Borough of Kingston,01/02/2024,90310344,"1,024.51",COMFORT CARE SERVICES UK LTD,SOCIAL SERVICES-HOME CARE,Adult Social Care & Health,Personal Budget - Third Party,A61019
Royal Borough of Kingston,01/02/2024,90310352,"1,498.01",COMFORT CARE SERVICES UK LTD,SOCIAL SERVICES-HOME CARE,Adult Social Care & Health,Personal Budget - Third Party,A61019
Royal Borough of Kingston,01/02/2024,90310353,"4,218.59",COMFORT CARE SERVICES UK LTD,SOCIAL SERVICES-HOME CARE,Adult Social Care & Health,Personal Budget - Third Party,A61019
Royal Borough of Kingston,01/02/2024,90310355,"1,024.51",COMFORT CARE SERVICES UK LTD,SOCIAL SERVICES-HOME CARE,Adult Social Care & Health,Personal Budget - Third Party,A61019
Royal Borough of Kingston,01/02/2024,90310437,"2,885.75",COMFORT CARE SERVICES UK LTD,SOCIAL SERVICES-HOME CARE,Adult Social Care & Health,Personal Budget - Third Party,A61019
Royal Borough of Kingston,01/02/2024,90308902,"8,215.08",CONGRESS HOUSE LIMITED,SOCIAL SERVICES RESIDENTIAL,Adult Social Care & Health,Independent Placements,A56006
Royal Borough of Kingston,22/02/2024,90308372,842.00,REDACTED - PERSONAL DATA,PLS LANDLORDS,Place,PSL Payments To Landlords,A22031
Royal Borough of Kingston,31/01/2024,70063902,971.00,Content is Queen Ltd,SUNDRY SUPPLIER - FINANCE,Corporate & Communities,Professional Fees,A44066
Royal Borough of Kingston,25/01/2024,70063950,"2,975.50",COOMBE ACADEMY TRUST,SCHOOL FUNDS,Corporate & Communities,Building Rents,A22005
Royal Borough of Kingston,06/02/2024,90304204,"9,726.75",COOMBE ACADEMY TRUST,SCHOOL FUNDS,Schools,Miscellaneous Expenses,A49000
Royal Borough of Kingston,20/02/2024,90307001,"1,227.60",COOMBE ACADEMY TRUST,SCHOOL FUNDS,Schools,Miscellaneous Expenses,A49000
Royal Borough of Kingston,29/02/2024,90310529,"3,949.00",COOMBE ACADEMY TRUST,SCHOOL FUNDS,Schools,Miscellaneous Expenses,A49000
Royal Borough of Kingston,29/02/2024,90310532,"2,500.00",COOMBE GIRLS SCHOOL,SCHOOL FUNDS,Schools,Miscellaneous Expenses,A49000
Royal Borough of Kingston,06/02/2024,90303178,"115,549.93",COOMBE HILL INFANTS SCHOOL,SCHOOL FUNDS,Schools,Miscellaneous Expenses,A49000
Royal Borough of Kingston,06/02/2024,90303204,"1,123.75",COOMBE HILL INFANTS SCHOOL,SCHOOL FUNDS,Schools,Miscellaneous Expenses,A49000
Royal Borough of Kingston,06/02/2024,90303258,"11,276.25",COOMBE HILL INFANTS SCHOOL,SCHOOL FUNDS,Schools,Miscellaneous Expenses,A49000
Royal Borough of Kingston,06/02/2024,90303179,"152,594.06",COOMBE HILL JUNIOR SCHOOL,SCHOOL FUNDS,Schools,Miscellaneous Expenses,A49000
Royal Borough of Kingston,06/02/2024,90303215,"2,211.25",COOMBE HILL JUNIOR SCHOOL,SCHOOL FUNDS,Schools,Miscellaneous Expenses,A49000
Royal Borough of Kingston,06/02/2024,90303225,"1,220.63",COOMBE HILL JUNIOR SCHOOL,SCHOOL FUNDS,Schools,Miscellaneous Expenses,A49000
Royal Borough of Kingston,06/02/2024,90303259,"19,278.75",COOMBE HILL JUNIOR SCHOOL,SCHOOL FUNDS,Schools,Miscellaneous Expenses,A49000
Royal Borough of Kingston,06/02/2024,90303261,"5,060.00",COOMBE HILL JUNIOR SCHOOL,SCHOOL FUNDS,Schools,Miscellaneous Expenses,A49000
Royal Borough of Kingston,06/02/2024,90303180,"153,762.37",CORPUS CHRISTI CATHOLIC PRIMARY SCHOOL ,SCHOOL FUNDS,Schools,Miscellaneous Expenses,A49000
Royal Borough of Kingston,06/02/2024,90303217,"1,087.50",CORPUS CHRISTI CATHOLIC PRIMARY SCHOOL ,SCHOOL FUNDS,Schools,Miscellaneous Expenses,A49000
Royal Borough of Kingston,06/02/2024,90303242,570.94,CORPUS CHRISTI CATHOLIC PRIMARY SCHOOL ,SCHOOL FUNDS,Schools,Miscellaneous Expenses,A49000
Royal Borough of Kingston,06/02/2024,90303262,"10,912.50",CORPUS CHRISTI CATHOLIC PRIMARY SCHOOL ,SCHOOL FUNDS,Schools,Miscellaneous Expenses,A49000
Royal Borough of Kingston,06/02/2024,90304194,"11,281.50",CORPUS CHRISTI CATHOLIC PRIMARY SCHOOL ,SCHOOL FUNDS,Schools,Miscellaneous Expenses,A49000
Royal Borough of Kingston,29/02/2024,90310533,"4,165.00",CORPUS CHRISTI CATHOLIC PRIMARY SCHOOL ,SCHOOL FUNDS,Schools,Miscellaneous Expenses,A49000
Royal Borough of Kingston,01/02/2024,90308562,"3,622.93",COUNTRY COURT CARE HOMES 2 LTD,SOCIAL SERVICES RESIDENTIAL,Adult Social Care & Health,Independent Placements,A56006
Royal Borough of Kingston,01/02/2024,90308652,"3,466.29",COUNTRY COURT CARE HOMES 2 LTD,SOCIAL SERVICES RESIDENTIAL,Adult Social Care & Health,Independent Placements,A56006
Royal Borough of Kingston,01/02/2024,90308663,"3,697.50",COUNTRY COURT CARE HOMES 2 LTD,SOCIAL SERVICES RESIDENTIAL,Adult Social Care & Health,Independent Placements,A56006
Royal Borough of Kingston,01/02/2024,90308687,"4,246.43",COUNTRY COURT CARE HOMES 2 LTD,SOCIAL SERVICES RESIDENTIAL,Adult Social Care & Health,Independent Placements,A56006
Royal Borough of Kingston,01/02/2024,90308849,"3,521.43",COUNTRY COURT CARE HOMES 2 LTD,SOCIAL SERVICES RESIDENTIAL,Adult Social Care & Health,Independent Placements,A56006
Royal Borough of Kingston,01/02/2024,70063817,"1,029.09",CRAVENCROFT LTD,CONSTRUCTION INDUSTRY,Place,Payments to Contractors,C14000
Royal Borough of Kingston,01/02/2024,70063937,"14,530.65",CRAVENCROFT LTD,CONSTRUCTION INDUSTRY,Place,Payments to Contractors,C14000
Royal Borough of Kingston,01/02/2024,70065012,"9,088.69",CRAVENCROFT LTD,CONSTRUCTION INDUSTRY,Place,Payments to Contractors,C14000
Royal Borough of Kingston,31/01/2024,70063940,"2,500.00",CREATIVE YOUTH,GRANTS & EX GRATIA PAYMENTS,Adult Social Care & Health,Other Private Contractors - Third Party,A56080
Royal Borough of Kingston,22/02/2024,90308129,"2,144.08",CROMWOOD LIMITED,PLS LANDLORDS,Place,PSL Payments To Landlords,A22031
Royal Borough of Kingston,31/01/2024,70064594,480.00,CROWN PROMOTIONS & REMOVALS LTD,PREMISES - REMOVALS,Place,Removal Services,A44075
Royal Borough of Kingston,31/01/2024,70064636,520.00,CROWN PROMOTIONS & REMOVALS LTD,PREMISES - REMOVALS,Housing Revenue Account,Buildings - Project Management,C14003
Royal Borough of Kingston,01/02/2024,70065447,"2,635.00",CRYSTAL & CO,ACCOMMODATION BED & BREAKFAST,Place,Bed & Breakfast,A56000
Royal Borough of Kingston,01/02/2024,70065448,"2,325.00",CRYSTAL & CO,ACCOMMODATION BED & BREAKFAST,Place,Bed & Breakfast,A56000
Royal Borough of Kingston,01/02/2024,70065449,"2,480.00",CRYSTAL & CO,ACCOMMODATION BED & BREAKFAST,Place,Bed & Breakfast,A56000
Royal Borough of Kingston,01/02/2024,70065450,"2,046.00",CRYSTAL & CO,ACCOMMODATION BED & BREAKFAST,Place,Bed & Breakfast,A56000
Royal Borough of Kingston,01/02/2024,70065451,"2,232.00",CRYSTAL & CO,ACCOMMODATION BED & BREAKFAST,Place,Bed & Breakfast,A56000
Royal Borough of Kingston,01/02/2024,70065452,"2,232.00",CRYSTAL & CO,ACCOMMODATION BED & BREAKFAST,Place,Bed & Breakfast,A56000
Royal Borough of Kingston,01/02/2024,70065453,"1,736.00",CRYSTAL & CO,ACCOMMODATION BED & BREAKFAST,Place,Bed & Breakfast,A56000
Royal Borough of Kingston,01/02/2024,70065454,"1,988.00",CRYSTAL & CO,ACCOMMODATION BED & BREAKFAST,Place,Bed & Breakfast,A56000
Royal Borough of Kingston,01/02/2024,70065455,"1,395.00",CRYSTAL & CO,ACCOMMODATION BED & BREAKFAST,Place,Bed & Breakfast,A56000
Royal Borough of Kingston,01/02/2024,70065456,"2,325.00",CRYSTAL & CO,ACCOMMODATION BED & BREAKFAST,Place,Bed & Breakfast,A56000
Royal Borough of Kingston,01/02/2024,70065457,"2,232.00",CRYSTAL & CO,ACCOMMODATION BED & BREAKFAST,Place,Bed & Breakfast,A56000
Royal Borough of Kingston,01/02/2024,70065458,"2,015.00",CRYSTAL & CO,ACCOMMODATION BED & BREAKFAST,Place,Bed & Breakfast,A56000
Royal Borough of Kingston,01/02/2024,70065459,"1,984.00",CRYSTAL & CO,ACCOMMODATION BED & BREAKFAST,Place,Bed & Breakfast,A56000
Royal Borough of Kingston,06/02/2024,90304198,"7,223.74",KNOLLMEAD PRIMARY SCHOOL,SCHOOL FUNDS,Schools,Miscellaneous Expenses,A49000
Royal Borough of Kingston,06/02/2024,70064339,916.67,CYCLESCHEME LIMITED,OFFICE SERVICES,Corporate Balance Sheet,Cycle To Work Scheme,B30102
Royal Borough of Kingston,22/02/2024,90308211,"1,317.00",REDACTED - PERSONAL DATA,PLS LANDLORDS,Place,PSL Payments To Landlords,A22031
Royal Borough of Kingston,18/01/2024,70063577,"1,962.00",D & L House Clearance Limited,BUILDING MNTCE - SERVICES,Corporate & Communities,Grants Given For Capital Purposes,C20004
Royal Borough of Kingston,22/02/2024,90308279,"1,321.66",REDACTED - PERSONAL DATA,PLS LANDLORDS,Place,PSL Payments To Landlords,A22031
Royal Borough of Kingston,06/02/2024,90304217,"1,352.25",REDACTED - PERSONAL DATA,ACADEMIC INSTNS - OTHER,Schools,PVI Providers,A60014
Royal Borough of Kingston,01/02/2024,90310447,"5,167.05",Daniels Care ltd,SOCIAL SERVICES RESIDENTIAL,Adult Social Care & Health,Personal Budget - Third Party,A61019
Royal Borough of Kingston,01/02/2024,90310066,"2,573.75",Darethealthcare UK Limited,ACCOMMODATION - OTHER,Adult Social Care & Health,S-L non - framework - Managed Service - S - L,A56162
Royal Borough of Kingston,01/02/2024,90310066,"2,573.75",Darethealthcare UK Limited,ACCOMMODATION - OTHER,Adult Social Care & Health,S-L non - framework - Managed Service - S - L,A56162
Royal Borough of Kingston,01/02/2024,90310100,"2,692.73",Darethealthcare UK Limited,ACCOMMODATION - OTHER,Adult Social Care & Health,Personal Budget - Third Party,A61019
Royal Borough of Kingston,01/02/2024,90310460,"2,997.15",Darethealthcare UK Limited,ACCOMMODATION - OTHER,Adult Social Care & Health,Personal Budget - Third Party,A61019
Royal Borough of Kingston,06/02/2024,90303319,500.00,REDACTED - PERSONAL DATA,GRANTS & EX GRATIA PAYMENTS,Adult Social Care & Health,"Grants, Contributions & Donations",A47005
Royal Borough of Kingston,22/02/2024,90308348,"1,400.00",REDACTED - PERSONAL DATA,PLS LANDLORDS,Place,PSL Payments To Landlords,A22031
Royal Borough of Kingston,06/02/2024,90303365,500.00,REDACTED - PERSONAL DATA,GRANTS & EX GRATIA PAYMENTS,Adult Social Care & Health,"Grants, Contributions & Donations",A47005
Royal Borough of Kingston,22/02/2024,90308276,"1,094.00",REDACTED - PERSONAL DATA,PLS LANDLORDS,Place,PSL Payments To Landlords,A22031
Royal Borough of Kingston,22/02/2024,90308366,"1,000.00",REDACTED - PERSONAL DATA,PLS LANDLORDS,Place,PSL Payments To Landlords,A22031
Royal Borough of Kingston,06/02/2024,90303324,500.00,REDACTED - PERSONAL DATA,GRANTS & EX GRATIA PAYMENTS,Adult Social Care & Health,"Grants, Contributions & Donations",A47005
Royal Borough of Kingston,06/02/2024,90303323,550.00,REDACTED - PERSONAL DATA,CHARITIES & VOLUNTARY ORGNS,Adult Social Care & Health,"Grants, Contributions & Donations",A47005
Royal Borough of Kingston,22/02/2024,90308297,"1,094.00",REDACTED - PERSONAL DATA,PLS LANDLORDS,Place,PSL Payments To Landlords,A22031
Royal Borough of Kingston,01/02/2024,70064210,"3,565.00",Delta Wise Limited,ACCOMMODATION BED & BREAKFAST,Place,Bed & Breakfast,A56000
Royal Borough of Kingston,01/02/2024,70064211,"5,115.00",Delta Wise Limited,ACCOMMODATION BED & BREAKFAST,Place,Bed & Breakfast,A56000
Royal Borough of Kingston,01/02/2024,70064212,"3,565.00",Delta Wise Limited,ACCOMMODATION BED & BREAKFAST,Place,Bed & Breakfast,A56000
Royal Borough of Kingston,01/02/2024,70064213,"3,960.00",Delta Wise Limited,ACCOMMODATION BED & BREAKFAST,Place,Bed & Breakfast,A56000
Royal Borough of Kingston,01/02/2024,70064215,"4,092.00",Delta Wise Limited,ACCOMMODATION BED & BREAKFAST,Place,Bed & Breakfast,A56000
Royal Borough of Kingston,01/02/2024,70064216,"2,635.00",Delta Wise Limited,ACCOMMODATION BED & BREAKFAST,Place,Bed & Breakfast,A56000
Royal Borough of Kingston,01/02/2024,70064217,"2,976.00",Delta Wise Limited,ACCOMMODATION BED & BREAKFAST,Place,Bed & Breakfast,A56000
Royal Borough of Kingston,01/02/2024,70064218,"3,720.00",Delta Wise Limited,ACCOMMODATION BED & BREAKFAST,Place,Bed & Breakfast,A56000
Royal Borough of Kingston,01/02/2024,70064219,"4,402.00",Delta Wise Limited,ACCOMMODATION BED & BREAKFAST,Place,Bed & Breakfast,A56000
Royal Borough of Kingston,01/02/2024,70064221,"2,635.00",Delta Wise Limited,ACCOMMODATION BED & BREAKFAST,Place,Bed & Breakfast,A56000
Royal Borough of Kingston,01/02/2024,70064223,"2,635.00",Delta Wise Limited,ACCOMMODATION BED & BREAKFAST,Place,Bed & Breakfast,A56000
Royal Borough of Kingston,01/02/2024,70064224,"3,069.00",Delta Wise Limited,ACCOMMODATION BED & BREAKFAST,Place,Bed & Breakfast,A56000
Royal Borough of Kingston,01/02/2024,70064373,"2,170.00",Delta Wise Limited,ACCOMMODATION BED & BREAKFAST,Place,Bed & Breakfast,A56000
Royal Borough of Kingston,01/05/2023,70064455,"5,650.00",DEMOCRACY COUNTS LIMITED,IT EQUIPMENT MAINTENANCE,Corporate & Communities,Cloud Services,A45007
Royal Borough of Kingston,15/09/2023,70064456,"4,250.00",DEMOCRACY COUNTS LIMITED,IT EQUIPMENT MAINTENANCE,Corporate & Communities,Cloud Services,A45007
Royal Borough of Kingston,31/01/2024,70065463,"4,000.00",DENTONS UK & MIDDLE EAST LLP,LEGAL & PROFESSIONAL SERVICES,Place,Legal Services,A44025
Royal Borough of Kingston,01/02/2024,90310433,"6,546.75",Dephinus Healthcare Ltd,ACCOMMODATION - OTHER,Adult Social Care & Health,Personal Budget - Third Party,A61019
Royal Borough of Kingston,01/02/2024,90310449,"7,299.88",Dephinus Healthcare Ltd,ACCOMMODATION - OTHER,Adult Social Care & Health,Personal Budget - Third Party,A61019
Royal Borough of Kingston,01/02/2024,90310450,"6,742.50",Dephinus Healthcare Ltd,ACCOMMODATION - OTHER,Adult Social Care & Health,Personal Budget - Third Party,A61019
Royal Borough of Kingston,01/02/2024,90310451,"14,665.71",Dephinus Healthcare Ltd,ACCOMMODATION - OTHER,Adult Social Care & Health,Personal Budget - Third Party,A61019
Royal Borough of Kingston,01/02/2024,90310468,"5,785.91",Dephinus Healthcare Ltd,ACCOMMODATION - OTHER,Adult Social Care & Health,Personal Budget - Third Party,A61019
Royal Borough of Kingston,09/02/2024,90305632,500.00,REDACTED - PERSONAL DATA,GRANTS & EX GRATIA PAYMENTS,Adult Social Care & Health,"Grants, Contributions & Donations",A47005
Royal Borough of Kingston,07/12/2023,70060540,"3,201.69",Design South East,TEMP STAFF & CONSULTANCY,Place,Professional Fees,A44066
Royal Borough of Kingston,16/01/2024,70062764,"4,609.10",Design South East,TEMP STAFF & CONSULTANCY,Place,Professional Fees,A44066
Royal Borough of Kingston,16/01/2024,70062765,"3,201.69",Design South East,TEMP STAFF & CONSULTANCY,Place,Professional Fees,A44066
Royal Borough of Kingston,30/11/2023,70064236,"3,201.69",Design South East,TEMP STAFF & CONSULTANCY,Place,Professional Fees,A44066
Royal Borough of Kingston,10/11/2023,70064443,"1,379.04",Design South East,TEMP STAFF & CONSULTANCY,Place,Professional Fees,A44066
Royal Borough of Kingston,30/01/2024,70063736,"1,150.00",DEXTERS LIMITED,LANDLORDS,Adult Social Care & Health,Building Rents,A22005
Royal Borough of Kingston,22/02/2024,90308021,"1,321.00",REDACTED - PERSONAL DATA,PLS LANDLORDS,Place,PSL Payments To Landlords,A22031
Royal Borough of Kingston,06/02/2024,90304142,"20,123.10",DICKY BIRDS PRE SCHOOL NURSERIES LTD,ACADEMIC INSTNS - OTHER,Schools,PVI Providers,A60014
Royal Borough of Kingston,06/02/2024,90304168,"12,497.40",DICKY BIRDS PRE SCHOOL NURSERIES LTD,ACADEMIC INSTNS - OTHER,Schools,PVI Providers,A60014
Royal Borough of Kingston,06/02/2024,90304230,"7,773.75",DICKY BIRDS PRE SCHOOL NURSERIES LTD,ACADEMIC INSTNS - OTHER,Schools,PVI Providers,A60014
Royal Borough of Kingston,06/02/2024,90304270,606.15,DICKY BIRDS PRE SCHOOL NURSERIES LTD,ACADEMIC INSTNS - OTHER,Schools,2 Yr Old Place Funding,A60000
Royal Borough of Kingston,06/02/2024,90304284,606.15,DICKY BIRDS PRE SCHOOL NURSERIES LTD,ACADEMIC INSTNS - OTHER,Schools,2 Yr Old Place Funding,A60000
Royal Borough of Kingston,06/02/2024,90303325,500.00,REDACTED - PERSONAL DATA,GRANTS & EX GRATIA PAYMENTS,Adult Social Care & Health,"Grants, Contributions & Donations",A47005
Royal Borough of Kingston,31/01/2024,70064003,"17,982.00",DISCLOSURE AND BARRING SERVICE,LEGAL & PROFESSIONAL SERVICES,Corporate & Communities,DBS Checks,A15029
Royal Borough of Kingston,22/02/2024,90308345,"1,094.33",REDACTED - PERSONAL DATA,PLS LANDLORDS,Place,PSL Payments To Landlords,A22031
Royal Borough of Kingston,22/02/2024,90308346,867.83,REDACTED - PERSONAL DATA,PLS LANDLORDS,Place,PSL Payments To Landlords,A22031
Royal Borough of Kingston,16/02/2024,70065527,"4,185.28",DMA SIGNS LTD,BUILDING MNTCE - SERVICES,Housing Revenue Account,Notices And Signs,C20021
Royal Borough of Kingston,24/01/2024,70064028,"5,980.00",DOLPHIN MOBILITY LIMITED,CONSTRUCTION INDUSTRY,Corporate & Communities,Grants Given For Capital Purposes,C20004
Royal Borough of Kingston,14/02/2024,70065360,"3,655.00",DOLPHIN MOBILITY LIMITED,CONSTRUCTION INDUSTRY,Corporate & Communities,Grants Given For Capital Purposes,C20004
Royal Borough of Kingston,06/02/2024,90304161,"19,982.48",DORIS VENNER PRE-SCHOOL,ACADEMIC INSTNS - OTHER,Schools,PVI Providers,A60014
Royal Borough of Kingston,06/02/2024,90304265,"7,478.10",DORIS VENNER PRE-SCHOOL,ACADEMIC INSTNS - OTHER,Schools,2 Yr Old Place Funding,A60000
Royal Borough of Kingston,20/02/2024,90306983,892.80,DORIS VENNER PRE-SCHOOL,ACADEMIC INSTNS - OTHER,Schools,PVI Providers,A60014
Royal Borough of Kingston,01/02/2024,90308934,"5,436.63",DOWNING (CHERTSEY ROAD) LTD,SOCIAL SERVICES RESIDENTIAL,Adult Social Care & Health,Independent Placements,A56006
Royal Borough of Kingston,01/02/2024,90310482,-700.56,DOWNING (CHERTSEY ROAD) LTD,SOCIAL SERVICES RESIDENTIAL,Adult Social Care & Health,Financially Assessed Contributions clients � Non VAT,A92047
Royal Borough of Kingston,16/02/2024,70065618,800.00,Doxa Deo Comm Church,SUNDRY SUPPLIER - FINANCE,Corporate & Communities,"Grants, Contributions & Donations",A47005
Royal Borough of Kingston,22/02/2024,90308026,"1,675.00",REDACTED - PERSONAL DATA,PLS LANDLORDS,Place,PSL Payments To Landlords,A22031
Royal Borough of Kingston,22/02/2024,90308317,"1,314.00",REDACTED - PERSONAL DATA,PLS LANDLORDS,Place,PSL Payments To Landlords,A22031
Royal Borough of Kingston,22/02/2024,90308151,"1,090.00",REDACTED - PERSONAL DATA,PLS LANDLORDS,Place,PSL Payments To Landlords,A22031
Royal Borough of Kingston,22/02/2024,90308007,"1,314.00",REDACTED - PERSONAL DATA,PLS LANDLORDS,Place,PSL Payments To Landlords,A22031
Royal Borough of Kingston,01/02/2024,70063873,503.58,REDACTED - PERSONAL DATA,PLS LANDLORDS,Place,PSL Payments To Landlords,A22031
Royal Borough of Kingston,27/10/2023,70065918,600.00,Driscoll Kingston Client Account,SUNDRY SUPPLIER - FINANCE,Housing Revenue Account,Vandalism Damage,A20029
Royal Borough of Kingston,31/01/2024,70065487,"1,705.00",Dunheved Hotel LTD,ACCOMMODATION BED & BREAKFAST,Place,Bed & Breakfast,A56000
Royal Borough of Kingston,06/02/2024,90304147,727.05,REDACTED - PERSONAL DATA,ACADEMIC INSTNS - OTHER,Schools,PVI Providers,A60014
Royal Borough of Kingston,06/02/2024,90304242,589.50,REDACTED - PERSONAL DATA,ACADEMIC INSTNS - OTHER,Schools,PVI Providers,A60014
Royal Borough of Kingston,10/01/2024,70062480,"5,878.16",E.ON Next Energy Ltd,UTILITIES,Place,Electricity,A21000
Royal Borough of Kingston,10/01/2024,70062503,"-2,757.02",E.ON Next Energy Ltd,UTILITIES,Place,Electricity,A21000
Royal Borough of Kingston,05/01/2024,70063327,"1,287.16",E.ON Next Energy Ltd,UTILITIES,Housing Revenue Account,Electricity,A21000
Royal Borough of Kingston,05/01/2024,70063327,395.76,E.ON Next Energy Ltd,UTILITIES,Housing Revenue Account,Gas,A21003
Royal Borough of Kingston,22/02/2024,90308172,"1,094.00",EARLSFIELD PROPERTIES,PLS LANDLORDS,Place,PSL Payments To Landlords,A22031
Royal Borough of Kingston,22/02/2024,90308173,"1,094.00",EARLSFIELD PROPERTIES,PLS LANDLORDS,Place,PSL Payments To Landlords,A22031
Royal Borough of Kingston,22/02/2024,90308392,"1,047.00",EARLSFIELD PROPERTIES,PLS LANDLORDS,Place,PSL Payments To Landlords,A22031
Royal Borough of Kingston,07/02/2024,70064453,914.40,CHESSINGTON SCHOOL,SCHOOL FUNDS,Adult Social Care & Health,Building Rents,A22005
Royal Borough of Kingston,19/12/2023,70063285,-201.71,EDF ENERGY CUSTOMER PLC,UTILITIES,Housing Revenue Account,Electricity,A21000
Royal Borough of Kingston,19/12/2023,70063285,"1,091.26",EDF ENERGY CUSTOMER PLC,UTILITIES,Housing Revenue Account,Electricity,A21000
Royal Borough of Kingston,22/01/2024,70064007,"1,297.55",EDF ENERGY CUSTOMER PLC,UTILITIES,Housing Revenue Account,Electricity,A21000
Royal Borough of Kingston,23/11/2022,70064009,666.67,EDF ENERGY CUSTOMER PLC,UTILITIES,Housing Revenue Account,Electricity,A21000
Royal Borough of Kingston,06/02/2024,90304180,"1,768.50",EDUCARE SMALL SCHOOL LTD,ACADEMIC INSTNS - OTHER,Schools,PVI Providers,A60014
Royal Borough of Kingston,22/02/2024,90308038,"1,050.00",REDACTED - PERSONAL DATA,PLS LANDLORDS,Place,PSL Payments To Landlords,A22031
Royal Borough of Kingston,22/02/2024,90308056,"1,200.00",REDACTED - PERSONAL DATA,PLS LANDLORDS,Place,PSL Payments To Landlords,A22031
Royal Borough of Kingston,26/01/2024,70063746,"1,734.80",EGBERT H TAYLOR & CO LIMITED,OPERATIONAL EQUIPMENT/MATERIAL,Housing Revenue Account,"Bulk Refuse Containers, Paladin Bins and Refuse Ch",A20033
Royal Borough of Kingston,11/10/2023,70056477,943.38,ELDERCARE (UK) LTD,SOCIAL SERVICES - OTHER,Adult Social Care & Health,Equipment And Materials Purchase,A40000
Royal Borough of Kingston,17/01/2024,70062897,"1,010.00",ELDERCARE (UK) LTD,SOCIAL SERVICES - OTHER,Adult Social Care & Health,Equipment And Materials Purchase,A40000
Royal Borough of Kingston,17/01/2024,70062898,872.00,ELDERCARE (UK) LTD,SOCIAL SERVICES - OTHER,Adult Social Care & Health,Equipment And Materials Purchase,A40000
Royal Borough of Kingston,06/02/2024,90303326,500.00,REDACTED - PERSONAL DATA,CHARITIES & VOLUNTARY ORGNS,Adult Social Care & Health,"Grants, Contributions & Donations",A47005
Royal Borough of Kingston,06/02/2024,90303327,500.00,REDACTED - PERSONAL DATA,CHARITIES & VOLUNTARY ORGNS,Adult Social Care & Health,"Grants, Contributions & Donations",A47005
Royal Borough of Kingston,06/02/2024,90303190,"6,741.02",ELLINGHAM PRIMARY SCHOOL,SCHOOL FUNDS,Schools,Miscellaneous Expenses,A49000
Royal Borough of Kingston,06/02/2024,90303199,"3,371.25",ELLINGHAM PRIMARY SCHOOL,SCHOOL FUNDS,Schools,Miscellaneous Expenses,A49000
Royal Borough of Kingston,06/02/2024,90303222,"1,673.44",ELLINGHAM PRIMARY SCHOOL,SCHOOL FUNDS,Schools,Miscellaneous Expenses,A49000
Royal Borough of Kingston,06/02/2024,90303263,"33,465.00",ELLINGHAM PRIMARY SCHOOL,SCHOOL FUNDS,Schools,Miscellaneous Expenses,A49000
Royal Borough of Kingston,06/02/2024,90303264,632.50,ELLINGHAM PRIMARY SCHOOL,SCHOOL FUNDS,Schools,Miscellaneous Expenses,A49000
Royal Borough of Kingston,06/02/2024,90304195,"3,750.75",ELLINGHAM PRIMARY SCHOOL,SCHOOL FUNDS,Schools,Miscellaneous Expenses,A49000
Royal Borough of Kingston,06/02/2024,90304272,"2,930.96",ELLINGHAM PRIMARY SCHOOL,SCHOOL FUNDS,Schools,2 Yr Old Place Funding,A60000
Royal Borough of Kingston,01/02/2024,90308869,"9,801.67",ELYSIUM HEALTHCARE LTD,SOCIAL SERVICES - OTHER,Adult Social Care & Health,Independent Placements,A56006
Royal Borough of Kingston,01/02/2024,90308877,"9,456.82",ELYSIUM HEALTHCARE LTD,SOCIAL SERVICES - OTHER,Adult Social Care & Health,Independent Placements,A56006
Royal Borough of Kingston,01/02/2024,90308879,"11,251.83",ELYSIUM HEALTHCARE LTD,SOCIAL SERVICES - OTHER,Adult Social Care & Health,Independent Placements,A56006
Royal Borough of Kingston,01/02/2024,90308883,"9,687.41",ELYSIUM HEALTHCARE LTD,SOCIAL SERVICES - OTHER,Adult Social Care & Health,Independent Placements,A56006
Royal Borough of Kingston,01/02/2024,90308906,"9,801.67",ELYSIUM HEALTHCARE LTD,SOCIAL SERVICES - OTHER,Adult Social Care & Health,Independent Placements,A56006
Royal Borough of Kingston,01/02/2024,90309051,"4,901.23",EMEZZIONS LIMITED,SOCIAL SERVICES - OTHER,Adult Social Care & Health,Supported Living - new framework,A56126
Royal Borough of Kingston,01/02/2024,90309052,"2,625.66",EMEZZIONS LIMITED,SOCIAL SERVICES - OTHER,Adult Social Care & Health,Supported Living - new framework,A56126
Royal Borough of Kingston,08/01/2024,90309168,800.40,EMEZZIONS LIMITED,SOCIAL SERVICES - OTHER,Adult Social Care & Health,Supported Living - new framework,A56126
Royal Borough of Kingston,08/01/2024,90309169,960.48,EMEZZIONS LIMITED,SOCIAL SERVICES - OTHER,Adult Social Care & Health,Supported Living - new framework,A56126
Royal Borough of Kingston,01/02/2024,90309224,"2,478.90",EMEZZIONS LIMITED,SOCIAL SERVICES - OTHER,Adult Social Care & Health,Supported Living - new framework,A56126
Royal Borough of Kingston,01/02/2024,90309225,"3,306.52",EMEZZIONS LIMITED,SOCIAL SERVICES - OTHER,Adult Social Care & Health,Supported Living - new framework,A56126
Royal Borough of Kingston,01/02/2024,90309226,"1,575.31",EMEZZIONS LIMITED,SOCIAL SERVICES - OTHER,Adult Social Care & Health,Supported Living - new framework,A56126
Royal Borough of Kingston,01/02/2024,90309240,"3,415.50",EMEZZIONS LIMITED,SOCIAL SERVICES - OTHER,Adult Social Care & Health,Supported Living - new framework,A56126
Royal Borough of Kingston,01/02/2024,90309241,"2,088.35",EMEZZIONS LIMITED,SOCIAL SERVICES - OTHER,Adult Social Care & Health,Supported Living - new framework,A56126
Royal Borough of Kingston,01/02/2024,90310099,"4,974.66",EMEZZIONS LIMITED,SOCIAL SERVICES - OTHER,Adult Social Care & Health,Personal Budget - Third Party,A61019
Royal Borough of Kingston,06/02/2024,90304218,"1,554.75",REDACTED - PERSONAL DATA,ACADEMIC INSTNS - OTHER,Schools,PVI Providers,A60014
Royal Borough of Kingston,04/02/2024,70064192,"6,200.00",EMPATHY HOUSING LTD,ACCOMMODATION BED & BREAKFAST,Place,Bed & Breakfast,A56000
Royal Borough of Kingston,01/02/2024,90308745,"3,133.57",ENHAM,SOCIAL SERVICES - OTHER,Adult Social Care & Health,Independent Placements,A56006
Royal Borough of Kingston,01/02/2024,90310471,-500.46,ENHAM,SOCIAL SERVICES - OTHER,Adult Social Care & Health,Financially Assessed Contributions clients � Non VAT,A92047
Royal Borough of Kingston,15/11/2023,70062896,750.00,Environtec Limited,CONSTRUCTION INDUSTRY,Place,Payments to Contractors,C14000
Royal Borough of Kingston,14/02/2024,70065464,500.00,REDACTED - PERSONAL DATA,PLS LANDLORDS,Place,Compensation (In Lieu Of Works),A20039
Royal Borough of Kingston,01/02/2024,70064294,"4,495.00",EurohousingLTD,ACCOMMODATION BED & BREAKFAST,Place,Bed & Breakfast,A56000
Royal Borough of Kingston,12/02/2024,70064844,"7,428.00",EVOLVE AMS UK Ltd,SUNDRY SUPPLIER - HOUSING,Corporate & Communities,Grants Given For Capital Purposes,C20004
Royal Borough of Kingston,31/01/2024,70063966,650.00,EVOLVE CONSULTING ENGINEERS LTD,LEGAL & PROFESSIONAL SERVICES,Place,Buildings - Design & Planning,C14001
Royal Borough of Kingston,01/01/2024,70065440,"4,650.00",EXCLUSIVE FINE HOMES LTD,ACCOMMODATION BED & BREAKFAST,Place,Bed & Breakfast,A56000
Royal Borough of Kingston,01/01/2024,70065441,"4,030.00",EXCLUSIVE FINE HOMES LTD,ACCOMMODATION BED & BREAKFAST,Place,Bed & Breakfast,A56000
Royal Borough of Kingston,01/01/2024,70065442,"2,790.00",EXCLUSIVE FINE HOMES LTD,ACCOMMODATION BED & BREAKFAST,Place,Bed & Breakfast,A56000
Royal Borough of Kingston,31/07/2023,70063202,"4,950.00",F & G CLEANERS LIMITED,PREMISES - WINDOW CLEANING,Housing Revenue Account,Window Cleaning,A27005
Royal Borough of Kingston,22/02/2024,90308275,823.33,REDACTED - PERSONAL DATA,PLS LANDLORDS,Place,PSL Payments To Landlords,A22031
Royal Borough of Kingston,22/02/2024,90308251,"1,551.00",REDACTED - PERSONAL DATA,PLS LANDLORDS,Place,PSL Payments To Landlords,A22031
Royal Borough of Kingston,22/02/2024,90308031,918.33,REDACTED - PERSONAL DATA,PLS LANDLORDS,Place,PSL Payments To Landlords,A22031
Royal Borough of Kingston,19/01/2024,70062889,"1,300.00",F H & G LIMITED,LEGAL & PROFESSIONAL SERVICES,Housing Revenue Account,Professional Fees,A44066
Royal Borough of Kingston,19/01/2024,70062890,"1,950.00",F H & G LIMITED,LEGAL & PROFESSIONAL SERVICES,Housing Revenue Account,Professional Fees,A44066
Royal Borough of Kingston,26/01/2024,70063470,650.00,F H & G LIMITED,LEGAL & PROFESSIONAL SERVICES,Housing Revenue Account,Professional Fees,A44066
Royal Borough of Kingston,26/01/2024,70063472,650.00,F H & G LIMITED,LEGAL & PROFESSIONAL SERVICES,Housing Revenue Account,Professional Fees,A44066
Royal Borough of Kingston,02/02/2024,70063977,"1,300.00",F H & G LIMITED,LEGAL & PROFESSIONAL SERVICES,Housing Revenue Account,Professional Fees,A44066
Royal Borough of Kingston,02/02/2024,70063979,650.00,F H & G LIMITED,LEGAL & PROFESSIONAL SERVICES,Housing Revenue Account,Professional Fees,A44066
Royal Borough of Kingston,22/02/2024,90308287,"1,675.00",REDACTED - PERSONAL DATA,PLS LANDLORDS,Place,PSL Payments To Landlords,A22031
Royal Borough of Kingston,30/12/2023,70061842,"13,591.42",F.M. CONWAY LTD,CONSTRUCTION INDUSTRY,Corporate & Communities,Vehicle Crossings,A56043
Royal Borough of Kingston,25/01/2024,70063438,"51,524.75",F.M. CONWAY LTD,CONSTRUCTION INDUSTRY,Corporate & Communities,Infrastructure Assets - Project Management,C12000
Royal Borough of Kingston,29/01/2024,70063694,"1,729.37",F.M. CONWAY LTD,CONSTRUCTION INDUSTRY,Corporate & Communities,Vehicle Crossings,A56043
Royal Borough of Kingston,29/01/2024,70063695,"9,122.75",F.M. CONWAY LTD,CONSTRUCTION INDUSTRY,Corporate & Communities,Vehicle Crossings,A56043
Royal Borough of Kingston,29/01/2024,70063697,"17,200.59",F.M. CONWAY LTD,CONSTRUCTION INDUSTRY,Corporate & Communities,Vehicle Crossings,A56043
Royal Borough of Kingston,25/01/2024,70063770,"4,443.29",F.M. CONWAY LTD,CONSTRUCTION INDUSTRY,Corporate & Communities,Infrastructure Assets - Purchase & Enhancement,C12001
Royal Borough of Kingston,21/02/2024,70065586,"9,490.68",F.M. CONWAY LTD,CONSTRUCTION INDUSTRY,Corporate & Communities,Vehicle Crossings,A56043
Royal Borough of Kingston,30/01/2024,70063710,"2,034.04",facultatieve technologies,FM SERVICES,Place,Property Repairs & Maintenance & Alterations - Responsive,A20011
Royal Borough of Kingston,06/02/2024,90304164,"2,408.25",FAIRFIELD PLAYBOX PLAYGROUP,ACADEMIC INSTNS - OTHER,Schools,PVI Providers,A60014
Royal Borough of Kingston,06/02/2024,90304268,"11,325.38",FAIRFIELD PLAYBOX PLAYGROUP,ACADEMIC INSTNS - OTHER,Schools,2 Yr Old Place Funding,A60000
Royal Borough of Kingston,01/02/2024,90308929,"4,896.07",FAMILY INVESTMENT (THREE) LIMITED,SOCIAL SERVICES RESIDENTIAL,Adult Social Care & Health,Independent Placements,A56006
Royal Borough of Kingston,05/02/2024,70064201,"7,500.00",REDACTED - PERSONAL DATA,PLS LANDLORDS,Place,Housing Incentives,A62025
Royal Borough of Kingston,22/02/2024,90308012,"1,333.33",REDACTED - PERSONAL DATA,PLS LANDLORDS,Place,PSL Payments To Landlords,A22031
Royal Borough of Kingston,31/12/2023,70061866,"7,965.75",FARRER HUXLEY LIMITED,CONSULTING ARCHITECTS ENGINEER,Place,Infrastructure Assets - Detailed Design,C12003
Royal Borough of Kingston,31/12/2023,70064177,"16,693.25",FARRER HUXLEY LIMITED,CONSULTING ARCHITECTS ENGINEER,Place,Infrastructure Assets - Detailed Design,C12003
Royal Borough of Kingston,06/02/2024,90304212,"1,321.20",REDACTED - PERSONAL DATA,ACADEMIC INSTNS - OTHER,Schools,PVI Providers,A60014
Royal Borough of Kingston,06/02/2024,90304276,"1,212.30",REDACTED - PERSONAL DATA,ACADEMIC INSTNS - OTHER,Schools,2 Yr Old Place Funding,A60000
Royal Borough of Kingston,06/02/2024,90304228,"26,989.20",Fern Hill Primary School,SCHOOL FUNDS,Schools,Miscellaneous Expenses,A49000
Royal Borough of Kingston,01/02/2024,90308645,"4,399.71",Fir Ridge Care Home Ltd,SOCIAL SERVICES RESIDENTIAL,Adult Social Care & Health,Independent Placements,A56006
Royal Borough of Kingston,01/02/2024,90308832,"4,391.43",Fir Ridge Care Home Ltd,SOCIAL SERVICES RESIDENTIAL,Adult Social Care & Health,Independent Placements,A56006
Royal Borough of Kingston,13/02/2024,70064675,"20,689.59",TRAVELODGE,SUNDRY SUPPLIER - FINANCE,Housing Revenue Account,Bed & Breakfast,A56000
Royal Borough of Kingston,20/02/2024,70065465,"76,776.98",TRAVELODGE,SUNDRY SUPPLIER - FINANCE,Housing Revenue Account,Bed & Breakfast,A56000
Royal Borough of Kingston,01/02/2024,90308936,"7,482.21",FitzRoy Support,SOCIAL SERVICES - OTHER,Adult Social Care & Health,Independent Placements,A56006
Royal Borough of Kingston,06/02/2024,90304232,"2,652.75",Fountain Nursery Limited,ACADEMIC INSTNS - OTHER,Schools,PVI Providers,A60014
Royal Borough of Kingston,01/02/2024,90308505,"4,091.49",FOUR SEASONS HEALTHCARE,SOCIAL SERVICES RESIDENTIAL,Adult Social Care & Health,Independent Placements,A56006
Royal Borough of Kingston,01/02/2024,90308506,"3,451.54",FOUR SEASONS HEALTHCARE,SOCIAL SERVICES RESIDENTIAL,Adult Social Care & Health,Independent Placements,A56006
Royal Borough of Kingston,01/02/2024,90308512,"3,935.71",FOUR SEASONS HEALTHCARE,SOCIAL SERVICES RESIDENTIAL,Adult Social Care & Health,Independent Placements,A56006
Royal Borough of Kingston,01/02/2024,90308515,"3,473.66",FOUR SEASONS HEALTHCARE,SOCIAL SERVICES RESIDENTIAL,Adult Social Care & Health,Independent Placements,A56006
Royal Borough of Kingston,01/02/2024,90308519,"3,935.71",FOUR SEASONS HEALTHCARE,SOCIAL SERVICES RESIDENTIAL,Adult Social Care & Health,Independent Placements,A56006
Royal Borough of Kingston,01/02/2024,90308535,"3,373.49",FOUR SEASONS HEALTHCARE,SOCIAL SERVICES RESIDENTIAL,Adult Social Care & Health,Independent Placements,A56006
Royal Borough of Kingston,01/02/2024,90308549,"3,473.00",FOUR SEASONS HEALTHCARE,SOCIAL SERVICES RESIDENTIAL,Adult Social Care & Health,Independent Placements,A56006
Royal Borough of Kingston,01/02/2024,90308550,"3,107.14",FOUR SEASONS HEALTHCARE,SOCIAL SERVICES RESIDENTIAL,Adult Social Care & Health,Independent Placements,A56006
Royal Borough of Kingston,01/02/2024,90308551,"3,473.66",FOUR SEASONS HEALTHCARE,SOCIAL SERVICES RESIDENTIAL,Adult Social Care & Health,Independent Placements,A56006
Royal Borough of Kingston,01/02/2024,90308572,"3,473.66",FOUR SEASONS HEALTHCARE,SOCIAL SERVICES RESIDENTIAL,Adult Social Care & Health,Independent Placements,A56006
Royal Borough of Kingston,01/02/2024,90308574,"3,473.66",FOUR SEASONS HEALTHCARE,SOCIAL SERVICES RESIDENTIAL,Adult Social Care & Health,Independent Placements,A56006
Royal Borough of Kingston,01/02/2024,90308583,"1,392.86",FOUR SEASONS HEALTHCARE,SOCIAL SERVICES RESIDENTIAL,Adult Social Care & Health,Independent Placements,A56006
Royal Borough of Kingston,01/02/2024,90308593,"3,935.71",FOUR SEASONS HEALTHCARE,SOCIAL SERVICES RESIDENTIAL,Adult Social Care & Health,Independent Placements,A56006
Royal Borough of Kingston,01/02/2024,90308594,"1,085.71",FOUR SEASONS HEALTHCARE,SOCIAL SERVICES RESIDENTIAL,Adult Social Care & Health,Independent Placements,A56006
Royal Borough of Kingston,01/02/2024,90308595,"2,850.00",FOUR SEASONS HEALTHCARE,SOCIAL SERVICES RESIDENTIAL,Adult Social Care & Health,Independent Placements,A56006
Royal Borough of Kingston,01/02/2024,90308642,"4,246.43",FOUR SEASONS HEALTHCARE,SOCIAL SERVICES RESIDENTIAL,Adult Social Care & Health,Independent Placements,A56006
Royal Borough of Kingston,01/02/2024,90308665,"3,935.71",FOUR SEASONS HEALTHCARE,SOCIAL SERVICES RESIDENTIAL,Adult Social Care & Health,Independent Placements,A56006
Royal Borough of Kingston,01/02/2024,90308672,"3,482.14",FOUR SEASONS HEALTHCARE,SOCIAL SERVICES RESIDENTIAL,Adult Social Care & Health,Independent Placements,A56006
Royal Borough of Kingston,01/02/2024,90308676,"4,142.86",FOUR SEASONS HEALTHCARE,SOCIAL SERVICES RESIDENTIAL,Adult Social Care & Health,Independent Placements,A56006
Royal Borough of Kingston,01/02/2024,90308684,"3,935.71",FOUR SEASONS HEALTHCARE,SOCIAL SERVICES RESIDENTIAL,Adult Social Care & Health,Independent Placements,A56006
Royal Borough of Kingston,01/02/2024,90308689,"3,728.57",FOUR SEASONS HEALTHCARE,SOCIAL SERVICES RESIDENTIAL,Adult Social Care & Health,Independent Placements,A56006
Royal Borough of Kingston,01/02/2024,90308752,"3,120.73",FOUR SEASONS HEALTHCARE,SOCIAL SERVICES RESIDENTIAL,Adult Social Care & Health,Independent Placements,A56006
Royal Borough of Kingston,01/02/2024,90308761,"3,299.33",FOUR SEASONS HEALTHCARE,SOCIAL SERVICES RESIDENTIAL,Adult Social Care & Health,Independent Placements,A56006
Royal Borough of Kingston,01/02/2024,90308774,"3,021.26",FOUR SEASONS HEALTHCARE,SOCIAL SERVICES RESIDENTIAL,Adult Social Care & Health,Independent Placements,A56006
Royal Borough of Kingston,01/02/2024,90308833,"3,521.43",FOUR SEASONS HEALTHCARE,SOCIAL SERVICES RESIDENTIAL,Adult Social Care & Health,Independent Placements,A56006
Royal Borough of Kingston,01/02/2024,90309927,"3,121.43",FOUR SEASONS HEALTHCARE,SOCIAL SERVICES RESIDENTIAL,Adult Social Care & Health,Care Home - D2A Short term,A56137
Royal Borough of Kingston,01/02/2024,90309927,"3,121.43",FOUR SEASONS HEALTHCARE,SOCIAL SERVICES RESIDENTIAL,Adult Social Care & Health,Care Home - D2A Short term,A56137
Royal Borough of Kingston,22/02/2024,90308002,"2,083.33",REDACTED - PERSONAL DATA,PLS LANDLORDS,Place,PSL Payments To Landlords,A22031
Royal Borough of Kingston,22/02/2024,90308264,"1,280.67",REDACTED - PERSONAL DATA,PLS LANDLORDS,Place,PSL Payments To Landlords,A22031
Royal Borough of Kingston,01/02/2024,90310444,"17,316.40",Freshstart Care Solutions Ltd,ACCOMMODATION - OTHER,Adult Social Care & Health,Personal Budget - Third Party,A61019
Royal Borough of Kingston,08/02/2024,70064561,650.00,Full Cycle Bicyle Project CIC,GRANTS & EX GRATIA PAYMENTS,Corporate & Communities,"Grants, Contributions & Donations",A47005
Royal Borough of Kingston,06/02/2024,90304222,"1,473.75",FUN EXPLORERS CHILDCARE,ACADEMIC INSTNS - OTHER,Schools,PVI Providers,A60014
Royal Borough of Kingston,22/02/2024,90308143,"1,094.00",REDACTED - PERSONAL DATA,PLS LANDLORDS,Place,PSL Payments To Landlords,A22031
Royal Borough of Kingston,02/02/2024,70064205,"1,800.00",REDACTED - PERSONAL DATA,PLS LANDLORDS,Place,Housing Incentives,A62025
Royal Borough of Kingston,22/02/2024,90307993,"1,250.00",REDACTED - PERSONAL DATA,PLS LANDLORDS,Place,PSL Payments To Landlords,A22031
Royal Borough of Kingston,22/02/2024,90308269,"1,094.34",REDACTED - PERSONAL DATA,PLS LANDLORDS,Place,PSL Payments To Landlords,A22031
Royal Borough of Kingston,06/02/2024,90303329,500.00,REDACTED - PERSONAL DATA,CHARITIES & VOLUNTARY ORGNS,Adult Social Care & Health,"Grants, Contributions & Donations",A47005
Royal Borough of Kingston,22/02/2024,90308083,"1,240.00",GATES & BRADSHAW (UK) LTD,PLS LANDLORDS,Place,PSL Payments To Landlords,A22031
Royal Borough of Kingston,31/01/2024,70063907,"5,000.00",KINGSTON HOSPITAL NHS FT,CENTRAL & LOCAL GOVERNMENT,Adult Social Care & Health,Agency Staff - Other,A10505
Royal Borough of Kingston,31/01/2024,70063943,"5,000.00",KINGSTON HOSPITAL NHS FT,CENTRAL & LOCAL GOVERNMENT,Adult Social Care & Health,Agency Staff - Other,A10505
Royal Borough of Kingston,06/02/2024,70064299,"329,199.00",KINGSTON HOSPITAL NHS FT,CENTRAL & LOCAL GOVERNMENT,Adult Social Care & Health,Other Private Contractors - Third Party,A56080
Royal Borough of Kingston,06/02/2024,70064301,"34,500.00",KINGSTON HOSPITAL NHS FT,CENTRAL & LOCAL GOVERNMENT,Adult Social Care & Health,Other Private Contractors - Third Party,A56080
Royal Borough of Kingston,06/02/2024,90304169,"32,606.00",KINGSTON HOSPITAL NHS FT,SOCIAL SERVICES DAY CARE,Schools,PVI Providers,A60014
Royal Borough of Kingston,08/01/2024,90309159,587.16,GENEVA ROAD LIMITED,SOCIAL SERVICES RESIDENTIAL,Adult Social Care & Health,Supported Living - new framework,A56126
Royal Borough of Kingston,08/01/2024,90309181,"1,100.16",GENEVA ROAD LIMITED,SOCIAL SERVICES RESIDENTIAL,Adult Social Care & Health,Supported Living - new framework,A56126
Royal Borough of Kingston,08/01/2024,90310031,503.28,GENEVA ROAD LIMITED,SOCIAL SERVICES RESIDENTIAL,Adult Social Care & Health,S-L non - framework - other support,A56159
Royal Borough of Kingston,08/01/2024,90310031,503.28,GENEVA ROAD LIMITED,SOCIAL SERVICES RESIDENTIAL,Adult Social Care & Health,S-L non - framework - other support,A56159
Royal Borough of Kingston,08/01/2024,90310045,"1,078.46",GENEVA ROAD LIMITED,SOCIAL SERVICES RESIDENTIAL,Adult Social Care & Health,S-L non - framework - other support,A56159
Royal Borough of Kingston,08/01/2024,90310045,"1,078.46",GENEVA ROAD LIMITED,SOCIAL SERVICES RESIDENTIAL,Adult Social Care & Health,S-L non - framework - other support,A56159
Royal Borough of Kingston,08/01/2024,90310046,"1,509.84",GENEVA ROAD LIMITED,SOCIAL SERVICES RESIDENTIAL,Adult Social Care & Health,S-L non - framework - other support,A56159
Royal Borough of Kingston,08/01/2024,90310046,"1,509.84",GENEVA ROAD LIMITED,SOCIAL SERVICES RESIDENTIAL,Adult Social Care & Health,S-L non - framework - other support,A56159
Royal Borough of Kingston,08/01/2024,90310047,"1,509.84",GENEVA ROAD LIMITED,SOCIAL SERVICES RESIDENTIAL,Adult Social Care & Health,S-L non - framework - other support,A56159
Royal Borough of Kingston,08/01/2024,90310047,"1,509.84",GENEVA ROAD LIMITED,SOCIAL SERVICES RESIDENTIAL,Adult Social Care & Health,S-L non - framework - other support,A56159
Royal Borough of Kingston,08/01/2024,90310048,"1,509.84",GENEVA ROAD LIMITED,SOCIAL SERVICES RESIDENTIAL,Adult Social Care & Health,S-L non - framework - other support,A56159
Royal Borough of Kingston,08/01/2024,90310048,"1,509.84",GENEVA ROAD LIMITED,SOCIAL SERVICES RESIDENTIAL,Adult Social Care & Health,S-L non - framework - other support,A56159
Royal Borough of Kingston,08/01/2024,90310049,"1,509.84",GENEVA ROAD LIMITED,SOCIAL SERVICES RESIDENTIAL,Adult Social Care & Health,S-L non - framework - other support,A56159
Royal Borough of Kingston,08/01/2024,90310049,"1,509.84",GENEVA ROAD LIMITED,SOCIAL SERVICES RESIDENTIAL,Adult Social Care & Health,S-L non - framework - other support,A56159
Royal Borough of Kingston,08/01/2024,90310050,"1,509.84",GENEVA ROAD LIMITED,SOCIAL SERVICES RESIDENTIAL,Adult Social Care & Health,S-L non - framework - other support,A56159
Royal Borough of Kingston,08/01/2024,90310050,"1,509.84",GENEVA ROAD LIMITED,SOCIAL SERVICES RESIDENTIAL,Adult Social Care & Health,S-L non - framework - other support,A56159
Royal Borough of Kingston,08/01/2024,90310051,"1,509.84",GENEVA ROAD LIMITED,SOCIAL SERVICES RESIDENTIAL,Adult Social Care & Health,S-L non - framework - other support,A56159
Royal Borough of Kingston,08/01/2024,90310051,"1,509.84",GENEVA ROAD LIMITED,SOCIAL SERVICES RESIDENTIAL,Adult Social Care & Health,S-L non - framework - other support,A56159
Royal Borough of Kingston,01/02/2024,90310109,"1,086.67",GENEVA ROAD LIMITED,SOCIAL SERVICES RESIDENTIAL,Adult Social Care & Health,Personal Budget - Third Party,A61019
Royal Borough of Kingston,01/02/2024,90310110,"1,242.86",GENEVA ROAD LIMITED,SOCIAL SERVICES RESIDENTIAL,Adult Social Care & Health,Personal Budget - Third Party,A61019
Royal Borough of Kingston,01/02/2024,90310111,"3,070.85",GENEVA ROAD LIMITED,SOCIAL SERVICES RESIDENTIAL,Adult Social Care & Health,Personal Budget - Third Party,A61019
Royal Borough of Kingston,01/02/2024,90310112,"7,560.71",GENEVA ROAD LIMITED,SOCIAL SERVICES RESIDENTIAL,Adult Social Care & Health,Personal Budget - Third Party,A61019
Royal Borough of Kingston,29/01/2024,90310131,864.00,GENEVA ROAD LIMITED,SOCIAL SERVICES RESIDENTIAL,Adult Social Care & Health,Personal Budget - Third Party,A61019
Royal Borough of Kingston,29/01/2024,90310150,"2,054.80",GENEVA ROAD LIMITED,SOCIAL SERVICES RESIDENTIAL,Adult Social Care & Health,Personal Budget - Third Party,A61019
Royal Borough of Kingston,29/01/2024,90310151,"1,080.00",GENEVA ROAD LIMITED,SOCIAL SERVICES RESIDENTIAL,Adult Social Care & Health,Personal Budget - Third Party,A61019
Royal Borough of Kingston,01/02/2024,90310162,621.43,GENEVA ROAD LIMITED,SOCIAL SERVICES RESIDENTIAL,Adult Social Care & Health,Personal Budget - Third Party,A61019
Royal Borough of Kingston,29/01/2024,90310163,672.48,GENEVA ROAD LIMITED,SOCIAL SERVICES RESIDENTIAL,Adult Social Care & Health,Personal Budget - Third Party,A61019
Royal Borough of Kingston,29/01/2024,90310164,648.00,GENEVA ROAD LIMITED,SOCIAL SERVICES RESIDENTIAL,Adult Social Care & Health,Personal Budget - Third Party,A61019
Royal Borough of Kingston,01/02/2024,90310165,"1,035.71",GENEVA ROAD LIMITED,SOCIAL SERVICES RESIDENTIAL,Adult Social Care & Health,Personal Budget - Third Party,A61019
Royal Borough of Kingston,29/01/2024,90310166,"1,868.00",GENEVA ROAD LIMITED,SOCIAL SERVICES RESIDENTIAL,Adult Social Care & Health,Personal Budget - Third Party,A61019
Royal Borough of Kingston,29/01/2024,90310167,"1,080.00",GENEVA ROAD LIMITED,SOCIAL SERVICES RESIDENTIAL,Adult Social Care & Health,Personal Budget - Third Party,A61019
Royal Borough of Kingston,29/01/2024,90310185,"2,241.60",GENEVA ROAD LIMITED,SOCIAL SERVICES RESIDENTIAL,Adult Social Care & Health,Personal Budget - Third Party,A61019
Royal Borough of Kingston,29/01/2024,90310186,"1,080.00",GENEVA ROAD LIMITED,SOCIAL SERVICES RESIDENTIAL,Adult Social Care & Health,Personal Budget - Third Party,A61019
Royal Borough of Kingston,29/01/2024,90310207,971.36,GENEVA ROAD LIMITED,SOCIAL SERVICES RESIDENTIAL,Adult Social Care & Health,Personal Budget - Third Party,A61019
Royal Borough of Kingston,01/02/2024,90310215,828.57,GENEVA ROAD LIMITED,SOCIAL SERVICES RESIDENTIAL,Adult Social Care & Health,Personal Budget - Third Party,A61019
Royal Borough of Kingston,29/01/2024,90310216,864.00,GENEVA ROAD LIMITED,SOCIAL SERVICES RESIDENTIAL,Adult Social Care & Health,Personal Budget - Third Party,A61019
Royal Borough of Kingston,01/02/2024,90310218,621.43,GENEVA ROAD LIMITED,SOCIAL SERVICES RESIDENTIAL,Adult Social Care & Health,Personal Budget - Third Party,A61019
Royal Borough of Kingston,29/01/2024,90310219,648.00,GENEVA ROAD LIMITED,SOCIAL SERVICES RESIDENTIAL,Adult Social Care & Health,Personal Budget - Third Party,A61019
Royal Borough of Kingston,01/02/2024,90310235,474.19,GENEVA ROAD LIMITED,SOCIAL SERVICES RESIDENTIAL,Adult Social Care & Health,Personal Budget - Third Party,A61019
Royal Borough of Kingston,01/02/2024,90310252,621.43,GENEVA ROAD LIMITED,SOCIAL SERVICES RESIDENTIAL,Adult Social Care & Health,Personal Budget - Third Party,A61019
Royal Borough of Kingston,29/01/2024,90310253,540.00,GENEVA ROAD LIMITED,SOCIAL SERVICES RESIDENTIAL,Adult Social Care & Health,Personal Budget - Third Party,A61019
Royal Borough of Kingston,01/02/2024,90308759,"3,389.73",GEORGIAN HOUSE NURSING HOME,SOCIAL SERVICES RESIDENTIAL,Adult Social Care & Health,Independent Placements,A56006
Royal Borough of Kingston,06/02/2024,90303330,650.00,REDACTED - PERSONAL DATA,GRANTS & EX GRATIA PAYMENTS,Adult Social Care & Health,"Grants, Contributions & Donations",A47005
Royal Borough of Kingston,31/01/2024,70063849,"2,354.36",Glendale Countryside Ltd,CONSTRUCTION INDUSTRY,Housing Revenue Account,Miscellaneous Expenses,A49000
Royal Borough of Kingston,31/01/2024,70063850,"2,438.88",Glendale Countryside Ltd,CONSTRUCTION INDUSTRY,Corporate & Communities,Infrastructure Assets - Purchase & Enhancement,C12001
Royal Borough of Kingston,31/01/2024,70063851,"3,932.20",Glendale Countryside Ltd,CONSTRUCTION INDUSTRY,Corporate & Communities,Grounds Maintenance Contract,A28000
Royal Borough of Kingston,31/01/2024,70063852,"2,227.50",Glendale Countryside Ltd,CONSTRUCTION INDUSTRY,Corporate & Communities,Grounds Maintenance Contract,A28000
Royal Borough of Kingston,31/01/2024,70063853,"2,354.36",Glendale Countryside Ltd,CONSTRUCTION INDUSTRY,Housing Revenue Account,Miscellaneous Expenses,A49000
Royal Borough of Kingston,31/01/2024,70063854,"1,605.68",Glendale Countryside Ltd,CONSTRUCTION INDUSTRY,Corporate & Communities,Property Repairs & Maintenance & Alterations - Responsive,A20011
Royal Borough of Kingston,31/01/2024,70063855,"3,543.78",Glendale Countryside Ltd,CONSTRUCTION INDUSTRY,Corporate & Communities,Infrastructure Assets - Project Management,C12000
Royal Borough of Kingston,31/01/2024,70063856,"152,960.00",Glendale Countryside Ltd,CONSTRUCTION INDUSTRY,Corporate & Communities,Grounds Maintenance Contract,A28000
Royal Borough of Kingston,31/01/2024,70063857,"1,581.74",Glendale Countryside Ltd,CONSTRUCTION INDUSTRY,Corporate & Communities,Infrastructure Assets - Purchase & Enhancement,C12001
Royal Borough of Kingston,31/01/2024,70063858,"2,987.59",Glendale Countryside Ltd,CONSTRUCTION INDUSTRY,Housing Revenue Account,Miscellaneous Expenses,A49000
Royal Borough of Kingston,31/01/2024,70063858,"2,894.55",Glendale Countryside Ltd,CONSTRUCTION INDUSTRY,Housing Revenue Account,Miscellaneous Expenses,A49000
Royal Borough of Kingston,22/01/2024,90303526,630.27,Global Homecare,SOCIAL SERVICES-HOME CARE,Adult Social Care & Health,Homecare - new framework,A56127
Royal Borough of Kingston,22/01/2024,90303664,567.24,Global Homecare,SOCIAL SERVICES-HOME CARE,Adult Social Care & Health,Homecare - new framework,A56127
Royal Borough of Kingston,22/01/2024,90303842,"1,764.75",Global Homecare,SOCIAL SERVICES-HOME CARE,Adult Social Care & Health,Homecare - new framework,A56127
Royal Borough of Kingston,22/01/2024,90303856,"1,512.64",Global Homecare,SOCIAL SERVICES-HOME CARE,Adult Social Care & Health,Homecare - new framework,A56127
Royal Borough of Kingston,22/01/2024,90303913,756.32,Global Homecare,SOCIAL SERVICES-HOME CARE,Adult Social Care & Health,Homecare - Framework - double-handed,A56131
Royal Borough of Kingston,22/01/2024,90303913,756.32,Global Homecare,SOCIAL SERVICES-HOME CARE,Adult Social Care & Health,Homecare - Framework - double-handed,A56131
Royal Borough of Kingston,29/01/2024,90305847,630.27,Global Homecare,SOCIAL SERVICES-HOME CARE,Adult Social Care & Health,Homecare - new framework,A56127
Royal Borough of Kingston,29/01/2024,90305979,567.24,Global Homecare,SOCIAL SERVICES-HOME CARE,Adult Social Care & Health,Homecare - new framework,A56127
Royal Borough of Kingston,29/01/2024,90306149,"1,764.75",Global Homecare,SOCIAL SERVICES-HOME CARE,Adult Social Care & Health,Homecare - new framework,A56127
Royal Borough of Kingston,29/01/2024,90306163,"1,512.64",Global Homecare,SOCIAL SERVICES-HOME CARE,Adult Social Care & Health,Homecare - new framework,A56127
Royal Borough of Kingston,29/01/2024,90306219,756.32,Global Homecare,SOCIAL SERVICES-HOME CARE,Adult Social Care & Health,Homecare - Framework - double-handed,A56131
Royal Borough of Kingston,29/01/2024,90306219,756.32,Global Homecare,SOCIAL SERVICES-HOME CARE,Adult Social Care & Health,Homecare - Framework - double-handed,A56131
Royal Borough of Kingston,29/01/2024,90306344,"2,861.90",Global Homecare,SOCIAL SERVICES-HOME CARE,Adult Social Care & Health,Homecare - Framework - D2A,A56133
Royal Borough of Kingston,29/01/2024,90306344,"2,861.90",Global Homecare,SOCIAL SERVICES-HOME CARE,Adult Social Care & Health,Homecare - Framework - D2A,A56133
Royal Borough of Kingston,29/01/2024,90306356,630.27,Global Homecare,SOCIAL SERVICES-HOME CARE,Adult Social Care & Health,Homecare - Framework - D2A,A56133
Royal Borough of Kingston,29/01/2024,90306356,630.27,Global Homecare,SOCIAL SERVICES-HOME CARE,Adult Social Care & Health,Homecare - Framework - D2A,A56133
Royal Borough of Kingston,05/02/2024,90307191,630.27,Global Homecare,SOCIAL SERVICES-HOME CARE,Adult Social Care & Health,Homecare - new framework,A56127
Royal Borough of Kingston,05/02/2024,90307317,567.24,Global Homecare,SOCIAL SERVICES-HOME CARE,Adult Social Care & Health,Homecare - new framework,A56127
Royal Borough of Kingston,05/02/2024,90307485,"1,764.75",Global Homecare,SOCIAL SERVICES-HOME CARE,Adult Social Care & Health,Homecare - new framework,A56127
Royal Borough of Kingston,05/02/2024,90307499,"1,512.64",Global Homecare,SOCIAL SERVICES-HOME CARE,Adult Social Care & Health,Homecare - new framework,A56127
Royal Borough of Kingston,05/02/2024,90307571,756.32,Global Homecare,SOCIAL SERVICES-HOME CARE,Adult Social Care & Health,Homecare - Framework - double-handed,A56131
Royal Borough of Kingston,05/02/2024,90307571,756.32,Global Homecare,SOCIAL SERVICES-HOME CARE,Adult Social Care & Health,Homecare - Framework - double-handed,A56131
Royal Borough of Kingston,05/02/2024,90307714,"2,861.90",Global Homecare,SOCIAL SERVICES-HOME CARE,Adult Social Care & Health,Homecare - Framework - D2A,A56133
Royal Borough of Kingston,05/02/2024,90307714,"2,861.90",Global Homecare,SOCIAL SERVICES-HOME CARE,Adult Social Care & Health,Homecare - Framework - D2A,A56133
Royal Borough of Kingston,05/02/2024,90307723,630.27,Global Homecare,SOCIAL SERVICES-HOME CARE,Adult Social Care & Health,Homecare - Framework - D2A,A56133
Royal Borough of Kingston,05/02/2024,90307723,630.27,Global Homecare,SOCIAL SERVICES-HOME CARE,Adult Social Care & Health,Homecare - Framework - D2A,A56133
Royal Borough of Kingston,12/02/2024,90309406,630.27,Global Homecare,SOCIAL SERVICES-HOME CARE,Adult Social Care & Health,Homecare - new framework,A56127
Royal Borough of Kingston,12/02/2024,90309521,567.24,Global Homecare,SOCIAL SERVICES-HOME CARE,Adult Social Care & Health,Homecare - new framework,A56127
Royal Borough of Kingston,12/02/2024,90309683,"1,764.75",Global Homecare,SOCIAL SERVICES-HOME CARE,Adult Social Care & Health,Homecare - new framework,A56127
Royal Borough of Kingston,12/02/2024,90309695,"1,512.64",Global Homecare,SOCIAL SERVICES-HOME CARE,Adult Social Care & Health,Homecare - new framework,A56127
Royal Borough of Kingston,12/02/2024,90309744,756.32,Global Homecare,SOCIAL SERVICES-HOME CARE,Adult Social Care & Health,Homecare - Framework - double-handed,A56131
Royal Borough of Kingston,12/02/2024,90309744,756.32,Global Homecare,SOCIAL SERVICES-HOME CARE,Adult Social Care & Health,Homecare - Framework - double-handed,A56131
Royal Borough of Kingston,12/02/2024,90309892,"2,861.90",Global Homecare,SOCIAL SERVICES-HOME CARE,Adult Social Care & Health,Homecare - Framework - D2A,A56133
Royal Borough of Kingston,12/02/2024,90309892,"2,861.90",Global Homecare,SOCIAL SERVICES-HOME CARE,Adult Social Care & Health,Homecare - Framework - D2A,A56133
Royal Borough of Kingston,12/02/2024,90309902,630.27,Global Homecare,SOCIAL SERVICES-HOME CARE,Adult Social Care & Health,Homecare - Framework - D2A,A56133
Royal Borough of Kingston,12/02/2024,90309902,630.27,Global Homecare,SOCIAL SERVICES-HOME CARE,Adult Social Care & Health,Homecare - Framework - D2A,A56133
Royal Borough of Kingston,01/02/2024,90307070,"2,782.14",Gold Care Homes,SOCIAL SERVICES RESIDENTIAL,Adult Social Care & Health,Independent Placements,A56006
Royal Borough of Kingston,01/02/2024,90307071,"4,539.29",Gold Care Homes,SOCIAL SERVICES RESIDENTIAL,Adult Social Care & Health,Independent Placements,A56006
Royal Borough of Kingston,01/02/2024,90308634,"3,956.30",Gold Care Homes,SOCIAL SERVICES RESIDENTIAL,Adult Social Care & Health,Independent Placements,A56006
Royal Borough of Kingston,01/02/2024,90308644,"4,246.43",Gold Care Homes,SOCIAL SERVICES RESIDENTIAL,Adult Social Care & Health,Independent Placements,A56006
Royal Borough of Kingston,01/02/2024,90308675,"5,800.00",Gold Care Homes,SOCIAL SERVICES RESIDENTIAL,Adult Social Care & Health,Independent Placements,A56006
Royal Borough of Kingston,01/02/2024,90308690,"3,657.69",Gold Care Homes,SOCIAL SERVICES RESIDENTIAL,Adult Social Care & Health,Independent Placements,A56006
Royal Borough of Kingston,01/02/2024,90308713,"4,174.34",Gold Care Homes,SOCIAL SERVICES RESIDENTIAL,Adult Social Care & Health,Independent Placements,A56006
Royal Borough of Kingston,01/02/2024,90308718,"4,246.43",Gold Care Homes,SOCIAL SERVICES RESIDENTIAL,Adult Social Care & Health,Independent Placements,A56006
Royal Borough of Kingston,01/02/2024,90308797,"5,800.00",Gold Care Homes,SOCIAL SERVICES RESIDENTIAL,Adult Social Care & Health,Independent Placements,A56006
Royal Borough of Kingston,01/02/2024,90308801,"5,282.14",Gold Care Homes,SOCIAL SERVICES RESIDENTIAL,Adult Social Care & Health,Independent Placements,A56006
Royal Borough of Kingston,01/02/2024,90308802,"4,174.34",Gold Care Homes,SOCIAL SERVICES RESIDENTIAL,Adult Social Care & Health,Independent Placements,A56006
Royal Borough of Kingston,01/02/2024,90308804,"4,174.34",Gold Care Homes,SOCIAL SERVICES RESIDENTIAL,Adult Social Care & Health,Independent Placements,A56006
Royal Borough of Kingston,01/02/2024,90308815,"4,049.31",Gold Care Homes,SOCIAL SERVICES RESIDENTIAL,Adult Social Care & Health,Independent Placements,A56006
Royal Borough of Kingston,01/02/2024,90308817,"4,207.03",Gold Care Homes,SOCIAL SERVICES RESIDENTIAL,Adult Social Care & Health,Independent Placements,A56006
Royal Borough of Kingston,01/02/2024,90308818,"4,455.10",Gold Care Homes,SOCIAL SERVICES RESIDENTIAL,Adult Social Care & Health,Independent Placements,A56006
Royal Borough of Kingston,01/02/2024,90308836,"4,174.34",Gold Care Homes,SOCIAL SERVICES RESIDENTIAL,Adult Social Care & Health,Independent Placements,A56006
Royal Borough of Kingston,01/02/2024,90308837,"4,455.10",Gold Care Homes,SOCIAL SERVICES RESIDENTIAL,Adult Social Care & Health,Independent Placements,A56006
Royal Borough of Kingston,01/02/2024,90308845,"4,455.10",Gold Care Homes,SOCIAL SERVICES RESIDENTIAL,Adult Social Care & Health,Independent Placements,A56006
Royal Borough of Kingston,01/02/2024,90308847,"4,174.34",Gold Care Homes,SOCIAL SERVICES RESIDENTIAL,Adult Social Care & Health,Independent Placements,A56006
Royal Borough of Kingston,01/02/2024,90308852,"4,246.43",Gold Care Homes,SOCIAL SERVICES RESIDENTIAL,Adult Social Care & Health,Independent Placements,A56006
Royal Borough of Kingston,01/02/2024,90308861,"5,800.00",Gold Care Homes,SOCIAL SERVICES RESIDENTIAL,Adult Social Care & Health,Independent Placements,A56006
Royal Borough of Kingston,01/02/2024,90309937,"-1,285.71",Gold Care Homes,SOCIAL SERVICES RESIDENTIAL,Adult Social Care & Health,Day Care - Managed service,A56142
Royal Borough of Kingston,01/02/2024,90309937,"-1,285.71",Gold Care Homes,SOCIAL SERVICES RESIDENTIAL,Adult Social Care & Health,Day Care - Managed service,A56142
Royal Borough of Kingston,01/02/2024,90309939,857.14,Gold Care Homes,SOCIAL SERVICES RESIDENTIAL,Adult Social Care & Health,Day Care - Managed service,A56142
Royal Borough of Kingston,01/02/2024,90309939,857.14,Gold Care Homes,SOCIAL SERVICES RESIDENTIAL,Adult Social Care & Health,Day Care - Managed service,A56142
Royal Borough of Kingston,01/02/2024,90310091,"1,398.38",Gold Care Homes,SOCIAL SERVICES RESIDENTIAL,Adult Social Care & Health,Personal Budget - Third Party,A61019
Royal Borough of Kingston,01/02/2024,90310094,583.73,Gold Care Homes,SOCIAL SERVICES RESIDENTIAL,Adult Social Care & Health,Personal Budget - Third Party,A61019
Royal Borough of Kingston,01/02/2024,90310063,"1,430.16",Goldsmith Personnel Ltd,SOCIAL SERVICES - OTHER,Adult Social Care & Health,S-L non - framework - other support,A56159
Royal Borough of Kingston,01/02/2024,90310063,"1,430.16",Goldsmith Personnel Ltd,SOCIAL SERVICES - OTHER,Adult Social Care & Health,S-L non - framework - other support,A56159
Royal Borough of Kingston,01/02/2024,90310445,"16,224.05",Goldsmith Personnel Ltd,SOCIAL SERVICES - OTHER,Adult Social Care & Health,Personal Budget - Third Party,A61019
Royal Borough of Kingston,02/10/2023,70065629,"1,605.00",GOLFRATE PROPERTY MANAGEMENT LIMITED,ACCOMMODATION BED & BREAKFAST,Place,Bed & Breakfast,A56000
Royal Borough of Kingston,02/10/2023,70065630,"1,560.00",GOLFRATE PROPERTY MANAGEMENT LIMITED,ACCOMMODATION BED & BREAKFAST,Place,Bed & Breakfast,A56000
Royal Borough of Kingston,01/09/2023,70065631,"1,612.00",GOLFRATE PROPERTY MANAGEMENT LIMITED,ACCOMMODATION BED & BREAKFAST,Place,Bed & Breakfast,A56000
Royal Borough of Kingston,07/11/2023,70065632,"1,658.50",GOLFRATE PROPERTY MANAGEMENT LIMITED,ACCOMMODATION BED & BREAKFAST,Place,Bed & Breakfast,A56000
Royal Borough of Kingston,15/02/2024,70065633,"1,658.50",GOLFRATE PROPERTY MANAGEMENT LIMITED,ACCOMMODATION BED & BREAKFAST,Place,Bed & Breakfast,A56000
Royal Borough of Kingston,05/09/2023,70065634,"1,658.50",GOLFRATE PROPERTY MANAGEMENT LIMITED,ACCOMMODATION BED & BREAKFAST,Place,Bed & Breakfast,A56000
Royal Borough of Kingston,07/11/2023,70065635,"1,612.00",GOLFRATE PROPERTY MANAGEMENT LIMITED,ACCOMMODATION BED & BREAKFAST,Place,Bed & Breakfast,A56000
Royal Borough of Kingston,11/12/2023,70064682,500.00,Good Business Foundation,LEGAL & PROFESSIONAL SERVICES,Place,Staff Professional Membership Fees Non Payroll,A15025
Royal Borough of Kingston,06/02/2024,90303181,"234,458.44",GRAND AVENUE PRIMARY AND NURSERY SCHOOL,SCHOOL FUNDS,Schools,Miscellaneous Expenses,A49000
Royal Borough of Kingston,06/02/2024,90303203,"3,480.00",GRAND AVENUE PRIMARY AND NURSERY SCHOOL,SCHOOL FUNDS,Schools,Miscellaneous Expenses,A49000
Royal Borough of Kingston,06/02/2024,90303229,"1,712.81",GRAND AVENUE PRIMARY AND NURSERY SCHOOL,SCHOOL FUNDS,Schools,Miscellaneous Expenses,A49000
Royal Borough of Kingston,06/02/2024,90303265,"32,737.50",GRAND AVENUE PRIMARY AND NURSERY SCHOOL,SCHOOL FUNDS,Schools,Miscellaneous Expenses,A49000
Royal Borough of Kingston,06/02/2024,90303266,"3,795.00",GRAND AVENUE PRIMARY AND NURSERY SCHOOL,SCHOOL FUNDS,Schools,Miscellaneous Expenses,A49000
Royal Borough of Kingston,06/02/2024,90304182,"22,401.00",GRAND AVENUE PRIMARY AND NURSERY SCHOOL,SCHOOL FUNDS,Schools,Miscellaneous Expenses,A49000
Royal Borough of Kingston,20/02/2024,90306988,558.00,GRAND AVENUE PRIMARY AND NURSERY SCHOOL,SCHOOL FUNDS,Schools,Miscellaneous Expenses,A49000
Royal Borough of Kingston,06/02/2024,90304196,"12,682.05",GREEN LANE PRIMARY & NURSERY SCHOOL,SCHOOL FUNDS,Schools,Miscellaneous Expenses,A49000
Royal Borough of Kingston,20/02/2024,90306994,669.60,GREEN LANE PRIMARY & NURSERY SCHOOL,SCHOOL FUNDS,Schools,Miscellaneous Expenses,A49000
Royal Borough of Kingston,01/02/2024,90308862,"10,892.81",Grove Care Partnership Limited,SOCIAL SERVICES RESIDENTIAL,Adult Social Care & Health,Independent Placements,A56006
Royal Borough of Kingston,01/02/2024,90308863,"4,421.22",Grove Care Partnership Limited,SOCIAL SERVICES RESIDENTIAL,Adult Social Care & Health,Independent Placements,A56006
Royal Borough of Kingston,01/02/2024,90308878,"10,157.71",Grove Care Partnership Limited,SOCIAL SERVICES RESIDENTIAL,Adult Social Care & Health,Independent Placements,A56006
Royal Borough of Kingston,01/02/2024,90308896,"14,904.18",Grove Care Partnership Limited,SOCIAL SERVICES RESIDENTIAL,Adult Social Care & Health,Independent Placements,A56006
Royal Borough of Kingston,01/02/2024,90308898,"9,897.16",Grove Care Partnership Limited,SOCIAL SERVICES RESIDENTIAL,Adult Social Care & Health,Independent Placements,A56006
